Workbook

Sheet Local
A1: Répartition de la population selon les profils de défavorisation matérielle et sociale combinée 2021 de la région des Laurentides selon ses RLS et ses municipalités
B2: Profil 1 | D2: Profil 2 | F2: Profil 3 | H2: Profil 4 | J2: Profil 5
B3: Conditions matériellement ET socialement plus favorables | D3: Conditions moyennes matériellement Et socialement | F3: Conditions socialement plus défavorables (pas matériellement) | H3: Conditions matériellement plus défavorables (pas socialement) | J3: Conditions matériellement ET socialement plus défavorables
L4: Population avec indice | M4: Population sans indice | O4: Population totale
B5: N | C5: % | D5: N | E5: % | F5: N | G5: % | H5: N | I5: % | J5: N | K5: % | L5: N | M5: N | N5: % | O5: N
A6: Région des Laurentides | B6: 101800 | C6: 0.1600377299 | D6: 123800 | E6: 0.1946234869 | F6: 142900 | G6: 0.2246502122 | H6: 141000 | I6: 0.2216632605 | J6: 105100 | K6: 0.1652255935 | L6: 614600 | M6: 21400 | N6: 0.03364250904 | O6: 636100
A7: RLS de Deux-Montagnes - Mirabel-Sud | B7: 22100 | C7: 0.2112153871 | D7: 31900 | E7: 0.2515945434 | F7: 25900 | G7: 0.1931163612 | H7: 26100 | I7: 0.1738658472 | J7: 13500 | K7: 0.1487495773 | L7: 119400 | M7: 2600 | N7: 0.02145828383 | O7: 122100
A8: Deux-Montagnes | B8: 3000 | C8: 0.1566285236 | D8: 4300 | E8: 0.1881663411 | F8: 7100 | G8: 0.1449623221 | H8: 1500 | I8: 0.1574099916 | J8: 1100 | K8: 0.3012559308 | L8: 17000 | M8: 900 | N8: 0.05157689087 | O8: 17900
A9: Mirabel | B9: 0 | C9: 0.1721106106 | D9: 9000 | E9: 0.1649755207 | F9: 6400 | G9: 0.3020186194 | H9: 3700 | I9: 0.3210927954 | J9: 800 | K9: 0.03980245382 | L9: 20000 | M9: 0 | N9: 0 | O9: 20000
A10: Oka | B10: 1800 | C10: 0.1565020161 | D10: 1100 | E10: 0.7036290323 | F10: 500 | G10: 0 | H10: 500 | I10: 0.1373487903 | J10: 0 | K10: 0 | L10: 4000 | M10: 0 | N10: 0.00252016129 | O10: 4000
A11: Pointe-Calumet | B11: 0 | C11: 0.08645120204 | D11: 0 | E11: 0.4379875816 | F11: 500 | G11: 0 | H11: 3300 | I11: 0.256806241 | J11: 2500 | K11: 0.2187549753 | L11: 6300 | M11: 0 | N11: 0 | O11: 6300
A12: Sainte-Marthe-sur-le-Lac | B12: 6500 | C12: 0.06233267667 | D12: 7100 | E12: 0.36409557 | F12: 2300 | G12: 0.4104662323 | H12: 3000 | I12: 0.163105521 | J12: 900 | K12: 0 | L12: 19800 | M12: 0 | N12: 0 | O12: 19800
A13: Saint-Eustache | B13: 9300 | C13: 0.3079556498 | D13: 8800 | E13: 0.1918897429 | F13: 7400 | G13: 0.1178770209 | H13: 9800 | I13: 0.1112068204 | J13: 8200 | K13: 0.2338545808 | L13: 43600 | M13: 1700 | N13: 0.03721618518 | O13: 45300
A14: Saint-Joseph-du-Lac | B14: 1500 | C14: 0.4537050206 | D14: 700 | E14: 0.2217323283 | F14: 1600 | G14: 0.1031147774 | H14: 3200 | I14: 0.2214478737 | J14: 0 | K14: 0 | L14: 7000 | M14: 0 | N14: 0 | O14: 7000
A15: Saint-Placide | B15: 0 | C15: 0 | D15: 700 | E15: 0.5823991031 | F15: 0 | G15: 0.4176008969 | H15: 1000 | I15: 0 | J15: 0 | K15: 0 | L15: 1800 | M15: 0 | N15: 0 | O15: 1800
A16: RLS Thérèse-De Blainville | B16: 51900 | C16: 0.3169795639 | D16: 21500 | E16: 0.1315635084 | F16: 41300 | G16: 0.2522978391 | H16: 21500 | I16: 0.1316490662 | J16: 17500 | K16: 0.1071734135 | L16: 153800 | M16: 9900 | N16: 0.06033660898 | O16: 163600
A17: Blainville | B17: 22800 | C17: 0.3810996506 | D17: 11000 | E17: 0.1839883649 | F17: 13800 | G17: 0.2305789131 | H17: 4900 | I17: 0.0824821545 | J17: 2600 | K17: 0.04269546465 | L17: 55100 | M17: 4700 | N17: 0.07915545228 | O17: 59800
A18: Boisbriand | B18: 6200 | C18: 0.2184541472 | D18: 2700 | E18: 0.09470820969 | F18: 7600 | G18: 0.2681220856 | H18: 7300 | I18: 0.2571711177 | J18: 4600 | K18: 0.1615444397 | L18: 28300 | M18: 0 | N18: 0 | O18: 28300
A19: Bois-des-Filion | B19: 500 | C19: 0.0503002264 | D19: 1700 | E19: 0.1643862585 | F19: 5300 | G19: 0.5217048922 | H19: 1700 | I19: 0.1714735702 | J19: 600 | K19: 0.05856875677 | L19: 9800 | M19: 300 | N19: 0.0335662959 | O19: 10200
A20: Lorraine | B20: 8700 | C20: 0.9128604504 | D20: 400 | E20: 0.04399073879 | F20: 400 | G20: 0.04314881078 | H20: 0 | I20: 0 | J20: 0 | K20: 0 | L20: 9500 | M20: 0 | N20: 0 | O20: 9500
A21: Rosemère | B21: 9300 | C21: 0.6583392477 | D21: 1600 | E21: 0.1115684883 | F21: 3200 | G21: 0.230092264 | H21: 0 | I21: 0 | J21: 0 | K21: 0 | L21: 14100 | M21: 0 | N21: 0 | O21: 14100
A22: Sainte-Anne-des-Plaines | B22: 800 | C22: 0.05203337494 | D22: 1800 | E22: 0.1162210104 | F22: 0 | G22: 0 | H22: 7200 | I22: 0.4757243282 | J22: 3800 | K22: 0.2503777676 | L22: 13600 | M22: 1600 | N22: 0.1056435188 | O22: 15200
A23: Sainte-Thérèse | B23: 3600 | C23: 0.1369615196 | D23: 2400 | E23: 0.09090566464 | F23: 10900 | G23: 0.4126559379 | H23: 300 | I23: 0.01300267591 | J23: 6000 | K23: 0.2262842498 | L23: 23300 | M23: 3200 | N23: 0.1201899521 | O23: 26500
A24: RLS de la Rivière-du-Nord - Mirabel-Nord | B24: 18600 | C24: 0.1694087265 | D24: 42200 | E24: 0.1725062744 | F24: 43600 | G24: 0.2047515663 | H24: 38400 | I24: 0.2163793881 | J24: 35800 | K24: 0.2212026528 | L24: 178600 | M24: 2900 | N24: 0.01575139189 | O24: 181500
A25: Mirabel | B25: 5700 | C25: 0.05940271374 | D25: 15900 | E25: 0.1719976872 | F25: 9700 | G25: 0.3874312128 | H25: 3800 | I25: 0.2668145134 | J25: 5900 | K25: 0.1143538728 | L25: 41100 | M25: 0 | N25: 0 | O25: 41100
A26: Prévost | B26: 4500 | C26: 0.4122115104 | D26: 1500 | E26: 0.2205667543 | F26: 4300 | G26: 0 | H26: 2600 | I26: 0.1987291849 | J26: 700 | K26: 0.1684925504 | L26: 13700 | M26: 0 | N26: 0 | O26: 13700
A27: Saint-Colomban | B27: 4900 | C27: 0.607905442 | D27: 6700 | E27: 0.2566162339 | F27: 0 | G27: 0.1354783241 | H27: 6200 | I27: 0 | J27: 0 | K27: 0 | L27: 17700 | M27: 0 | N27: 0 | O27: 17700
A28: Sainte-Sophie | B28: 0 | C28: 0.1750553097 | D28: 3200 | E28: 0.263329646 | F28: 0 | G28: 0.4894911504 | H28: 13600 | I28: 0.07212389381 | J28: 1300 | K28: 0 | L28: 18100 | M28: 0 | N28: 0 | O28: 18100
A29: Saint-Hippolyte | B29: 1300 | C29: 0.1228793701 | D29: 3000 | E29: 0.2840003749 | F29: 1700 | G29: 0.3558908989 | H29: 3900 | I29: 0.2372293561 | J29: 800 | K29: 0 | L29: 10700 | M29: 0 | N29: 0 | O29: 10700
A30: Saint-Jérôme | B30: 2200 | C30: 0.09225437273 | D30: 11900 | E30: 0.1106553801 | F30: 27800 | G30: 0.07711966888 | H30: 8300 | I30: 0.271153055 | J30: 27100 | K30: 0.4131749218 | L30: 77400 | M30: 2900 | N30: 0.03564260157 | O30: 80200
A31: RLS Argenteuil | B31: 1100 | C31: 0.03250493331 | D31: 4800 | E31: 0.138 | F31: 700 | G31: 0.019 | H31: 12000 | I31: 0.346 | J31: 14700 | K31: 0.422 | L31: 33300 | M31: 1500 | N31: 0.043 | O31: 34700
A32: Brownsburg-Chatham | B32: 0 | C32: 0 | D32: 1900 | E32: 0.2606595833 | F32: 700 | G32: 0.09259003726 | H32: 2000 | I32: 0.2697668001 | J32: 2700 | K32: 0.3769835794 | L32: 7200 | M32: 0 | N32: 0 | O32: 7200
A33: Gore | B33: 1100 | C33: 0.4957129013 | D33: 0 | E33: 0 | F33: 0 | G33: 0 | H33: 1100 | I33: 0.5042870987 | J33: 0 | K33: 0 | L33: 2300 | M33: 0 | N33: 0 | O33: 2300
A34: Grenville | B34: 0 | C34: 0 | D34: 0 | E34: 0 | F34: 0 | G34: 0 | H34: 0 | I34: 0 | J34: 1800 | K34: 1 | L34: 1800 | M34: 0 | N34: 0 | O34: 1800
A35: Grenville-sur-la-Rouge | B35: 0 | C35: 0 | D35: 0 | E35: 0 | F35: 0 | G35: 0 | H35: 2300 | I35: 0.8029830038 | J35: 600 | K35: 0.1970169962 | L35: 2900 | M35: 0 | N35: 0 | O35: 2900
A36: Harrington | B36: 0 | C36: 0 | D36: 0 | E36: 0 | F36: 0 | G36: 0 | H36: 1000 | I36: 1 | J36: 0 | K36: 0 | L36: 1000 | M36: 0 | N36: 0 | O36: 1000
A37: Lachute | B37: 0 | C37: 0 | D37: 800 | E37: 0.05319148936 | F37: 0 | G37: 0 | H37: 2300 | I37: 0.1654609929 | J37: 9500 | K37: 0.6761702128 | L37: 12600 | M37: 1500 | N37: 0.105177305 | O37: 14100
A38: Mille-Isles | B38: 0 | C38: 0 | D38: 900 | E38: 0.5055200465 | F38: 0 | G38: 0 | H38: 900 | I38: 0.4944799535 | J38: 0 | K38: 0 | L38: 1700 | M38: 0 | N38: 0 | O38: 1700
A39: Saint-André-d'Argenteuil | B39: 0 | C39: 0 | D39: 600 | E39: 0.201768752 | F39: 0 | G39: 0 | H39: 2400 | I39: 0.798231248 | J39: 0 | K39: 0 | L39: 3100 | M39: 0 | N39: 0 | O39: 3100
A40: Wentworth | B40: 0 | C40: 0 | D40: 700 | E40: 1 | F40: 0 | G40: 0 | H40: 0 | I40: 0 | J40: 0 | K40: 0 | L40: 700 | M40: 0 | N40: 0 | O40: 700
A41: RLS Les Pays-d'en-Haut | B41: 4600 | C41: 0.09821771202 | D41: 12700 | E41: 0.2713298938 | F41: 21800 | G41: 0.4639278557 | H41: 3900 | I41: 0.08391250586 | J41: 3900 | K41: 0.08239884023 | L41: 46900 | M41: 0 | N41: 0.0002131923421 | O41: 46900
A42: Estérel | B42: 300 | C42: 1 | D42: 0 | E42: 0 | F42: 0 | G42: 0 | H42: 0 | I42: 0 | J42: 0 | K42: 0 | L42: 300 | M42: 0 | N42: 0 | O42: 300
A43: Lac-des-Seize-îles | B43: 200 | C43: 1 | D43: 0 | E43: 0 | F43: 0 | G43: 0 | H43: 0 | I43: 0 | J43: 0 | K43: 0 | L43: 200 | M43: 0 | N43: 0 | O43: 200
A44: Morin-Heights | B44: 1100 | C44: 0.22851646 | D44: 2700 | E44: 0.579948696 | F44: 900 | G44: 0.191534844 | H44: 0 | I44: 0 | J44: 0 | K44: 0 | L44: 4700 | M44: 0 | N44: 0 | O44: 4700
A45: Piedmont | B45: 0 | C45: 0 | D45: 800 | E45: 0.2338895282 | F45: 2700 | G45: 0.7661104718 | H45: 0 | I45: 0 | J45: 0 | K45: 0 | L45: 3500 | M45: 0 | N45: 0 | O45: 3500
A46: Saint-Adolphe-d'Howard | B46: 0 | C46: 0 | D46: 700 | E46: 0.1932531381 | F46: 800 | G46: 0.2154811715 | H46: 1400 | I46: 0.3653242678 | J46: 900 | K46: 0.2259414226 | L46: 3800 | M46: 0 | N46: 0 | O46: 3800
A47: Sainte-Adèle | B47: 1100 | C47: 0.0800856531 | D47: 2200 | E47: 0.1590292648 | F47: 9600 | G47: 0.6838686652 | H47: 0 | I47: 0 | J47: 1100 | K47: 0.07701641685 | L47: 14000 | M47: 0 | N47: 0 | O47: 14000
A48: Sainte-Anne-des-Lacs | B48: 0 | C48: 0 | D48: 3900 | E48: 1 | F48: 0 | G48: 0 | H48: 0 | I48: 0 | J48: 0 | K48: 0 | L48: 3900 | M48: 0 | N48: 0 | O48: 3900
A49: Sainte-Marguerite-du-Lac-Masson | B49: 0 | C49: 0 | D49: 800 | E49: 0.2438372438 | F49: 0 | G49: 0 | H49: 1800 | I49: 0.5378675379 | J49: 700 | K49: 0.2153252153 | L49: 3400 | M49: 0 | N49: 0.00297000297 | O49: 3400
A50: Saint-Sauveur | B50: 2000 | C50: 0.1708981002 | D50: 600 | E50: 0.052417962 | F50: 7800 | G50: 0.6733160622 | H50: 0 | I50: 0 | J50: 1200 | K50: 0.1033678756 | L50: 11600 | M50: 0 | N50: 0 | O50: 11600
A51: Wentworth-Nord | B51: 0 | C51: 0 | D51: 900 | E51: 0.5645933014 | F51: 0 | G51: 0 | H51: 700 | I51: 0.4354066986 | J51: 0 | K51: 0 | L51: 1700 | M51: 0 | N51: 0 | O51: 1700
A52: RLS Les Laurentides | B52: 2800 | C52: 0.05439470626 | D52: 8800 | E52: 0.1730901786 | F52: 9100 | G52: 0.1795301022 | H52: 13400 | I52: 0.2637611517 | J52: 14800 | K52: 0.2911554444 | L52: 48800 | M52: 1900 | N52: 0.0380684168 | O52: 50800
A53: Amherst | B53: 0 | C53: 0 | D53: 0 | E53: 0 | F53: 0 | G53: 0 | H53: 1000 | I53: 0.6018518519 | J53: 700 | K53: 0.3981481481 | L53: 1700 | M53: 0 | N53: 0 | O53: 1700
A54: Arundel | B54: 0 | C54: 0 | D54: 0 | E54: 0 | F54: 0 | G54: 0 | H54: 0 | I54: 0 | J54: 600 | K54: 1 | L54: 600 | M54: 0 | N54: 0 | O54: 600
A55: Barkmere | B55: 0 | C55: 0 | D55: 0 | E55: 0 | F55: 0 | G55: 0 | H55: 0 | I55: 0 | J55: 0 | K55: 0 | L55: 0 | M55: 100 | N55: 1 | O55: 100
A56: Brébeuf | B56: 0 | C56: 0 | D56: 0 | E56: 0 | F56: 0 | G56: 0 | H56: 600 | I56: 0.5540138751 | J56: 500 | K56: 0.4459861249 | L56: 1000 | M56: 0 | N56: 0 | O56: 1000
A57: Huberdeau | B57: 0 | C57: 0 | D57: 0 | E57: 0 | F57: 0 | G57: 0 | H57: 0 | I57: 0 | J57: 900 | K57: 1 | L57: 900 | M57: 0 | N57: 0 | O57: 900
A58: Ivry-sur-le-Lac | B58: 400 | C58: 1 | D58: 0 | E58: 0 | F58: 0 | G58: 0 | H58: 0 | I58: 0 | J58: 0 | K58: 0 | L58: 400 | M58: 0 | N58: 0 | O58: 400
A59: La Conception | B59: 0 | C59: 0 | D59: 600 | E59: 0.3785199738 | F59: 0 | G59: 0 | H59: 900 | I59: 0.6214800262 | J59: 0 | K59: 0 | L59: 1500 | M59: 0 | N59: 0 | O59: 1500
A60: La Minerve | B60: 0 | C60: 0 | D60: 700 | E60: 0.4581280788 | F60: 0 | G60: 0 | H60: 800 | I60: 0.5418719212 | J60: 0 | K60: 0 | L60: 1400 | M60: 0 | N60: 0 | O60: 1400
A61: Labelle | B61: 0 | C61: 0 | D61: 800 | E61: 0.2723327306 | F61: 0 | G61: 0 | H61: 1500 | I61: 0.5457504521 | J61: 500 | K61: 0.1819168174 | L61: 2800 | M61: 0 | N61: 0 | O61: 2800
A62: Lac-Supérieur | B62: 0 | C62: 0 | D62: 600 | E62: 0.2834685598 | F62: 0 | G62: 0 | H62: 1400 | I62: 0.7165314402 | J62: 0 | K62: 0 | L62: 2000 | M62: 0 | N62: 0 | O62: 2000
A63: Lac-Tremblant-Nord | B63: 0 | C63: 0 | D63: 0 | E63: 0 | F63: 0 | G63: 0 | H63: 0 | I63: 0 | J63: 0 | K63: 0 | L63: 0 | M63: 100 | N63: 1 | O63: 100
A64: Lantier | B64: 0 | C64: 0 | D64: 0 | E64: 0 | F64: 0 | G64: 0 | H64: 900 | I64: 1 | J64: 0 | K64: 0 | L64: 900 | M64: 0 | N64: 0 | O64: 900
A65: Montcalm | B65: 0 | C65: 0 | D65: 600 | E65: 1 | F65: 0 | G65: 0 | H65: 0 | I65: 0 | J65: 0 | K65: 0 | L65: 600 | M65: 0 | N65: 0 | O65: 600
A66: Mont-Tremblant | B66: 1600 | C66: 0.1463791849 | D66: 1100 | E66: 0.09616084425 | F66: 2600 | G66: 0.2398107715 | H66: 0 | I66: 0 | J66: 4500 | K66: 0.4118449782 | L66: 9800 | M66: 1200 | N66: 0.1058042213 | O66: 11000
A67: Sainte-Agathe-des-Monts | B67: 0 | C67: 0 | D67: 1800 | E67: 0.1610025867 | F67: 2700 | G67: 0.2412808848 | H67: 2200 | I67: 0.1965034341 | J67: 3900 | K67: 0.3451074837 | L67: 10600 | M67: 600 | N67: 0.05610561056 | O67: 11200
A68: Sainte-Lucie-des-Laurentides | B68: 0 | C68: 0 | D68: 0 | E68: 0 | F68: 0 | G68: 0 | H68: 1400 | I68: 1 | J68: 0 | K68: 0 | L68: 1400 | M68: 0 | N68: 0 | O68: 1400
A69: Mont-Blanc | B69: 800 | C69: 0.2015873016 | D69: 600 | E69: 0.1560846561 | F69: 600 | G69: 0.1492063492 | H69: 1900 | I69: 0.4931216931 | J69: 0 | K69: 0 | L69: 3800 | M69: 0 | N69: 0 | O69: 3800
A70: Val-David | B70: 0 | C70: 0 | D70: 1100 | E70: 0.1977329975 | F70: 3200 | G70: 0.5777258006 | H70: 0 | I70: 0 | J70: 1200 | K70: 0.2245412019 | L70: 5600 | M70: 0 | N70: 0 | O70: 5600
A71: Val-des-Lacs | B71: 0 | C71: 0 | D71: 0 | E71: 0 | F71: 0 | G71: 0 | H71: 800 | I71: 1 | J71: 0 | K71: 0 | L71: 800 | M71: 0 | N71: 0 | O71: 800
A72: Val-Morin | B72: 0 | C72: 0 | D72: 1100 | E72: 0.3410182517 | F72: 0 | G72: 0 | H72: 0 | I72: 0 | J72: 2100 | K72: 0.6589817483 | L72: 3100 | M72: 0 | N72: 0 | O72: 3100
A73: RLS Antoine-Labelle | B73: 700 | C73: 0.01862212715 | D73: 2000 | E73: 0.05614063957 | F73: 500 | G73: 0.01305468707 | H73: 25700 | I73: 0.705666173 | J73: 4900 | K73: 0.1346058911 | L73: 33800 | M73: 2600 | N73: 0.07191048215 | O73: 36500
A74: Chute-Saint-Philippe | B74: 0 | C74: 0 | D74: 0 | E74: 0 | F74: 0 | G74: 0 | H74: 1000 | I74: 1 | J74: 0 | K74: 0 | L74: 1000 | M74: 0 | N74: 0 | O74: 1000
A75: Ferme-Neuve | B75: 0 | C75: 0 | D75: 0 | E75: 0 | F75: 0 | G75: 0 | H75: 2300 | I75: 0.8402061856 | J75: 400 | K75: 0.1597938144 | L75: 2700 | M75: 0 | N75: 0 | O75: 2700
A76: Kiamika | B76: 0 | C76: 0 | D76: 0 | E76: 0 | F76: 0 | G76: 0 | H76: 800 | I76: 1 | J76: 0 | K76: 0 | L76: 800 | M76: 0 | N76: 0 | O76: 800
A77: La Macaza | B77: 0 | C77: 0 | D77: 0 | E77: 0 | F77: 0 | G77: 0 | H77: 500 | I77: 0.415904936 | J77: 0 | K77: 0 | L77: 500 | M77: 600 | N77: 0.584095064 | O77: 1100
A78: Lac-des-Écorces | B78: 0 | C78: 0 | D78: 0 | E78: 0 | F78: 0 | G78: 0 | H78: 2300 | I78: 0.8135181976 | J78: 500 | K78: 0.1864818024 | L78: 2900 | M78: 0 | N78: 0 | O78: 2900
A79: Lac-du-Cerf | B79: 0 | C79: 0 | D79: 0 | E79: 0 | F79: 0 | G79: 0 | H79: 400 | I79: 1 | J79: 0 | K79: 0 | L79: 400 | M79: 0 | N79: 0 | O79: 400
A80: Lac-Saguay | B80: 0 | C80: 0 | D80: 0 | E80: 0 | F80: 0 | G80: 0 | H80: 500 | I80: 1 | J80: 0 | K80: 0 | L80: 500 | M80: 0 | N80: 0 | O80: 500
A81: Lac-Saint-Paul | B81: 0 | C81: 0 | D81: 0 | E81: 0 | F81: 0 | G81: 0 | H81: 500 | I81: 1 | J81: 0 | K81: 0 | L81: 500 | M81: 0 | N81: 0 | O81: 500
A82: L'Ascension | B82: 0 | C82: 0 | D82: 0 | E82: 0 | F82: 0 | G82: 0 | H82: 900 | I82: 1 | J82: 0 | K82: 0 | L82: 900 | M82: 0 | N82: 0 | O82: 900
A83: Mont-Laurier | B83: 700 | C83: 0.048 | D83: 2000 | E83: 0.144 | F83: 500 | G83: 0.034 | H83: 6200 | I83: 0.4394217207 | J83: 2800 | K83: 0.1952750353 | L83: 12200 | M83: 2000 | N83: 0.1394922426 | O83: 14200
A84: Mont-Saint-Michel | B84: 0 | C84: 0 | D84: 0 | E84: 0 | F84: 0 | G84: 0 | H84: 600 | I84: 1 | J84: 0 | K84: 0 | L84: 600 | M84: 0 | N84: 0 | O84: 600
A85: Nominingue | B85: 0 | C85: 0 | D85: 0 | E85: 0 | F85: 0 | G85: 0 | H85: 1900 | I85: 0.8527716186 | J85: 300 | K85: 0.1472283814 | L85: 2300 | M85: 0 | N85: 0 | O85: 2300
A86: Notre-Dame-de-Pontmain | B86: 0 | C86: 0 | D86: 0 | E86: 0 | F86: 0 | G86: 0 | H86: 800 | I86: 1 | J86: 0 | K86: 0 | L86: 800 | M86: 0 | N86: 0 | O86: 800
A87: Notre-Dame-du-Laus | B87: 0 | C87: 0 | D87: 0 | E87: 0 | F87: 0 | G87: 0 | H87: 1700 | I87: 1 | J87: 0 | K87: 0 | L87: 1700 | M87: 0 | N87: 0 | O87: 1700
A88: Rivière-Rouge | B88: 0 | C88: 0 | D88: 0 | E88: 0 | F88: 0 | G88: 0 | H88: 3800 | I88: 0.8196933708 | J88: 800 | K88: 0.1803066292 | L88: 4600 | M88: 0 | N88: 0 | O88: 4600
A89: Saint-Aimé-du-Lac-des-îles | B89: 0 | C89: 0 | D89: 0 | E89: 0 | F89: 0 | G89: 0 | H89: 800 | I89: 1 | J89: 0 | K89: 0 | L89: 800 | M89: 0 | N89: 0 | O89: 800
A90: Sainte-Anne-du-Lac | B90: 0 | C90: 0 | D90: 0 | E90: 0 | F90: 0 | G90: 0 | H90: 600 | I90: 0.991087344 | J90: 0 | K90: 0 | L90: 600 | M90: 0 | N90: 0.008912655971 | O90: 600
A91: Territoires non organisés | B91: ND | C91: ND | D91: ND | E91: ND | F91: ND | G91: ND | H91: ND | I91: ND | J91: ND | K91: ND | L91: ND | M91: ND | N91: ND | O91: ND
A92: Source : INSPQ et BIESP, 2023. Statistique Canada, Recensement 2021.
A93: Panorama de la défavorisation dans les Laurentides 2021, produit par l’équipe Surveillance, recherche et évaluation, Direction de santé publique des Laurentides, Centre intégré de santé et de services sociaux des Laurentides, 2024
A94: La population sans indice réside dans des secteurs où l’information pour le calcul de l’indice est indisponible à cause des ménages collectifs (centres d’hébergement, pénitenciers) ou du taux de non-réponse trop élevé.
A233: Défavorisation matérielle 2016 MRC ---- LOCAL ----
A235: MATERIEL | B235: Conditions plus favorables | F235: Conditions plus défavorables | H235: Population avec indice | I235: Population sans indice | K235: Population totale
B236: Quartile 1 | D236: Quartile 2-3 | F236: Quartile 4
B237: N | C237: % | D237: N | E237: % | F237: N | G237: % | H237: N | I237: N | J237: % | K237: N
A238: MRC Deux-Montagnes | B238: 27020 | C238: 0.2774035895 | D238: 46140 | E238: 0.4737463551 | F238: 24240 | G238: 0.2488500554 | H238: 97400 | I238: 807 | J238: 0.008217671558 | K238: 98200
A239: Saint-Eustache | B239: 11140 | C239: 0.2578577049 | D239: 22350 | E239: 0.5173124103 | F239: 9710 | G239: 0.2248298847 | H239: 43210 | I239: 802 | J239: 0.01822395928 | K239: 44010
A240: Deux-Montagnes | B240: 6940 | C240: 0.3966620942 | D240: 8610 | E240: 0.4919410151 | F240: 1950 | G240: 0.1113968907 | H240: 17500 | I240: 0 | J240: 0 | K240: 17500
A241: Sainte-Marthe-sur-le-Lac | B241: 8480 | C241: 0.4694035631 | D241: 5120 | E241: 0.2831691933 | F241: 4470 | G241: 0.2474272436 | H241: 18070 | I241: 0 | J241: 0 | K241: 18070
A242: Pointe-Calumet | B242: 0 | C242: 0 | D242: 1000 | E242: 0.1555693839 | F242: 5430 | G242: 0.8444306161 | H242: 6430 | I242: 0 | J242: 0 | K242: 6430
A243: Saint-Joseph-du-Lac | B243: 0 | C243: 0 | D243: 5670 | E243: 0.8473156872 | F243: 1020 | G243: 0.1526843128 | H243: 6690 | I243: 0 | J243: 0 | K243: 6690
A244: Oka | B244: 450 | C244: 0.1186174391 | D244: 2740 | E244: 0.7161560618 | F244: 630 | G244: 0.1652264991 | H244: 3820 | I244: 5 | J244: 0.001307531381 | K244: 3820
A245: Saint-Placide | B245: 0 | C245: 0 | D245: 660 | E245: 0.393831554 | F245: 1020 | G245: 0.606168446 | H245: 1690 | I245: 0 | J245: 0 | K245: 1690
A246: MRC Thérèse-De Blainville | B246: 37410 | C246: 0.2507457084 | D246: 74600 | E246: 0.5000167575 | F246: 37180 | G246: 0.2492375341 | H246: 149190 | I246: 7916 | J246: 0.05038732551 | K246: 157100
A247: Boisbriand | B247: 5010 | C247: 0.1861702128 | D247: 14100 | E247: 0.5244011308 | F247: 7780 | G247: 0.2894286564 | H247: 26880 | I247: 0 | J247: 0 | K247: 26880
A248: Sainte-Thérèse | B248: 4030 | C248: 0.1794643652 | D248: 9620 | E248: 0.4279295311 | F248: 8830 | G248: 0.3926061037 | H248: 22480 | I248: 3511 | J248: 0.1350956174 | K248: 25990
A249: Blainville | B249: 14710 | C249: 0.2694639292 | D249: 31760 | E249: 0.5815827549 | F249: 8130 | G249: 0.1489533159 | H249: 54600 | I249: 2262 | J249: 0.03977982168 | K249: 56860
A250: Rosemère | B250: 7560 | C250: 0.5638654836 | D250: 5850 | E250: 0.4361345164 | F250: 0 | G250: 0 | H250: 13410 | I250: 547 | J250: 0.03918899556 | K250: 13960
A251: Lorraine | B251: 3540 | C251: 0.37820787 | D251: 5820 | E251: 0.62179213 | F251: 0 | G251: 0 | H251: 9350 | I251: 0 | J251: 0 | K251: 9350
A252: Bois-des-Filion | B252: 2560 | C252: 0.2742973611 | D252: 4270 | E252: 0.457948938 | F252: 2500 | G252: 0.2677537009 | H252: 9320 | I252: 314 | J252: 0.03258613533 | K252: 9640
A253: Sainte-Anne-des-Plaines | B253: 0 | C253: 0 | D253: 3190 | E253: 0.2428647538 | F253: 9950 | G253: 0.7571352462 | H253: 13140 | I253: 1282 | J253: 0.08889813466 | K253: 14420
A254: Mirabel | B254: 11860 | C254: 0.2347316532 | D254: 26400 | E254: 0.5226773306 | F254: 12250 | G254: 0.2425910162 | H254: 50510 | I254: 0 | J254: 0 | K254: 50510
A255: Mirabel | B255: 11860 | C255: 0.2347316532 | D255: 26400 | E255: 0.5226773306 | F255: 12250 | G255: 0.2425910162 | H255: 50510 | I255: 0 | J255: 0 | K255: 50510
A256: MRC la Rivière-du-Nord | B256: 30490 | C256: 0.2512091624 | D256: 61410 | E256: 0.5059531166 | F256: 29470 | G256: 0.2428377209 | H256: 121370 | I256: 6805 | J256: 0.05309354763 | K256: 128170
A257: Saint-Colomban | B257: 3310 | C257: 0.2068169049 | D257: 12310 | E257: 0.768400025 | F257: 400 | G257: 0.0247830701 | H257: 16020 | I257: 0 | J257: 0 | K257: 16020
A258: Saint-Jérôme | B258: 15720 | C258: 0.232688293 | D258: 28510 | E258: 0.422128781 | F258: 23310 | G258: 0.3451829259 | H258: 67540 | I258: 6805 | J258: 0.09153148791 | K258: 74350
A259: Sainte-Sophie | B259: 1510 | C259: 0.0960484385 | D259: 9690 | E259: 0.6178457616 | F259: 4490 | G259: 0.2861057999 | H259: 15690 | I259: 0 | J259: 0 | K259: 15690
A260: Prévost | B260: 7560 | C260: 0.5811413629 | D260: 4760 | E260: 0.3662513459 | F260: 680 | G260: 0.05260729119 | H260: 13000 | I260: 0 | J260: 0 | K260: 13000
A261: Saint-Hippolyte | B261: 2400 | C261: 0.2629211017 | D261: 6130 | E261: 0.6725556897 | F261: 590 | G261: 0.0645232086 | H261: 9110 | I261: 0 | J261: 0 | K261: 9110
A262: MRC Argenteuil | B262: 7960 | C262: 0.2548253897 | D262: 16160 | E262: 0.5173329919 | F262: 7120 | G262: 0.2278416184 | H262: 31240 | I262: 1148 | J262: 0.03544413227 | K262: 32390
A263: Saint-André-d'Argenteuil | B263: 610 | C263: 0.2013245033 | D263: 2410 | E263: 0.7986754967 | F263: 0 | G263: 0 | H263: 3020 | I263: 0 | J263: 0 | K263: 3020
A264: Lachute | B264: 630 | C264: 0.05344032781 | D264: 7150 | E264: 0.6107222127 | F264: 3930 | G264: 0.3358374595 | H264: 11710 | I264: 1148 | J264: 0.08925517027 | K264: 12860
A265: Gore | B265: 900 | C265: 0.4700630252 | D265: 1010 | E265: 0.5299369748 | F265: 0 | G265: 0 | H265: 1900 | I265: 0 | J265: 0 | K265: 1900
A266: Mille-Isles | B266: 820 | C266: 0.5220165922 | D266: 750 | E266: 0.4779834078 | F266: 0 | G266: 0 | H266: 1570 | I266: 0 | J266: 0 | K266: 1570
A267: Wentworth | B267: 530 | C267: 1 | D267: 0 | E267: 0 | F267: 0 | G267: 0 | H267: 530 | I267: 0 | J267: 0 | K267: 530
A268: Brownsburg-Chatham | B268: 1760 | C268: 0.2471215951 | D268: 2760 | E268: 0.3872507723 | F268: 2600 | G268: 0.3656276327 | H268: 7120 | I268: 0 | J268: 0 | K268: 7120
A269: Grenville-sur-la-Rouge | B269: 1160 | C269: 0.4121813031 | D269: 1080 | E269: 0.3824362606 | F269: 580 | G269: 0.2053824363 | H269: 2820 | I269: 0 | J269: 0 | K269: 2820
A270: Grenville | B270: 710 | C270: 0.4155464641 | D270: 1000 | E270: 0.5844535359 | F270: 0 | G270: 0 | H270: 1710 | I270: 0 | J270: 0 | K270: 1710
A271: Harrington | B271: 850 | C271: 1 | D271: 0 | E271: 0 | F271: 0 | G271: 0 | H271: 850 | I271: 0 | J271: 0 | K271: 850
A272: MRC Les Pays-d'en-Haut | B272: 11190 | C272: 0.2728625442 | D272: 19680 | E272: 0.4801317234 | F272: 10130 | G272: 0.2470057324 | H272: 41000 | I272: 882 | J272: 0.02106168064 | K272: 41880
A273: Estérel | B273: 0 | C273: 0 | D273: 200 | E273: 1 | F273: 0 | G273: 0 | H273: 200 | I273: 0 | J273: 0 | K273: 200
A274: Sainte-Marguerite-du-Lac-Masson | B274: 0 | C274: 0 | D274: 640 | E274: 0.2310207047 | F274: 2120 | G274: 0.7689792953 | H274: 2750 | I274: 10 | J274: 0.003619254434 | K274: 2760
A275: Sainte-Adèle | B275: 1070 | C275: 0.08259153185 | D275: 7440 | E275: 0.5756637511 | F275: 4420 | G275: 0.3417447171 | H275: 12920 | I275: 0 | J275: 0 | K275: 12920
A276: Piedmont | B276: 2950 | C276: 1 | D276: 0 | E276: 0 | F276: 0 | G276: 0 | H276: 2950 | I276: 0 | J276: 0 | K276: 2950
A277: Sainte-Anne-des-Lacs | B277: 2870 | C277: 0.7956244808 | D277: 740 | E277: 0.2043755192 | F277: 0 | G277: 0 | H277: 3610 | I277: 0 | J277: 0 | K277: 3610
A278: Saint-Sauveur | B278: 3330 | C278: 0.3554866973 | D278: 6030 | E278: 0.6445133027 | F278: 0 | G278: 0 | H278: 9360 | I278: 872 | J278: 0.0852311602 | K278: 10230
A279: Morin-Heights | B279: 970 | C279: 0.2337756333 | D279: 1790 | E279: 0.4313630881 | F279: 1390 | G279: 0.3348612786 | H279: 4150 | I279: 0 | J279: 0 | K279: 4150
A280: Lac-des-Seize-îles | B280: 0 | C280: 0 | D280: 0 | E280: 0 | F280: 170 | G280: 1 | H280: 170 | I280: 0 | J280: 0 | K280: 170
A281: Wentworth-Nord | B281: 0 | C281: 0 | D281: 710 | E281: 0.5162925416 | F281: 670 | G281: 0.4837074584 | H281: 1380 | I281: 0 | J281: 0 | K281: 1380
A282: Saint-Adolphe-d'Howard | B282: 0 | C282: 0 | D282: 2140 | E282: 0.6107153035 | F282: 1370 | G282: 0.3892846965 | H282: 3510 | I282: 0 | J282: 0 | K282: 3510
A283: MRC Les Laurentides | B283: 10870 | C283: 0.2534281716 | D283: 21870 | E283: 0.5100279851 | F283: 10140 | G283: 0.2365438433 | H283: 42880 | I283: 3022 | J283: 0.06583591129 | K283: 45900
A284: Val-Morin | B284: 630 | C284: 0.2205574913 | D284: 2240 | E284: 0.7794425087 | F284: 0 | G284: 0 | H284: 2870 | I284: 0 | J284: 0 | K284: 2870
A285: Val-David | B285: 3260 | C285: 0.6638194021 | D285: 1650 | E285: 0.3361805979 | F285: 0 | G285: 0 | H285: 4920 | I285: 0 | J285: 0 | K285: 4920
A286: Lantier | B286: 0 | C286: 0 | D286: 830 | E286: 1 | F286: 0 | G286: 0 | H286: 830 | I286: 0 | J286: 0 | K286: 830
A287: Sainte-Lucie-des-Laurentides | B287: 0 | C287: 0 | D287: 1260 | E287: 1 | F287: 0 | G287: 0 | H287: 1260 | I287: 0 | J287: 0 | K287: 1260
A288: Sainte-Agathe-des-Monts | B288: 1890 | C288: 0.2149267295 | D288: 3500 | E288: 0.3971373395 | F288: 3420 | G288: 0.3879359309 | H288: 8800 | I288: 1420 | J288: 0.1389024748 | K288: 10220
A289: Ivry-sur-le-Lac | B289: 0 | C289: 0 | D289: 390 | E289: 1 | F289: 0 | G289: 0 | H289: 390 | I289: 0 | J289: 0 | K289: 390
A290: St-Faustin—Lac-Carré | B290: 490 | C290: 0.1391826236 | D290: 2550 | E290: 0.7284938554 | F290: 460 | G290: 0.132323521 | H290: 3500 | I290: 0 | J290: 0 | K290: 3500
A291: Barkmere | B291: 0 | C291: 0 | D291: 60 | E291: 1 | F291: 0 | G291: 0 | H291: 60 | I291: 0 | J291: 0 | K291: 60
A292: Montcalm | B292: 0 | C292: 0 | D292: 0 | E292: 0 | F292: 630 | G292: 1 | H292: 630 | I292: 0 | J292: 0 | K292: 630
A293: Arundel | B293: 560 | C293: 1 | D293: 0 | E293: 0 | F293: 0 | G293: 0 | H293: 560 | I293: 0 | J293: 0 | K293: 560
A294: Huberdeau | B294: 0 | C294: 0 | D294: 870 | E294: 1 | F294: 0 | G294: 0 | H294: 870 | I294: 0 | J294: 0 | K294: 870
A295: Amherst | B295: 0 | C295: 0 | D295: 0 | E295: 0 | F295: 1480 | G295: 1 | H295: 1480 | I295: 0 | J295: 0 | K295: 1480
A296: Brébeuf | B296: 0 | C296: 0 | D296: 410 | E296: 0.4159836066 | F296: 570 | G296: 0.5840163934 | H296: 980 | I296: 0 | J296: 0 | K296: 980
A297: Lac-Supérieur | B297: 510 | C297: 0.2701271186 | D297: 1380 | E297: 0.7298728814 | F297: 0 | G297: 0 | H297: 1890 | I297: 0 | J297: 0 | K297: 1890
A298: Val-des-Lacs | B298: 0 | C298: 0 | D298: 0 | E298: 0 | F298: 740 | G298: 1 | H298: 740 | I298: 0 | J298: 0 | K298: 740
A299: Mont-Tremblant | B299: 2920 | C299: 0.3626305321 | D299: 4540 | E299: 0.564395823 | F299: 590 | G299: 0.07297364495 | H299: 8040 | I299: 1602 | J299: 0.1660792038 | K299: 9650
A300: La Conception | B300: 560 | C300: 0.4181002244 | D300: 780 | E300: 0.5818997756 | F300: 0 | G300: 0 | H300: 1340 | I300: 0 | J300: 0 | K300: 1340
A301: Labelle | B301: 0 | C301: 0 | D301: 1430 | E301: 0.5773112636 | F301: 1050 | G301: 0.4226887364 | H301: 2480 | I301: 0 | J301: 0 | K301: 2480
A302: Lac-Tremblant-Nord | B302: 40 | C302: 1 | D302: 0 | E302: 0 | F302: 0 | G302: 0 | H302: 40 | I302: 0 | J302: 0 | K302: 40
A303: La Minerve | B303: 0 | C303: 0 | D303: 0 | E303: 0 | F303: 1210 | G303: 1 | H303: 1210 | I303: 0 | J303: 0 | K303: 1210
A304: MRC Antoine-Labelle | B304: 8350 | C304: 0.2586260299 | D304: 15910 | E304: 0.4928761692 | F304: 8020 | G304: 0.2484978009 | H304: 32290 | I304: 2957 | J304: 0.08390318645 | K304: 35240
A305: Notre-Dame-du-Laus | B305: 0 | C305: 0 | D305: 570 | E305: 0.3645699615 | F305: 990 | G305: 0.6354300385 | H305: 1560 | I305: 0 | J305: 0 | K305: 1560
A306: Notre-Dame-de-Pontmain | B306: 0 | C306: 0 | D306: 0 | E306: 0 | F306: 780 | G306: 1 | H306: 780 | I306: 0 | J306: 0 | K306: 780
A307: Lac-du-Cerf | B307: 0 | C307: 0 | D307: 440 | E307: 1 | F307: 0 | G307: 0 | H307: 440 | I307: 0 | J307: 0 | K307: 440
A308: Saint-Aimé-du-Lac-des-îles | B308: 0 | C308: 0 | D308: 790 | E308: 1 | F308: 0 | G308: 0 | H308: 790 | I308: 0 | J308: 0 | K308: 790
A309: Kiamika | B309: 0 | C309: 0 | D309: 760 | E309: 1 | F309: 0 | G309: 0 | H309: 760 | I309: 0 | J309: 0 | K309: 760
A310: Nominingue | B310: 970 | C310: 0.4529714553 | D310: 480 | E310: 0.2227421619 | F310: 690 | G310: 0.3242863828 | H310: 2140 | I310: 0 | J310: 0 | K310: 2140
A311: Rivière-Rouge | B311: 1270 | C311: 0.2938454419 | D311: 2200 | E311: 0.5078667284 | F311: 860 | G311: 0.1982878297 | H311: 4320 | I311: 0 | J311: 0 | K311: 4320
A312: La Macaza | B312: 440 | C312: 1 | D312: 0 | E312: 0 | F312: 0 | G312: 0 | H312: 440 | I312: 711 | J312: 0.6182608696 | K312: 1150
A313: L'Ascension | B313: 0 | C313: 0 | D313: 0 | E313: 0 | F313: 790 | G313: 1 | H313: 790 | I313: 0 | J313: 0 | K313: 790
A314: Lac-Saguay | B314: 0 | C314: 0 | D314: 460 | E314: 1 | F314: 0 | G314: 0 | H314: 460 | I314: 0 | J314: 0 | K314: 460
A315: Chute-Saint-Philippe | B315: 440 | C315: 0.4713375796 | D315: 500 | E315: 0.5286624204 | F315: 0 | G315: 0 | H315: 940 | I315: 0 | J315: 0 | K315: 940
A316: Lac-des-Écorces | B316: 690 | C316: 0.25164594 | D316: 1470 | E316: 0.5369422092 | F316: 580 | G316: 0.2114118508 | H316: 2730 | I316: 0 | J316: 0 | K316: 2730
A317: Mont-Laurier | B317: 4540 | C317: 0.3824 | D317: 5820 | E317: 0.4897684211 | F317: 1520 | G317: 0.1278315789 | H317: 11880 | I317: 2241 | J317: 0.1587560215 | K317: 14120
A318: Ferme-Neuve | B318: 0 | C318: 0 | D318: 1400 | E318: 0.5155210643 | F318: 1310 | G318: 0.4844789357 | H318: 2710 | I318: 0 | J318: 0 | K318: 2710
A319: Lac-Saint-Paul | B319: 0 | C319: 0 | D319: 480 | E319: 1 | F319: 0 | G319: 0 | H319: 480 | I319: 0 | J319: 0 | K319: 480
A320: Mont-Saint-Michel | B320: 0 | C320: 0 | D320: 0 | E320: 0 | F320: 500 | G320: 1 | H320: 500 | I320: 0 | J320: 0 | K320: 500
A321: Sainte-Anne-du-Lac | B321: 0 | C321: 0 | D321: 580 | E321: 1 | F321: 0 | G321: 0 | H321: 580 | I321: 0 | J321: 0 | K321: 580
A322: Territoires non organisés | B322: 0 | C322: 0 | D322: 0 | E322: 0 | F322: 0 | G322: 0 | H322: 0 | I322: 5 | J322: 1 | K322: 10
A324: Défavorisation sociale 2016 MRC ---- LOCAL ----
A326: SOCIAL | B326: Conditions plus favorables | F326: Conditions plus défavorables | H326: Population avec indice | I326: Population sans indice | K326: Population totale
B327: Quartile 1 | D327: Quartile 2-3 | F327: Quartile 4
B328: N | C328: % | D328: N | E328: % | F328: N | G328: % | H328: N | I328: N | J328: % | K328: N
A329: MRC Deux-Montagnes | B329: 24400 | C329: 0.2504928334 | D329: 48980 | E329: 0.5028748614 | F329: 24020 | G329: 0.2466323052 | H329: 97400 | I329: 810 | J329: 0.008217671558 | K329: 98200
A330: Saint-Eustache | B330: 14390 | C330: 0.3329398695 | D330: 15040 | E330: 0.3480535111 | F330: 13780 | G330: 0.3190066195 | H330: 43210 | I330: 800 | J330: 0.01822395928 | K330: 44010
A331: Deux-Montagnes | B331: 2580 | C331: 0.1476909008 | D331: 8470 | E331: 0.4842249657 | F331: 6440 | G331: 0.3680841335 | H331: 17500 | I331: 0 | J331: 0 | K331: 17500
A332: Sainte-Marthe-sur-le-Lac | B332: 1740 | C332: 0.09627088636 | D332: 15120 | E332: 0.8362841651 | F332: 1220 | G332: 0.06744494854 | H332: 18070 | I332: 0 | J332: 0 | K332: 18070
A333: Pointe-Calumet | B333: 1030 | C333: 0.1600808961 | D333: 2820 | E333: 0.4387056627 | F333: 2580 | G333: 0.4012134412 | H333: 6430 | I333: 0 | J333: 0 | K333: 6430
A334: Saint-Joseph-du-Lac | B334: 3560 | C334: 0.5320771646 | D334: 3130 | E334: 0.4679228354 | F334: 0 | G334: 0 | H334: 6690 | I334: 0 | J334: 0 | K334: 6690
A335: Oka | B335: 630 | C335: 0.1652264991 | D335: 3190 | E335: 0.8347735009 | F335: 0 | G335: 0 | H335: 3820 | I335: 10 | J335: 0.001307531381 | K335: 3820
A336: Saint-Placide | B336: 470 | C336: 0.2787663108 | D336: 1220 | E336: 0.7212336892 | F336: 0 | G336: 0 | H336: 1690 | I336: 0 | J336: 0 | K336: 1690
A337: MRC Thérèse-De Blainville | B337: 37700 | C337: 0.2526962805 | D337: 74910 | E337: 0.5021147955 | F337: 36580 | G337: 0.245188924 | H337: 149190 | I337: 7920 | J337: 0.05038732551 | K337: 157100
A338: Boisbriand | B338: 4280 | C338: 0.1593140902 | D338: 15740 | E338: 0.5853667609 | F338: 6860 | G338: 0.2553191489 | H338: 26880 | I338: 0 | J338: 0 | K338: 26880
A339: Sainte-Thérèse | B339: 2060 | C339: 0.09173414005 | D339: 5440 | E339: 0.2419254382 | F339: 14980 | G339: 0.6663404217 | H339: 22480 | I339: 3510 | J339: 0.1350956174 | K339: 25990
A340: Blainville | B340: 15070 | C340: 0.2759839563 | D340: 32930 | E340: 0.6031391366 | F340: 6600 | G340: 0.120876907 | H340: 54600 | I340: 2260 | J340: 0.03977982168 | K340: 56860
A341: Rosemère | B341: 6110 | C341: 0.4552978898 | D341: 4870 | E341: 0.3634330028 | F341: 2430 | G341: 0.1812691074 | H341: 13410 | I341: 550 | J341: 0.03918899556 | K341: 13960
... 96 more rows

Sheet Région

Sheet Donnees_Local
A1: ND
A2: Répartition de la population (N, %) par profil de défavorisation combinée 2021 Région des Laurentides (LOCAUX) 2021)
B3: Conditions plus favorables | J3: Conditions plus défavorables | L3: Population avec indice | M3: Population sans indice | O3: Population totale
B4: Profil 1 | D4: Profil 2 | F4: Profil 3 | H4: Profil 4 | J4: Profil 5
B5: matériellement ET socialement plus favorables | D5: moyennes matériellement Et socialement | F5: socialement plus défavorables (pas matériellement) | H5: matériellement plus défavorables (pas socialement) | J5: matériellement ET socialement plus défavorables
B6: N | C6: % | D6: N | E6: % | F6: N | G6: % | H6: N | I6: % | J6: N | K6: % | L6: N | M6: N | N6: % | O6: N
A7: MRC Deux-Montagnes | B7: 9300 | C7: 0.09094383256 | D7: 47400 | E7: 0.4649492416 | F7: 17500 | G7: 0.1714518089 | H7: 17500 | I7: 0.1718633638 | J7: 7700 | K7: 0.07512836593 | L7: 99400 | M7: 2600 | N7: 0.02566338729 | O7: 102100 | Q7: =C7/100 -> 0.0009094383256 | S7: =E7/100 -> 0.004649492416 | U7: =G7/100 -> 0.001714518089 | W7: =I7/100 -> 0.001718633638 | Y7: =K7/100 -> 0.0007512836593 | AB7: =N7/100 -> 0.0002566338729
A8: Deux-Montagnes | B8: 1800 | C8: 0.09879988836 | D8: 7200 | E8: 0.403070053 | F8: 7000 | G8: 0.3926318727 | H8: 1000 | I8: 0.053921295 | J8: 0 | K8: 0 | L8: 17000 | M8: 900 | N8: 0.05157689087 | O8: 17900 | Q8: =C8/100 -> 0.0009879988836 | S8: =E8/100 -> 0.00403070053 | U8: =G8/100 -> 0.003926318727 | W8: =I8/100 -> 0.00053921295 | Y8: =K8/100 -> 0 | AB8: =N8/100 -> 0.0005157689087
A9: Oka | B9: 1200 | C9: 0.3009072581 | D9: 2300 | E9: 0.5670362903 | F9: 0 | G9: 0 | H9: 500 | I9: 0.1295362903 | J9: 0 | K9: 0 | L9: 4000 | M9: 0 | N9: 0.00252016129 | O9: 4000 | Q9: 0.003009072581 | S9: 0.005670362903 | U9: 0 | W9: 0.001295362903 | Y9: 0 | AB9: 2.52016129e-05
A10: Pointe-Calumet | B10: 0 | C10: 0 | D10: 0 | E10: 0 | F10: 1000 | G10: 0.163827416 | H10: 3300 | I10: 0.5244387836 | J10: 2000 | K10: 0.3117338004 | L10: 6300 | M10: 0 | N10: 0 | O10: 6300 | Q10: 0 | S10: 0 | U10: 0.00163827416 | W10: 0.005244387836 | Y10: 0.003117338004 | AB10: 0
A11: Sainte-Marthe-sur-le-Lac | B11: 0 | C11: 0 | D11: 15800 | E11: 0.7960297015 | F11: 1900 | G11: 0.09637823913 | H11: 2100 | I11: 0.1075920594 | J11: 0 | K11: 0 | L11: 19800 | M11: 0 | N11: 0 | O11: 19800 | Q11: 0 | S11: 0.007960297015 | U11: 0.0009637823913 | W11: 0.001075920594 | Y11: 0 | AB11: 0
A12: Saint-Eustache | B12: 5400 | C12: 0.1181862355 | D12: 16900 | E12: 0.3737300115 | F12: 7500 | G12: 0.1662249315 | H12: 8100 | I12: 0.1785493418 | J12: 5700 | K12: 0.1260932945 | L12: 43600 | M12: 1700 | N12: 0.03721618518 | O12: 45300 | Q12: 0.001181862355 | S12: 0.003737300115 | U12: 0.001662249315 | W12: 0.001785493418 | Y12: 0.001260932945 | AB12: 0.0003721618518
A13: Saint-Joseph-du-Lac | B13: 1000 | C13: 0.1373915517 | D13: 4600 | E13: 0.6475608022 | F13: 0 | G13: 0 | H13: 1500 | I13: 0.2150476461 | J13: 0 | K13: 0 | L13: 7000 | M13: 0 | N13: 0 | O13: 7000 | Q13: 0.001373915517 | S13: 0.006475608022 | U13: 0 | W13: 0.002150476461 | Y13: 0 | AB13: 0
A14: Saint-Placide | B14: 0 | C14: 0 | D14: 700 | E14: 0.4176008969 | F14: 0 | G14: 0 | H14: 1000 | I14: 0.5823991031 | J14: 0 | K14: 0 | L14: 1800 | M14: 0 | N14: 0 | O14: 1800 | Q14: 0 | S14: 0.004176008969 | U14: 0 | W14: 0.005823991031 | Y14: 0 | AB14: 0
A15: MRC Thérèse-De Blainville | B15: 10100 | C15: 0.06194387406 | D15: 78600 | E15: 0.4800955803 | F15: 26600 | G15: 0.1624498876 | H15: 26300 | I15: 0.1608609563 | J15: 12200 | K15: 0.07431309279 | L15: 153800 | M15: 9900 | N15: 0.06033660898 | O15: 163600 | Q15: 0.0006194387406 | S15: 0.004800955803 | U15: 0.001624498876 | W15: 0.001608609563 | Y15: 0.0007431309279 | AB15: 0.0006033660898
A16: Blainville | B16: 2800 | C16: 0.04694160718 | D16: 39300 | E16: 0.6568147244 | F16: 5500 | G16: 0.09191059697 | H16: 6500 | I16: 0.1093465287 | J16: 900 | K16: 0.01583109046 | L16: 55100 | M16: 4700 | N16: 0.07915545228 | O16: 59800 | Q16: 0.0004694160718 | S16: 0.006568147244 | U16: 0.0009191059697 | W16: 0.001093465287 | Y16: 0.0001583109046 | AB16: 0.0007915545228
A17: Boisbriand | B17: 600 | C17: 0.02006499929 | D17: 10500 | E17: 0.3721916066 | F17: 5400 | G17: 0.1890278367 | H17: 9500 | I17: 0.3340398474 | J17: 2400 | K17: 0.08467571005 | L17: 28300 | M17: 0 | N17: 0 | O17: 28300 | Q17: 0.0002006499929 | S17: 0.003721916066 | U17: 0.001890278367 | W17: 0.003340398474 | Y17: 0.0008467571005 | AB17: 0
A18: Bois-des-Filion | B18: 0 | C18: 0 | D18: 2600 | E18: 0.2597696624 | F18: 4800 | G18: 0.4766217147 | H18: 2300 | I18: 0.230042327 | J18: 0 | K18: 0 | L18: 9800 | M18: 300 | N18: 0.0335662959 | O18: 10200 | Q18: 0 | S18: 0.002597696624 | U18: 0.004766217147 | W18: 0.00230042327 | Y18: 0 | AB18: 0.000335662959
A19: Lorraine | B19: 3200 | C19: 0.333508735 | D19: 6300 | E19: 0.666491265 | F19: 0 | G19: 0 | H19: 0 | I19: 0 | J19: 0 | K19: 0 | L19: 9500 | M19: 0 | N19: 0 | O19: 9500 | Q19: 0.00333508735 | S19: 0.00666491265 | U19: 0 | W19: 0 | Y19: 0 | AB19: 0
A20: Rosemère | B20: 2700 | C20: 0.1939673527 | D20: 10200 | E20: 0.7253371185 | F20: 1100 | G20: 0.08069552874 | H20: 0 | I20: 0 | J20: 0 | K20: 0 | L20: 14100 | M20: 0 | N20: 0 | O20: 14100 | Q20: 0.001939673527 | S20: 0.007253371185 | U20: 0.0008069552874 | W20: 0 | Y20: 0 | AB20: 0
A21: Sainte-Anne-des-Plaines | B21: 0 | C21: 0 | D21: 3200 | E21: 0.2074765127 | F21: 0 | G21: 0 | H21: 7600 | I21: 0.5021352079 | J21: 2800 | K21: 0.1847447605 | L21: 13600 | M21: 1600 | N21: 0.1056435188 | O21: 15200 | Q21: 0 | S21: 0.002074765127 | U21: 0 | W21: 0.005021352079 | Y21: 0.001847447605 | AB21: 0.001056435188
A22: Sainte-Thérèse | B22: 900 | C22: 0.03233708966 | D22: 6400 | E22: 0.2405683488 | F22: 9800 | G22: 0.3676176836 | H22: 300 | I22: 0.01300267591 | J22: 6000 | K22: 0.2262842498 | L22: 23300 | M22: 3200 | N22: 0.1201899521 | O22: 26500 | Q22: 0.0003233708966 | S22: 0.002405683488 | U22: 0.003676176836 | W22: 0.0001300267591 | Y22: 0.002262842498 | AB22: 0.001201899521
A23: Mirabel | B23: 3500 | C23: 0.05685016692 | D23: 30900 | E23: 0.5063821431 | F23: 11200 | G23: 0.1839039078 | H23: 11700 | I23: 0.19185704 | J23: 3700 | K23: 0.06100674216 | L23: 61100 | M23: 0 | N23: 0 | O23: 61100 | Q23: 0.0005685016692 | S23: 0.005063821431 | U23: 0.001839039078 | W23: 0.0019185704 | Y23: 0.0006100674216 | AB23: 0
A24: Mirabel | B24: 3500 | C24: 0.05685016692 | D24: 30900 | E24: 0.5063821431 | F24: 11200 | G24: 0.1839039078 | H24: 11700 | I24: 0.19185704 | J24: 3700 | K24: 0.06100674216 | L24: 61100 | M24: 0 | N24: 0 | O24: 61100 | Q24: 0.0005685016692 | S24: 0.005063821431 | U24: 0.001839039078 | W24: 0.0019185704 | Y24: 0.0006100674216 | AB24: 0
A25: MRC la Rivière-du-Nord | B25: 10600 | C25: 0.07548755645 | D25: 71100 | E25: 0.5063179338 | F25: 19300 | G25: 0.1374204026 | H25: 21400 | I25: 0.1524709033 | J25: 15200 | K25: 0.1079390857 | L25: 137500 | M25: 2900 | N25: 0.02036411812 | O25: 140400 | Q25: 0.0007548755645 | S25: 0.005063179338 | U25: 0.001374204026 | W25: 0.001524709033 | Y25: 0.001079390857 | AB25: 0.0002036411812
A26: Prévost | B26: 3100 | C26: 0.2233420976 | D26: 8300 | E26: 0.608165352 | F26: 2300 | G26: 0.1684925504 | H26: 0 | I26: 0 | J26: 0 | K26: 0 | L26: 13700 | M26: 0 | N26: 0 | O26: 13700 | Q26: 0.002233420976 | S26: 0.00608165352 | U26: 0.001684925504 | W26: 0 | Y26: 0 | AB26: 0
A27: Saint-Colomban | B27: 4500 | C27: 0.2508455468 | D27: 12500 | E27: 0.7052987599 | F27: 0 | G27: 0 | H27: 800 | I27: 0.04385569335 | J27: 0 | K27: 0 | L27: 17700 | M27: 0 | N27: 0 | O27: 17700 | Q27: 0.002508455468 | S27: 0.007052987599 | U27: 0 | W27: 0.0004385569335 | Y27: 0 | AB27: 0
A28: Sainte-Sophie | B28: 0 | C28: 0 | D28: 10000 | E28: 0.5555862832 | F28: 0 | G28: 0 | H28: 8000 | I28: 0.4444137168 | J28: 0 | K28: 0 | L28: 18100 | M28: 0 | N28: 0 | O28: 18100 | Q28: 0 | S28: 0.005555862832 | U28: 0 | W28: 0.004444137168 | Y28: 0 | AB28: 0
A29: Saint-Hippolyte | B29: 1300 | C29: 0.1228793701 | D29: 8500 | E29: 0.7983878527 | F29: 0 | G29: 0 | H29: 800 | I29: 0.0787327772 | J29: 0 | K29: 0 | L29: 10700 | M29: 0 | N29: 0 | O29: 10700 | Q29: 0.001228793701 | S29: 0.007983878527 | U29: 0 | W29: 0.000787327772 | Y29: 0 | AB29: 0
A30: Saint-Jérôme | B30: 1800 | C30: 0.02217844988 | D30: 31700 | E30: 0.3949733834 | F30: 17000 | G30: 0.2117611858 | H30: 11800 | I30: 0.1465223842 | J30: 15200 | K30: 0.1889219952 | L30: 77400 | M30: 2900 | N30: 0.03564260157 | O30: 80200 | Q30: 0.0002217844988 | S30: 0.003949733834 | U30: 0.002117611858 | W30: 0.001465223842 | Y30: 0.001889219952 | AB30: 0.0003564260157
A31: MRC Argenteuil | B31: 2000 | C31: 0.05766574586 | D31: 18600 | E31: 0.5340987569 | F31: 4100 | G31: 0.1186982044 | H31: 4000 | I31: 0.1164825046 | J31: 4500 | K31: 0.1303809853 | L31: 33300 | M31: 1500 | N31: 0.04267380295 | O31: 34800 | Q31: 0.0005766574586 | S31: 0.005340987569 | U31: 0.001186982044 | W31: 0.001164825046 | Y31: 0.001303809853 | AB31: 0.0004267380295
A32: Brownsburg-Chatham | B32: 0 | C32: 0 | D32: 4800 | E32: 0.6616530978 | F32: 600 | G32: 0.08168897475 | H32: 1900 | I32: 0.2566579274 | J32: 0 | K32: 0 | L32: 7200 | M32: 0 | N32: 0 | O32: 7200 | Q32: 0 | S32: 0.006616530978 | U32: 0.0008168897475 | W32: 0.002566579274 | Y32: 0 | AB32: 0
A33: Gore | B33: 1100 | C33: 0.4967148489 | D33: 1100 | E33: 0.5032851511 | F33: 0 | G33: 0 | H33: 0 | I33: 0 | J33: 0 | K33: 0 | L33: 2300 | M33: 0 | N33: 0 | O33: 2300 | Q33: 0.004967148489 | S33: 0.005032851511 | U33: 0 | W33: 0 | Y33: 0 | AB33: 0
A34: Grenville | B34: 0 | C34: 0 | D34: 0 | E34: 0 | F34: 1800 | G34: 1 | H34: 0 | I34: 0 | J34: 0 | K34: 0 | L34: 1800 | M34: 0 | N34: 0 | O34: 1800 | Q34: 0 | S34: 0 | U34: 0.01 | W34: 0 | Y34: 0 | AB34: 0
A35: Grenville-sur-la-Rouge | B35: 0 | C35: 0 | D35: 2200 | E35: 0.775580992 | F35: 0 | G35: 0 | H35: 600 | I35: 0.224419008 | J35: 0 | K35: 0 | L35: 2900 | M35: 0 | N35: 0 | O35: 2900 | Q35: 0 | S35: 0.00775580992 | U35: 0 | W35: 0.00224419008 | Y35: 0 | AB35: 0
A36: Harrington | B36: 0 | C36: 0 | D36: 1000 | E36: 1 | F36: 0 | G36: 0 | H36: 0 | I36: 0 | J36: 0 | K36: 0 | L36: 1000 | M36: 0 | N36: 0 | O36: 1000 | Q36: 0 | S36: 0.01 | U36: 0 | W36: 0 | Y36: 0 | AB36: 0
A37: Lachute | B37: 0 | C37: 0 | D37: 4800 | E37: 0.3424113475 | F37: 1700 | G37: 0.1217730496 | H37: 1500 | I37: 0.1092907801 | J37: 4500 | K37: 0.3213475177 | L37: 12600 | M37: 1500 | N37: 0.105177305 | O37: 14100 | Q37: 0 | S37: 0.003424113475 | U37: 0.001217730496 | W37: 0.001092907801 | Y37: 0.003213475177 | AB37: 0.00105177305
A38: Mille-Isles | B38: 900 | C38: 0.5055200465 | D38: 900 | E38: 0.4944799535 | F38: 0 | G38: 0 | H38: 0 | I38: 0 | J38: 0 | K38: 0 | L38: 1700 | M38: 0 | N38: 0 | O38: 1700 | Q38: 0.005055200465 | S38: 0.004944799535 | U38: 0 | W38: 0 | Y38: 0 | AB38: 0
A39: Saint-André-d'Argenteuil | B39: 0 | C39: 0 | D39: 3100 | E39: 1 | F39: 0 | G39: 0 | H39: 0 | I39: 0 | J39: 0 | K39: 0 | L39: 3100 | M39: 0 | N39: 0 | O39: 3100 | Q39: 0 | S39: 0.01 | U39: 0 | W39: 0 | Y39: 0 | AB39: 0
A40: Wentworth | B40: 0 | C40: 0 | D40: 700 | E40: 1 | F40: 0 | G40: 0 | H40: 0 | I40: 0 | J40: 0 | K40: 0 | L40: 700 | M40: 0 | N40: 0 | O40: 700 | Q40: 0 | S40: 0.01 | U40: 0 | W40: 0 | Y40: 0 | AB40: 0
A41: MRC Les Pays-d'en-Haut | B41: 1000 | C41: 0.02183358914 | D41: 23400 | E41: 0.5059772152 | F41: 10200 | G41: 0.2209083638 | H41: 9600 | I41: 0.2077217406 | J41: 2000 | K41: 0.04334291705 | L41: 46200 | M41: 0 | N41: 0.0002161741499 | O41: 46300 | Q41: 0.0002183358914 | S41: 0.005059772152 | U41: 0.002209083638 | W41: 0.002077217406 | Y41: 0.0004334291705 | AB41: 2.161741499e-06
A42: Estérel | B42: 300 | C42: 1 | D42: 0 | E42: 0 | F42: 0 | G42: 0 | H42: 0 | I42: 0 | J42: 0 | K42: 0 | L42: 300 | M42: 0 | N42: 0 | O42: 300 | Q42: 0.01 | S42: 0 | U42: 0 | W42: 0 | Y42: 0 | AB42: 0
A43: Lac-des-Seize-îles | B43: 0 | C43: 0 | D43: 200 | E43: 1 | F43: 0 | G43: 0 | H43: 0 | I43: 0 | J43: 0 | K43: 0 | L43: 200 | M43: 0 | N43: 0 | O43: 200 | Q43: 0 | S43: 0.01 | U43: 0 | W43: 0 | Y43: 0 | AB43: 0
A44: Morin-Heights | B44: 0 | C44: 0 | D44: 4700 | E44: 1 | F44: 0 | G44: 0 | H44: 0 | I44: 0 | J44: 0 | K44: 0 | L44: 4700 | M44: 0 | N44: 0 | O44: 4700 | Q44: 0 | S44: 0.01 | U44: 0 | W44: 0 | Y44: 0 | AB44: 0
A45: Piedmont | B45: 0 | C45: 0 | D45: 800 | E45: 0.2338895282 | F45: 2700 | G45: 0.7661104718 | H45: 0 | I45: 0 | J45: 0 | K45: 0 | L45: 3500 | M45: 0 | N45: 0 | O45: 3500 | Q45: 0 | S45: 0.002338895282 | U45: 0.007661104718 | W45: 0 | Y45: 0 | AB45: 0
A46: Saint-Adolphe-d'Howard | B46: 0 | C46: 0 | D46: 1600 | E46: 0.4087343096 | F46: 0 | G46: 0 | H46: 2300 | I46: 0.5912656904 | J46: 0 | K46: 0 | L46: 3800 | M46: 0 | N46: 0 | O46: 3800 | Q46: 0 | S46: 0.004087343096 | U46: 0 | W46: 0.005912656904 | Y46: 0 | AB46: 0
A47: Sainte-Adèle | B47: 0 | C47: 0 | D47: 5300 | E47: 0.3814418273 | F47: 4600 | G47: 0.3279800143 | H47: 2100 | I47: 0.1474660956 | J47: 2000 | K47: 0.1431120628 | L47: 14000 | M47: 0 | N47: 0 | O47: 14000 | Q47: 0 | S47: 0.003814418273 | U47: 0.003279800143 | W47: 0.001474660956 | Y47: 0.001431120628 | AB47: 0
A48: Sainte-Anne-des-Lacs | B48: 700 | C48: 0.232659409 | D48: 2500 | E48: 0.767340591 | F48: 0 | G48: 0 | H48: 0 | I48: 0 | J48: 0 | K48: 0 | L48: 3200 | M48: 0 | N48: 0 | O48: 3200 | Q48: 0.00232659409 | S48: 0.00767340591 | U48: 0 | W48: 0 | Y48: 0 | AB48: 0
A49: Sainte-Marguerite-du-Lac-Masson | B49: 0 | C49: 0 | D49: 0 | E49: 0 | F49: 0 | G49: 0 | H49: 3400 | I49: 0.997029997 | J49: 0 | K49: 0 | L49: 3400 | M49: 0 | N49: 0.00297000297 | O49: 3400 | Q49: 0 | S49: 0 | U49: 0 | W49: 0.00997029997 | Y49: 0 | AB49: 2.97000297e-05
A50: Saint-Sauveur | B50: 0 | C50: 0 | D50: 7400 | E50: 0.6409326425 | F50: 3000 | G50: 0.2556994819 | H50: 1200 | I50: 0.1033678756 | J50: 0 | K50: 0 | L50: 11600 | M50: 0 | N50: 0 | O50: 11600 | Q50: 0 | S50: 0.006409326425 | U50: 0.002556994819 | W50: 0.001033678756 | Y50: 0 | AB50: 0
A51: Wentworth-Nord | B51: 0 | C51: 0 | D51: 900 | E51: 0.5645933014 | F51: 0 | G51: 0 | H51: 700 | I51: 0.4354066986 | J51: 0 | K51: 0 | L51: 1700 | M51: 0 | N51: 0 | O51: 1700 | Q51: 0 | S51: 0.005645933014 | U51: 0 | W51: 0.004354066986 | Y51: 0 | AB51: 0
A52: MRC Les Laurentides | B52: 2300 | C52: 0.0452173228 | D52: 24900 | E52: 0.4907339937 | F52: 8900 | G52: 0.1755519231 | H52: 9200 | I52: 0.1821493983 | J52: 3500 | K52: 0.06827894519 | L52: 48800 | M52: 1900 | N52: 0.0380684168 | O52: 50800 | Q52: 0.000452173228 | S52: 0.004907339937 | U52: 0.001755519231 | W52: 0.001821493983 | Y52: 0.0006827894519 | AB52: 0.000380684168
A53: Amherst | B53: 0 | C53: 0 | D53: 0 | E53: 0 | F53: 0 | G53: 0 | H53: 1700 | I53: 1 | J53: 0 | K53: 0 | L53: 1700 | M53: 0 | N53: 0 | O53: 1700 | Q53: 0 | S53: 0 | U53: 0 | W53: 0.01 | Y53: 0 | AB53: 0
A54: Arundel | B54: 0 | C54: 0 | D54: 0 | E54: 0 | F54: 600 | G54: 1 | H54: 0 | I54: 0 | J54: 0 | K54: 0 | L54: 600 | M54: 0 | N54: 0 | O54: 600 | Q54: 0 | S54: 0 | U54: 0.01 | W54: 0 | Y54: 0 | AB54: 0
A55: Barkmere | B55: 0 | C55: 0 | D55: 0 | E55: 0 | F55: 0 | G55: 0 | H55: 0 | I55: 0 | J55: 0 | K55: 0 | L55: 0 | M55: 100 | N55: 1 | O55: 100 | Q55: 0 | S55: 0 | U55: 0 | W55: 0 | Y55: 0 | AB55: 0.01
A56: Brébeuf | B56: 0 | C56: 0 | D56: 1000 | E56: 1 | F56: 0 | G56: 0 | H56: 0 | I56: 0 | J56: 0 | K56: 0 | L56: 1000 | M56: 0 | N56: 0 | O56: 1000 | Q56: 0 | S56: 0.01 | U56: 0 | W56: 0 | Y56: 0 | AB56: 0
A57: Huberdeau | B57: 0 | C57: 0 | D57: 500 | E57: 0.5330243337 | F57: 0 | G57: 0 | H57: 400 | I57: 0.4669756663 | J57: 0 | K57: 0 | L57: 900 | M57: 0 | N57: 0 | O57: 900 | Q57: 0 | S57: 0.005330243337 | U57: 0 | W57: 0.004669756663 | Y57: 0 | AB57: 0
A58: Ivry-sur-le-Lac | B58: 400 | C58: 1 | D58: 0 | E58: 0 | F58: 0 | G58: 0 | H58: 0 | I58: 0 | J58: 0 | K58: 0 | L58: 400 | M58: 0 | N58: 0 | O58: 400 | Q58: 0.01 | S58: 0 | U58: 0 | W58: 0 | Y58: 0 | AB58: 0
A59: La Conception | B59: 0 | C59: 0 | D59: 600 | E59: 0.3785199738 | F59: 0 | G59: 0 | H59: 900 | I59: 0.6214800262 | J59: 0 | K59: 0 | L59: 1500 | M59: 0 | N59: 0 | O59: 1500 | Q59: 0 | S59: 0.003785199738 | U59: 0 | W59: 0.006214800262 | Y59: 0 | AB59: 0
A60: La Minerve | B60: 0 | C60: 0 | D60: 1400 | E60: 1 | F60: 0 | G60: 0 | H60: 0 | I60: 0 | J60: 0 | K60: 0 | L60: 1400 | M60: 0 | N60: 0 | O60: 1400 | Q60: 0 | S60: 0.01 | U60: 0 | W60: 0 | Y60: 0 | AB60: 0
A61: Labelle | B61: 0 | C61: 0 | D61: 1700 | E61: 0.6043399638 | F61: 0 | G61: 0 | H61: 1100 | I61: 0.3956600362 | J61: 0 | K61: 0 | L61: 2800 | M61: 0 | N61: 0 | O61: 2800 | Q61: 0 | S61: 0.006043399638 | U61: 0 | W61: 0.003956600362 | Y61: 0 | AB61: 0
A62: Lac-Supérieur | B62: 0 | C62: 0 | D62: 1300 | E62: 0.6643002028 | F62: 0 | G62: 0 | H62: 700 | I62: 0.3356997972 | J62: 0 | K62: 0 | L62: 2000 | M62: 0 | N62: 0 | O62: 2000 | Q62: 0 | S62: 0.006643002028 | U62: 0 | W62: 0.003356997972 | Y62: 0 | AB62: 0
A63: Lac-Tremblant-Nord | B63: 0 | C63: 0 | D63: 0 | E63: 0 | F63: 0 | G63: 0 | H63: 0 | I63: 0 | J63: 0 | K63: 0 | L63: 0 | M63: 100 | N63: 1 | O63: 100 | Q63: 0 | S63: 0 | U63: 0 | W63: 0 | Y63: 0 | AB63: 0.01
A64: Lantier | B64: 0 | C64: 0 | D64: 0 | E64: 0 | F64: 0 | G64: 0 | H64: 900 | I64: 1 | J64: 0 | K64: 0 | L64: 900 | M64: 0 | N64: 0 | O64: 900 | Q64: 0 | S64: 0 | U64: 0 | W64: 0.01 | Y64: 0 | AB64: 0
A65: Montcalm | B65: 0 | C65: 0 | D65: 600 | E65: 1 | F65: 0 | G65: 0 | H65: 0 | I65: 0 | J65: 0 | K65: 0 | L65: 600 | M65: 0 | N65: 0 | O65: 600 | Q65: 0 | S65: 0.01 | U65: 0 | W65: 0 | Y65: 0 | AB65: 0
A66: Mont-Tremblant | B66: 1900 | C66: 0.1733078603 | D66: 3300 | E66: 0.3034934498 | F66: 3100 | G66: 0.2857532751 | H66: 500 | I66: 0.04475982533 | J66: 1000 | K66: 0.08688136827 | L66: 9800 | M66: 1200 | N66: 0.1058042213 | O66: 11000 | Q66: 0.001733078603 | S66: 0.003034934498 | U66: 0.002857532751 | W66: 0.0004475982533 | Y66: 0.0008688136827 | AB66: 0.001058042213
A67: Sainte-Agathe-des-Monts | B67: 0 | C67: 0 | D67: 4900 | E67: 0.4393898849 | F67: 1400 | G67: 0.121131032 | H67: 1800 | I67: 0.1593078227 | J67: 2500 | K67: 0.2240656498 | L67: 10600 | M67: 600 | N67: 0.05610561056 | O67: 11200 | Q67: 0 | S67: 0.004393898849 | U67: 0.00121131032 | W67: 0.001593078227 | Y67: 0.002240656498 | AB67: 0.0005610561056
A68: Sainte-Lucie-des-Laurentides | B68: 0 | C68: 0 | D68: 700 | E68: 0.462283737 | F68: 0 | G68: 0 | H68: 800 | I68: 0.537716263 | J68: 0 | K68: 0 | L68: 1400 | M68: 0 | N68: 0 | O68: 1400 | Q68: 0 | S68: 0.00462283737 | U68: 0 | W68: 0.00537716263 | Y68: 0 | AB68: 0
A69: Mont-Blanc | B69: 0 | C69: 0 | D69: 2700 | E69: 0.7272486772 | F69: 600 | G69: 0.1492063492 | H69: 500 | I69: 0.1235449735 | J69: 0 | K69: 0 | L69: 3800 | M69: 0 | N69: 0 | O69: 3800 | Q69: 0 | S69: 0.007272486772 | U69: 0.001492063492 | W69: 0.001235449735 | Y69: 0 | AB69: 0
A70: Val-David | B70: 0 | C70: 0 | D70: 3000 | E70: 0.5397625045 | F70: 2600 | G70: 0.4602374955 | H70: 0 | I70: 0 | J70: 0 | K70: 0 | L70: 5600 | M70: 0 | N70: 0 | O70: 5600 | Q70: 0 | S70: 0.005397625045 | U70: 0.004602374955 | W70: 0 | Y70: 0 | AB70: 0
A71: Val-des-Lacs | B71: 0 | C71: 0 | D71: 800 | E71: 1 | F71: 0 | G71: 0 | H71: 0 | I71: 0 | J71: 0 | K71: 0 | L71: 800 | M71: 0 | N71: 0 | O71: 800 | Q71: 0 | S71: 0.01 | U71: 0 | W71: 0 | Y71: 0 | AB71: 0
A72: Val-Morin | B72: 0 | C72: 0 | D72: 2400 | E72: 0.7710534742 | F72: 700 | G72: 0.2289465258 | H72: 0 | I72: 0 | J72: 0 | K72: 0 | L72: 3100 | M72: 0 | N72: 0 | O72: 3100 | Q72: =C72/100 -> 0 | S72: =E72/100 -> 0.007710534742 | U72: =G72/100 -> 0.002289465258 | W72: =I72/100 -> 0 | Y72: =K72/100 -> 0 | AB72: =N72/100 -> 0
A73: MRC Antoine-Labelle | B73: 1800 | C73: 0.05019612146 | D73: 18100 | E73: 0.4977644897 | F73: 5100 | G73: 0.1411525907 | H73: 5000 | I73: 0.1373398799 | J73: 3700 | K73: 0.1017637216 | L73: 33800 | M73: 2600 | N73: 0.07178319664 | O73: 36500 | Q73: 0.0005019612146 | S73: 0.004977644897 | U73: 0.001411525907 | W73: 0.001373398799 | Y73: 0.001017637216 | AB73: 0.0007178319664
A74: Chute-Saint-Philippe | B74: 0 | C74: 0 | D74: 500 | E74: 0.4494706449 | F74: 0 | G74: 0 | H74: 600 | I74: 0.5505293551 | J74: 0 | K74: 0 | L74: 1000 | M74: 0 | N74: 0 | O74: 1000 | Q74: 0 | S74: 0.004494706449 | U74: 0 | W74: 0.005505293551 | Y74: 0 | AB74: 0
A75: Ferme-Neuve | B75: 0 | C75: 0 | D75: 1500 | E75: 0.5478645066 | F75: 0 | G75: 0 | H75: 800 | I75: 0.2923416789 | J75: 400 | K75: 0.1597938144 | L75: 2700 | M75: 0 | N75: 0 | O75: 2700 | Q75: 0 | S75: 0.005478645066 | U75: 0 | W75: 0.002923416789 | Y75: 0.001597938144 | AB75: 0
A76: Kiamika | B76: 0 | C76: 0 | D76: 800 | E76: 1 | F76: 0 | G76: 0 | H76: 0 | I76: 0 | J76: 0 | K76: 0 | L76: 800 | M76: 0 | N76: 0 | O76: 800 | Q76: 0 | S76: 0.01 | U76: 0 | W76: 0 | Y76: 0 | AB76: 0
A77: La Macaza | B77: 0 | C77: 0 | D77: 0 | E77: 0 | F77: 500 | G77: 0.415904936 | H77: 0 | I77: 0 | J77: 0 | K77: 0 | L77: 500 | M77: 600 | N77: 0.584095064 | O77: 1100 | Q77: 0 | S77: 0 | U77: 0.00415904936 | W77: 0 | Y77: 0 | AB77: 0.00584095064
A78: Lac-des-Écorces | B78: 0 | C78: 0 | D78: 800 | E78: 0.2908145581 | F78: 1000 | G78: 0.3410745234 | H78: 500 | I78: 0.1816291161 | J78: 500 | K78: 0.1864818024 | L78: 2900 | M78: 0 | N78: 0 | O78: 2900 | Q78: 0 | S78: 0.002908145581 | U78: 0.003410745234 | W78: 0.001816291161 | Y78: 0.001864818024 | AB78: 0
A79: Lac-du-Cerf | B79: 0 | C79: 0 | D79: 0 | E79: 0 | F79: 0 | G79: 0 | H79: 400 | I79: 1 | J79: 0 | K79: 0 | L79: 400 | M79: 0 | N79: 0 | O79: 400 | Q79: 0 | S79: 0 | U79: 0 | W79: 0.01 | Y79: 0 | AB79: 0
A80: Lac-Saguay | B80: 0 | C80: 0 | D80: 500 | E80: 1 | F80: 0 | G80: 0 | H80: 0 | I80: 0 | J80: 0 | K80: 0 | L80: 500 | M80: 0 | N80: 0 | O80: 500 | Q80: 0 | S80: 0.01 | U80: 0 | W80: 0 | Y80: 0 | AB80: 0
A81: Lac-Saint-Paul | B81: 0 | C81: 0 | D81: 500 | E81: 1 | F81: 0 | G81: 0 | H81: 0 | I81: 0 | J81: 0 | K81: 0 | L81: 500 | M81: 0 | N81: 0 | O81: 500 | Q81: 0 | S81: 0.01 | U81: 0 | W81: 0 | Y81: 0 | AB81: 0
A82: L'Ascension | B82: 0 | C82: 0 | D82: 400 | E82: 0.4393770857 | F82: 0 | G82: 0 | H82: 500 | I82: 0.5606229143 | J82: 0 | K82: 0 | L82: 900 | M82: 0 | N82: 0 | O82: 900 | Q82: 0 | S82: 0.004393770857 | U82: 0 | W82: 0.005606229143 | Y82: 0 | AB82: 0
A83: Mont-Laurier | B83: 1000 | C83: 0.07087447109 | D83: 6700 | E83: 0.4700987306 | F83: 2200 | G83: 0.158180536 | H83: 800 | I83: 0.05620592384 | J83: 1500 | K83: 0.1051480959 | L83: 12200 | M83: 2000 | N83: 0.1394922426 | O83: 14200 | Q83: 0.0007087447109 | S83: 0.004700987306 | U83: 0.00158180536 | W83: 0.0005620592384 | Y83: 0.001051480959 | AB83: 0.001394922426
A84: Mont-Saint-Michel | B84: 0 | C84: 0 | D84: 0 | E84: 0 | F84: 0 | G84: 0 | H84: 600 | I84: 1 | J84: 0 | K84: 0 | L84: 600 | M84: 0 | N84: 0 | O84: 600 | Q84: 0 | S84: 0 | U84: 0 | W84: 0.01 | Y84: 0 | AB84: 0
A85: Nominingue | B85: 0 | C85: 0 | D85: 1900 | E85: 0.8527716186 | F85: 0 | G85: 0 | H85: 0 | I85: 0 | J85: 300 | K85: 0.1472283814 | L85: 2300 | M85: 0 | N85: 0 | O85: 2300 | Q85: 0 | S85: 0.008527716186 | U85: 0 | W85: 0 | Y85: 0.001472283814 | AB85: 0
A86: Notre-Dame-de-Pontmain | B86: 0 | C86: 0 | D86: 0 | E86: 0 | F86: 0 | G86: 0 | H86: 800 | I86: 1 | J86: 0 | K86: 0 | L86: 800 | M86: 0 | N86: 0 | O86: 800 | Q86: 0 | S86: 0 | U86: 0 | W86: 0.01 | Y86: 0 | AB86: 0
A87: Notre-Dame-du-Laus | B87: 0 | C87: 0 | D87: 1700 | E87: 1 | F87: 0 | G87: 0 | H87: 0 | I87: 0 | J87: 0 | K87: 0 | L87: 1700 | M87: 0 | N87: 0 | O87: 1700 | Q87: 0 | S87: 0.01 | U87: 0 | W87: 0 | Y87: 0 | AB87: 0
A88: Rivière-Rouge | B88: 800 | C88: 0.1781472684 | D88: 2000 | E88: 0.4282012524 | F88: 900 | G88: 0.1960699633 | H88: 0 | I88: 0 | J88: 900 | K88: 0.1975815159 | L88: 4600 | M88: 0 | N88: 0 | O88: 4600 | Q88: 0.001781472684 | S88: 0.004282012524 | U88: 0.001960699633 | W88: 0 | Y88: 0.001975815159 | AB88: 0
A89: Saint-Aimé-du-Lac-des-îles | B89: 0 | C89: 0 | D89: 800 | E89: 1 | F89: 0 | G89: 0 | H89: 0 | I89: 0 | J89: 0 | K89: 0 | L89: 800 | M89: 0 | N89: 0 | O89: 800 | Q89: 0 | S89: 0.01 | U89: 0 | W89: 0 | Y89: 0 | AB89: 0
A90: Sainte-Anne-du-Lac | B90: 0 | C90: 0 | D90: 0 | E90: 0 | F90: 600 | G90: 1 | H90: 0 | I90: 0 | J90: 0 | K90: 0 | L90: 600 | M90: 0 | N90: 0 | O90: 600 | Q90: 0 | S90: 0 | U90: 0.01 | W90: 0 | Y90: 0 | AB90: 0
A91: Territoires non organisés | B91: ND | C91: ND | D91: ND | E91: ND | F91: ND | G91: ND | H91: ND | I91: ND | J91: ND | K91: ND | L91: ND | M91: ND | N91: ND | O91: ND
A93: Défavorisation matérielle 2021 MRC ---- RÉGIONAL ----
A94: Répartition de la population (N, %) par quintile de défavorisation matérielle 2021 Région des Laurentides (variation régionale 2021)
B95: Conditions plus favorables | J95: Conditions plus défavorables | L95: Population avec indice | M95: Population sans indice | O95: Population totale
B96: Quintile 1 | D96: Quintile 2 | F96: Quintile 3 | H96: Quintile 4 | J96: Quintile 5
B97: N | C97: % | D97: N | E97: % | F97: N | G97: % | L97: N | M97: N | N97: % | O97: N
Q98: 0.1270072693 | S98: 0.2618177338 | U98: 0.2897449587 | W98: 0.1690007803 | Y98: 0.1524703273 | AB98: 0.007
Q99: 0.168657131 | S99: 0.1925427024 | U99: 0.3170393001 | W99: 0.1573855483 | Y99: 0.1643753182 | AB99: 0.01822395928
Q100: 0.2643461363 | S100: 0.3541380887 | U100: 0.2701188843 | W100: 0.08304755373 | Y100: 0.02834933699 | AB100: 0
Q101: 0 | S101: 0.5261148611 | U101: 0.1802589355 | W101: 0.195584818 | Y101: 0.09804138542 | AB101: 0
Q102: 0 | S102: 0 | U102: 0.0726509023 | W102: 0.234598631 | Y102: 0.6927504667 | AB102: 0
Q103: 0 | S103: 0.2213249589 | U103: 0.570061313 | W103: 0.2086137281 | Y103: 0 | AB103: 0
Q104: 0.1186174391 | S104: 0 | U104: 0.4176485991 | W104: 0.4637339618 | Y104: 0 | AB104: 0.001307531381
Q105: 0 | S105: 0 | U105: 0.393831554 | W105: 0 | Y105: 0.606168446 | AB105: 0
Q106: 0.39 | S106: 0.263 | U106: 0.126 | W106: 0.12 | Y106: 0.1 | AB106: 0.05038732551
Q107: 0.330270793 | S107: 0.2337821753 | U107: 0.1864305907 | W107: 0.08845409909 | Y107: 0.1610623419 | AB107: 0
Q108: 0.2600765193 | S108: 0.241302607 | U108: 0.1259008809 | W108: 0.2348518551 | Y108: 0.1378681377 | AB108: 0.1350956174
Q109: 0.3974286185 | S109: 0.361073973 | U109: 0.1152726141 | W109: 0.08791047783 | Y109: 0.03831431659 | AB109: 0.03977982168
Q110: 0.8337185892 | S110: 0.1662814108 | U110: 0 | W110: 0 | Y110: 0 | AB110: 0.03918899556
Q111: 0.8065654405 | S111: 0.1486313088 | U111: 0.04480325064 | W111: 0 | Y111: 0 | AB111: 0
Q112: 0.3294357434 | S112: 0.3532503755 | U112: 0.1593005793 | W112: 0.1580133019 | Y112: 0 | AB112: 0.03258613533
Q113: 0 | S113: 0.0657584291 | U113: 0.2121927087 | W113: 0.3062637948 | Y113: 0.4157850674 | AB113: 0.08889813466
Q114: 0.157 | S114: 0.275 | U114: 0.314 | W114: 0.229 | Y114: 0.025 | AB114: 0
Q115: 0.157 | S115: 0.275 | U115: 0.314 | W115: 0.229 | Y115: 0.025 | AB115: 0
Q116: 0.09986404647 | S116: 0.1697359206 | U116: 0.2307914143 | W116: 0.3043711119 | Y116: 0.1951963087 | AB116: 0.042
Q117: 0 | S117: 0.23 | U117: 0.45 | W117: 0.32 | Y117: 0 | AB117: 0
Q118: 0.09771842288 | S118: 0.135 | U118: 0.191 | W118: 0.293 | Y118: 0.283 | AB118: 0.09153148791
Q119: 0 | S119: 0.096 | U119: 0.069 | W119: 0.589 | Y119: 0.246 | AB119: 0
Q120: 0.358714044 | S120: 0.3 | U120: 0.244 | W120: 0.046 | Y120: 0.053 | AB120: 0
Q121: 0.09382201251 | S121: 0.263 | U121: 0.405 | W121: 0.239 | Y121: 0 | AB121: 0
Q122: 0 | S122: 0.017 | U122: 0.099 | W122: 0.334 | Y122: 0.549 | AB122: 0.03544413227
Q123: 0 | S123: 0 | U123: 0 | W123: 0.4543046358 | Y123: 0.5456953642 | AB123: 0
Q124: 0 | S124: 0 | U124: 0 | W124: 0.3192760799 | Y124: 0.6807239201 | AB124: 0.08925517027
Q125: 0 | S125: 0 | U125: 0.4700630252 | W125: 0 | Y125: 0.5299369748 | AB125: 0
Q126: 0 | S126: 0 | U126: 0.5220165922 | W126: 0.4779834078 | Y126: 0 | AB126: 0
Q127: 0 | S127: 1 | U127: 0 | W127: 0 | Y127: 0 | AB127: 0
Q128: 0 | S128: 0 | U128: 0.09463633811 | W128: 0.3614153328 | Y128: 0.5439483291 | AB128: 0
Q129: 0 | S129: 0 | U129: 0 | W129: 0.4121813031 | Y129: 0.5878186969 | AB129: 0
Q130: 0 | S130: 0 | U130: 0.4155464641 | W130: 0 | Y130: 0.5844535359 | AB130: 0
Q131: 0 | S131: 0 | U131: 0 | W131: 1 | Y131: 0 | AB131: 0
Q132: 0.428 | S132: 0.225 | U132: 0.185 | W132: 0.097 | Y132: 0.065 | AB132: 0.02106168064
Q133: 0 | S133: 1 | U133: 0 | W133: 0 | Y133: 0 | AB133: 0
Q134: 0 | S134: 0 | U134: 0.5354159099 | W134: 0 | Y134: 0.4645840901 | AB134: 0.003619254434
Q135: 0.1411873984 | S135: 0.3520396316 | U135: 0.2154191501 | W135: 0.2490904869 | Y135: 0.04226333308 | AB135: 0
Q136: 1 | S136: 0 | U136: 0 | W136: 0 | Y136: 0 | AB136: 0
Q137: 0.7956244808 | S137: 0.2043755192 | U137: 0 | W137: 0 | Y137: 0 | AB137: 0
Q138: 0.7037076611 | S138: 0.234213057 | U138: 0.06207928197 | W138: 0 | Y138: 0 | AB138: 0.0852311602
Q139: 0.4598311218 | S139: 0.2053075995 | U139: 0.3348612786 | W139: 0 | Y139: 0 | AB139: 0
Q140: 0 | S140: 0 | U140: 0 | W140: 0 | Y140: 1 | AB140: 0
Q141: 0 | S141: 0.5162925416 | U141: 0 | W141: 0 | Y141: 0.4837074584 | AB141: 0
Q142: 0.3992590482 | S142: 0 | U142: 0.3875748076 | W142: 0.2131661442 | Y142: 0 | AB142: 0
Q143: 0.1073460821 | S143: 0.084 | U143: 0.21 | W143: 0.259 | Y143: 0.339 | AB143: 0.066
Q144: 0 | S144: 0 | U144: 0.5278745645 | W144: 0.4721254355 | Y144: 0 | AB144: 0
Q145: 0.1407362213 | S145: 0.2249339028 | U145: 0.4077689648 | W145: 0.2265609111 | Y145: 0 | AB145: 0
Q146: 0 | S146: 0 | U146: 0 | W146: 0 | Y146: 1 | AB146: 0
Q147: 0 | S147: 0 | U147: 0 | W147: 0 | Y147: 1 | AB147: 0
Q148: 0.1509712598 | S148: 0 | U148: 0.1277973418 | W148: 0.1905032375 | Y148: 0.5307281609 | AB148: 0.1389024748
Q149: 0 | S149: 0 | U149: 1 | W149: 0 | Y149: 0 | AB149: 0
Q150: 0.1391826236 | S150: 0 | U150: 0 | W150: 0.7284938554 | Y150: 0.132323521 | AB150: 0
Q151: 0 | S151: 0 | U151: 1 | W151: 0 | Y151: 0 | AB151: 0
Q152: 0 | S152: 0 | U152: 0 | W152: 0 | Y152: 1 | AB152: 0
Q153: 1 | S153: 0 | U153: 0 | W153: 0 | Y153: 0 | AB153: 0
Q154: 0 | S154: 0 | U154: 0 | W154: 1 | Y154: 0 | AB154: 0
Q155: 0 | S155: 0 | U155: 0 | W155: 0 | Y155: 1 | AB155: 0
Q156: 0 | S156: 0 | U156: 0.4159836066 | W156: 0 | Y156: 0.5840163934 | AB156: 0
Q157: 0 | S157: 0.2701271186 | U157: 0.7298728814 | W157: 0 | Y157: 0 | AB157: 0
Q158: 0 | S158: 0 | U158: 0 | W158: 0 | Y158: 1 | AB158: 0
Q159: 0.1904525112 | S159: 0.1721780209 | U159: 0.09087518647 | W159: 0.3412481353 | Y159: 0.2052461462 | AB159: 0.1660792038
Q160: 0 | S160: 0.4181002244 | U160: 0.5818997756 | W160: 0 | Y160: 0 | AB160: 0
Q161: 0 | S161: 0 | U161: 0.253532499 | W161: 0.3237787646 | Y161: 0.4226887364 | AB161: 0
Q162: 0 | S162: 1 | U162: 0 | W162: 0 | Y162: 0 | AB162: 0
Q163: 0 | S163: 0 | U163: 0 | W163: 0 | Y163: 1 | AB163: 0
Q164: 0 | S164: 0.017 | U164: 0.077 | W164: 0.149 | Y164: 0.758 | AB164: 0.08390318645
Q165: 0 | S165: 0 | U165: 0 | W165: 0 | Y165: 1 | AB165: 0
Q166: 0 | S166: 0 | U166: 0 | W166: 0 | Y166: 1 | AB166: 0
Q167: 0 | S167: 0 | U167: 0 | W167: 0 | Y167: 1 | AB167: 0
Q168: 0 | S168: 0 | U168: 0 | W168: 0 | Y168: 1 | AB168: 0
Q169: 0 | S169: 0 | U169: 0 | W169: 0 | Y169: 1 | AB169: 0
Q170: 0 | S170: 0 | U170: 0.2868507253 | W170: 0.16612073 | Y170: 0.5470285447 | AB170: 0
Q171: 0 | S171: 0 | U171: 0.167283665 | W171: 0.126561777 | Y171: 0.7061545581 | AB171: 0
Q172: 0 | S172: 0 | U172: 0 | W172: 1 | Y172: 0 | AB172: 0.618
Q173: 0 | S173: 0 | U173: 0 | W173: 0 | Y173: 1 | AB173: 0
Q174: 0 | S174: 0 | U174: 0 | W174: 0 | Y174: 1 | AB174: 0
Q175: 0 | S175: 0 | U175: 0 | W175: 0.4713375796 | Y175: 0.5286624204 | AB175: 0
Q176: 0 | S176: 0 | U176: 0.25164594 | W176: 0 | Y176: 0.74835406 | AB176: 0
Q177: 0 | S177: 0.04530526316 | U177: 0.03882105263 | W177: 0.2535578947 | Y177: 0.6623157895 | AB177: 0.159
Q178: 0 | S178: 0 | U178: 0 | W178: 0 | Y178: 1 | AB178: 0
Q179: 0 | S179: 0 | U179: 0 | W179: 0 | Y179: 1 | AB179: 0
Q180: 0 | S180: 0 | U180: 0 | W180: 0 | Y180: 1 | AB180: 0
Q181: 0 | S181: 0 | U181: 0 | W181: 0 | Y181: 1 | AB181: 0
Q182: 0 | S182: 0 | U182: 0 | W182: 0 | Y182: 0 | AB182: 1
A184: Défavorisation sociale 2021 MRC ---- RÉGIONAL ----
A185: Répartition de la population (N, %) par quintile de défavorisation sociale 2021 Région des Laurentides (variation régionale 2021)
B186: Conditions plus favorables | J186: Conditions plus défavorables | L186: Population avec indice | M186: Population sans indice | O186: Population totale
B187: Quintile 1 | D187: Quintile 2 | F187: Quintile 3 | H187: Quintile 4 | J187: Quintile 5
B188: N | C188: % | D188: N | E188: % | F188: N | G188: % | L188: N | M188: N | N188: % | O188: N
Q189: 0.2505236355 | S189: 0.2036223254 | U189: 0.2111585691 | W189: 0.1425828576 | Y189: 0.1921434145 | AB189: 0.007
Q190: 0.333 | S190: 0.091 | U190: 0.15 | W190: 0.172 | Y190: 0.253 | AB190: 0.01822395928
Q191: 0.148 | S191: 0.167 | U191: 0.158 | W191: 0.224 | Y191: 0.302 | AB191: 0
Q192: 0.096 | S192: 0.45 | U192: 0.387 | W192: 0.046 | Y192: 0.021 | AB192: 0
Q193: 0.16 | S193: 0.355 | U193: 0.084 | W193: 0.074 | Y193: 0.327 | AB193: 0
Q194: 0.532 | S194: 0.144 | U194: 0.324 | W194: 0 | Y194: 0 | AB194: 0
Q195: 0.165 | S195: 0.417 | U195: 0.418 | W195: 0 | Y195: 0 | AB195: 0.001307531381
Q196: 0.279 | S196: 0 | U196: 0 | W196: 0.721 | Y196: 0 | AB196: 0
Q197: 0.2970500111 | S197: 0.1642904543 | U197: 0.1454885479 | W197: 0.1594709995 | Y197: 0.2336999873 | AB197: 0.05038732551
Q198: 0.1965481327 | S198: 0.198407975 | U198: 0.1719610177 | W198: 0.1777637256 | Y198: 0.2553191489 | AB198: 0
Q199: 0.09173414005 | S199: 0.06811104191 | U199: 0.0446214076 | W199: 0.1545511166 | Y199: 0.6409822938 | AB199: 0.1350956174
Q200: 0.3201589714 | S200: 0.2238237395 | U200: 0.1322136957 | W200: 0.2029266863 | Y200: 0.120876907 | AB200: 0.03977982168
Q201: 0.490492879 | S201: 0.08865856387 | U201: 0.1414510476 | W201: 0.1834315114 | Y201: 0.09596599806 | AB201: 0.03918899556
Q202: 0.6831693755 | S202: 0.1949315654 | U202: 0.07720273738 | W202: 0.04469632164 | Y202: 0 | AB202: 0
... 974 more rows

Sheet Donnees_RLS_OLD
A1: Défavorisation combinée 2016 RLS
A3: Répartition de la population (N, %) par profil de défavorisation combinée 2016 Région des Laurentides (variation régionale 2016)
B4: Conditions plus favorables | J4: Conditions plus défavorables | L4: Population avec indice | M4: Population sans indice | O4: Population totale
B5: Profil 1 | D5: Profil 2 | F5: Profil 3 | H5: Profil 4 | J5: Profil 5
B6: matériellement ET socialement plus favorables | D6: moyennes matériellement Et socialement | F6: socialement plus défavorables (pas matériellement) | H6: matériellement plus défavorables (pas socialement) | J6: matériellement ET socialement plus défavorables
B7: N | C7: % | D7: N | E7: % | F7: N | G7: % | H7: N | I7: % | J7: N | K7: % | L7: N | M7: N | N7: % | O7: N
A8: 1511 - RLS d'Antoine-Labelle | B8: 0 | C8: 0 | D8: 2490 | E8: 7.696834541 | F8: 540 | G8: 1.666356935 | H8: 23710 | I8: 73.44050053 | J8: 5550 | K8: 17.196308 | L8: 32290 | M8: 2960 | N8: 8.390318645 | O8: 35240
A9: Notre-Dame-du-Laus | B9: 0 | C9: 0 | D9: 0 | E9: 0 | F9: 0 | G9: 0 | H9: 1560 | I9: 100 | J9: 0 | K9: 0 | L9: 1560 | M9: 0 | N9: 0 | O9: 1560
A10: Notre-Dame-de-Pontmain | B10: 0 | C10: 0 | D10: 0 | E10: 0 | F10: 0 | G10: 0 | H10: 780 | I10: 100 | J10: 0 | K10: 0 | L10: 780 | M10: 0 | N10: 0 | O10: 780
A11: Lac-du-Cerf | B11: 0 | C11: 0 | D11: 0 | E11: 0 | F11: 0 | G11: 0 | H11: 440 | I11: 100 | J11: 0 | K11: 0 | L11: 440 | M11: 0 | N11: 0 | O11: 440
A12: Saint-Aimé-du-lac-des-îles | B12: 0 | C12: 0 | D12: 0 | E12: 0 | F12: 0 | G12: 0 | H12: 790 | I12: 100 | J12: 0 | K12: 0 | L12: 790 | M12: 0 | N12: 0 | O12: 790
A13: Kiamika | B13: 0 | C13: 0 | D13: 0 | E13: 0 | F13: 0 | G13: 0 | H13: 760 | I13: 100 | J13: 0 | K13: 0 | L13: 760 | M13: 0 | N13: 0 | O13: 760
A14: Nominingue | B14: 0 | C14: 0 | D14: 610 | E14: 28.68507253 | F14: 0 | G14: 0 | H14: 1520 | I14: 71.31492747 | J14: 0 | K14: 0 | L14: 2140 | M14: 0 | N14: 0 | O14: 2140
A15: Rivière-Rouge | B15: 0 | C15: 0 | D15: 720 | E15: 16.7283665 | F15: 0 | G15: 0 | H15: 2360 | I15: 54.67376215 | J15: 1240 | K15: 28.59787136 | L15: 4320 | M15: 0 | N15: 0 | O15: 4320
A16: La Macaza | B16: 0 | C16: 0 | D16: 0 | E16: 0 | F16: 0 | G16: 0 | H16: 0 | I16: 0 | J16: 440 | K16: 100 | L16: 440 | M16: 710 | N16: 61.82608696 | O16: 1150
A17: L'Ascension | B17: 0 | C17: 0 | D17: 0 | E17: 0 | F17: 0 | G17: 0 | H17: 790 | I17: 100 | J17: 0 | K17: 0 | L17: 790 | M17: 0 | N17: 0 | O17: 790
A18: Lac-Saguay | B18: 0 | C18: 0 | D18: 0 | E18: 0 | F18: 0 | G18: 0 | H18: 460 | I18: 100 | J18: 0 | K18: 0 | L18: 460 | M18: 0 | N18: 0 | O18: 460
A19: Chute-Saint-Philippe | B19: 0 | C19: 0 | D19: 0 | E19: 0 | F19: 0 | G19: 0 | H19: 940 | I19: 100 | J19: 0 | K19: 0 | L19: 940 | M19: 0 | N19: 0 | O19: 940
A20: Lac-des-Écorces | B20: 0 | C20: 0 | D20: 690 | E20: 25.164594 | F20: 0 | G20: 0 | H20: 1600 | I20: 58.37600585 | J20: 450 | K20: 16.45940015 | L20: 2730 | M20: 0 | N20: 0 | O20: 2730
A21: Mont-Laurier | B21: 0 | C21: 0 | D21: 460 | E21: 3.882105263 | F21: 540 | G21: 4.530526316 | H21: 7450 | I21: 62.72842105 | J21: 3430 | K21: 28.85894737 | L21: 11880 | M21: 2240 | N21: 15.87560215 | O21: 14120
A22: Ferme-Neuve | B22: 0 | C22: 0 | D22: 0 | E22: 0 | F22: 0 | G22: 0 | H22: 2710 | I22: 100 | J22: 0 | K22: 0 | L22: 2710 | M22: 0 | N22: 0 | O22: 2710
A23: Lac-Saint-Paul | B23: 0 | C23: 0 | D23: 0 | E23: 0 | F23: 0 | G23: 0 | H23: 480 | I23: 100 | J23: 0 | K23: 0 | L23: 480 | M23: 0 | N23: 0 | O23: 480
A24: Mont-Saint-Michel | B24: 0 | C24: 0 | D24: 0 | E24: 0 | F24: 0 | G24: 0 | H24: 500 | I24: 100 | J24: 0 | K24: 0 | L24: 500 | M24: 0 | N24: 0 | O24: 500
A25: Sainte-Anne-du-Lac | B25: 0 | C25: 0 | D25: 0 | E25: 0 | F25: 0 | G25: 0 | H25: 580 | I25: 100 | J25: 0 | K25: 0 | L25: 580 | M25: 0 | N25: 100 | O25: 580
A26: Territoires non organisés | B26: 0 | C26: 0 | D26: 0 | E26: 0 | F26: 0 | G26: 0 | H26: 0 | I26: 0 | J26: 0 | K26: 0 | L26: 0 | M26: 10 | N26: 0 | O26: 10
A27: 1512 - RLS des Laurentides | B27: 550 | C27: 1.287313433 | D27: 9300 | E27: 21.68610075 | F27: 7370 | G27: 17.17583955 | H27: 13470 | I27: 31.40158582 | J27: 12200 | K27: 28.44916045 | L27: 42880 | M27: 3020 | N27: 6.583591129 | O27: 45900
A28: Val-Morin | B28: 0 | C28: 0 | D28: 880 | E28: 30.73170732 | F28: 630 | G28: 22.05574913 | H28: 0 | I28: 0 | J28: 1360 | K28: 47.21254355 | L28: 2870 | M28: 0 | N28: 0 | O28: 2870
A29: Val-David | B29: 0 | C29: 0 | D29: 930 | E29: 18.95464714 | F29: 2870 | G29: 58.38926174 | H29: 0 | I29: 0 | J29: 1110 | K29: 22.65609111 | L29: 4920 | M29: 0 | N29: 0 | O29: 4920
A30: Lanthier | B30: 0 | C30: 0 | D30: 0 | E30: 0 | F30: 0 | G30: 0 | H30: 830 | I30: 100 | J30: 0 | K30: 0 | L30: 830 | M30: 0 | N30: 0 | O30: 830
A31: Sainte-Lucie-des-Laurentides | B31: 0 | C31: 0 | D31: 0 | E31: 0 | F31: 0 | G31: 0 | H31: 1260 | I31: 100 | J31: 0 | K31: 0 | L31: 1260 | M31: 0 | N31: 0 | O31: 1260
A32: Sainte-Agathe-des-Monts | B32: 0 | C32: 0 | D32: 480 | E32: 5.44132682 | F32: 1980 | G32: 22.43553334 | H32: 2340 | I32: 26.62728615 | J32: 4010 | K32: 45.49585369 | L32: 8800 | M32: 1420 | N32: 13.89024748 | O32: 10220
A33: Ivry-sur-le-Lac | B33: 0 | C33: 0 | D33: 390 | E33: 100 | F33: 0 | G33: 0 | H33: 0 | I33: 0 | J33: 0 | K33: 0 | L33: 390 | M33: 0 | N33: 0 | O33: 390
A34: St-Faustin-Lac-Carré | B34: 0 | C34: 0 | D34: 490 | E34: 13.91826236 | F34: 0 | G34: 0 | H34: 2500 | I34: 71.42040583 | J34: 510 | K34: 14.66133181 | L34: 3500 | M34: 0 | N34: 0 | O34: 3500
A35: Barkmere | B35: 0 | C35: 0 | D35: 0 | E35: 0 | F35: 60 | G35: 100 | H35: 0 | I35: 0 | J35: 0 | K35: 0 | L35: 60 | M35: 0 | N35: 0 | O35: 60
A36: Montcalm | B36: 0 | C36: 0 | D36: 0 | E36: 0 | F36: 0 | G36: 0 | H36: 630 | I36: 100 | J36: 0 | K36: 0 | L36: 630 | M36: 0 | N36: 0 | O36: 630
A37: Arundel | B37: 0 | C37: 0 | D37: 0 | E37: 0 | F37: 560 | G37: 100 | H37: 0 | I37: 0 | J37: 0 | K37: 0 | L37: 560 | M37: 0 | N37: 0 | O37: 560
A38: Huberdeau | B38: 0 | C38: 0 | D38: 0 | E38: 0 | F38: 0 | G38: 0 | H38: 470 | I38: 54.60829493 | J38: 390 | K38: 45.39170507 | L38: 870 | M38: 0 | N38: 0 | O38: 870
A39: Amherst | B39: 0 | C39: 0 | D39: 0 | E39: 0 | F39: 0 | G39: 0 | H39: 830 | I39: 56.13207547 | J39: 650 | K39: 43.86792453 | L39: 1480 | M39: 0 | N39: 0 | O39: 1480
A40: Brébeuf | B40: 0 | C40: 0 | D40: 410 | E40: 41.59836066 | F40: 0 | G40: 0 | H40: 570 | I40: 58.40163934 | J40: 0 | K40: 0 | L40: 980 | M40: 0 | N40: 0 | O40: 980
A41: Lac-Supérieur | B41: 510 | C41: 27.01271186 | D41: 1380 | E41: 72.98728814 | F41: 0 | G41: 0 | H41: 0 | I41: 0 | J41: 0 | K41: 0 | L41: 1890 | M41: 0 | N41: 0 | O41: 1890
A42: Val-des-Lacs | B42: 0 | C42: 0 | D42: 0 | E42: 0 | F42: 0 | G42: 0 | H42: 740 | I42: 100 | J42: 0 | K42: 0 | L42: 740 | M42: 0 | N42: 0 | O42: 740
A43: Mont-Tremblant | B43: 0 | C43: 0 | D43: 2380 | E43: 29.62456489 | F43: 1270 | G43: 15.72600696 | H43: 1280 | I43: 15.86275485 | J43: 3120 | K43: 38.7866733 | L43: 8040 | M43: 1600 | N43: 16.60792038 | O43: 9650
A44: La Conception | B44: 0 | C44: 0 | D44: 1340 | E44: 100 | F44: 0 | G44: 0 | H44: 0 | I44: 0 | J44: 0 | K44: 0 | L44: 1340 | M44: 0 | N44: 0 | O44: 1340
A45: Labelle | B45: 0 | C45: 0 | D45: 630 | E45: 25.3532499 | F45: 0 | G45: 0 | H45: 800 | I45: 32.37787646 | J45: 1050 | K45: 42.26887364 | L45: 2480 | M45: 0 | N45: 0 | O45: 2480
A46: Lac-Tremblant-Nord | B46: 40 | C46: 100 | D46: 0 | E46: 0 | F46: 0 | G46: 0 | H46: 0 | I46: 0 | J46: 0 | K46: 0 | L46: 40 | M46: 0 | N46: 0 | O46: 40
A47: La Minerve | B47: 0 | C47: 0 | D47: 0 | E47: 0 | F47: 0 | G47: 0 | H47: 1210 | I47: 100 | J47: 0 | K47: 0 | L47: 1210 | M47: 0 | N47: 0 | O47: 1210
A48: 1513- RLS des Pays-d'en-Haut | B48: 2500 | C48: 6.093426028 | D48: 10180 | E48: 24.82253933 | F48: 21690 | G48: 52.90889133 | H48: 840 | I48: 2.04903037 | J48: 5790 | K48: 14.12611294 | L48: 41000 | M48: 880 | N48: 2.106168064 | O48: 532260
A49: Estérel | B49: 200 | C49: 100 | D49: 0 | E49: 0 | F49: 0 | G49: 0 | H49: 0 | I49: 0 | J49: 0 | K49: 0 | L49: 200 | M49: 0 | N49: 0 | O49: 200
A50: Sainte-Marguerite-du-Lac-Masson | B50: 0 | C50: 0 | D50: 840 | E50: 30.43952052 | F50: 640 | G50: 23.10207047 | H50: 0 | I50: 0 | J50: 1280 | K50: 46.45840901 | L50: 2750 | M50: 10 | N50: 0.3619254434 | O50: 2760
A51: Sainte-Adèle | B51: 0 | C51: 0 | D51: 3090 | E51: 23.91051939 | F51: 6070 | G51: 46.95409861 | H51: 0 | I51: 0 | J51: 3760 | K51: 29.135382 | L51: 12920 | M51: 0 | N51: 0 | O51: 12920
A52: Piedmont | B52: 0 | C52: 0 | D52: 0 | E52: 0 | F52: 2950 | G52: 100 | H52: 0 | I52: 0 | J52: 0 | K52: 0 | L52: 2950 | M52: 0 | N52: 0 | O52: 2950
A53: Sainte-Anne-des-Lacs | B53: 610 | C53: 16.86513431 | D53: 2270 | E53: 62.91885904 | F53: 730 | G53: 20.21600665 | H53: 0 | I53: 0 | J53: 0 | K53: 0 | L53: 3610 | M53: 0 | N53: 0 | O53: 3610
A54: Saint-Sauveur | B54: 0 | C54: 0 | D54: 2590 | E54: 27.66321188 | F54: 6770 | G54: 72.33678812 | H54: 0 | I54: 0 | J54: 0 | K54: 0 | L54: 9360 | M54: 870 | N54: 8.52311602 | O54: 10230
A55: Morin-Heights | B55: 970 | C55: 23.37756333 | D55: 1390 | E55: 33.48612786 | F55: 1790 | G55: 43.13630881 | H55: 0 | I55: 0 | J55: 0 | K55: 0 | L55: 4150 | M55: 0 | N55: 0 | O55: 4150
A56: Lac-des-Seize-îles | B56: 0 | C56: 0 | D56: 0 | E56: 0 | F56: 0 | G56: 0 | H56: 170 | I56: 100 | J56: 0 | K56: 0 | L56: 170 | M56: 0 | N56: 0 | O56: 170
A57: Wentworth-Nord | B57: 0 | C57: 0 | D57: 0 | E57: 0 | F57: 710 | G57: 51.62925416 | H57: 670 | I57: 48.37074584 | J57: 0 | K57: 0 | L57: 1380 | M57: 0 | N57: 0 | O57: 1380
A58: Saint-Adolphe-d'Howard | B58: 720 | C58: 20.63265888 | D58: 0 | E58: 0 | F58: 2040 | G58: 58.0507267 | H58: 0 | I58: 0 | J58: 750 | K58: 21.31661442 | L58: 3510 | M58: 0 | N58: 0 | O58: 3510
A59: 1514 - RLS d'Argenteuil | B59: 530 | C59: 1.706091354 | D59: 2390 | E59: 7.640600493 | F59: 710 | G59: 2.275855446 | H59: 17420 | I59: 55.75685798 | J59: 10190 | K59: 32.62059473 | L59: 31240 | M59: 1150 | N59: 3.544413227 | O59: 457990
A60: Saint-André-d'Argenteuil | B60: 0 | C60: 0 | D60: 0 | E60: 0 | F60: 0 | G60: 0 | H60: 3020 | I60: 100 | J60: 0 | K60: 0 | L60: 3020 | M60: 0 | N60: 0 | O60: 3020
A61: Lachute | B61: 0 | C61: 0 | D61: 0 | E61: 0 | F61: 0 | G61: 0 | H61: 3180 | I61: 27.11285641 | J61: 8540 | K61: 72.88714359 | L61: 11710 | M61: 1150 | N61: 8.925517027 | O61: 12860
A62: Gore | B62: 0 | C62: 0 | D62: 900 | E62: 47.00630252 | F62: 0 | G62: 0 | H62: 1010 | I62: 52.99369748 | J62: 0 | K62: 0 | L62: 1900 | M62: 0 | N62: 0 | O62: 1900
A63: Mille-Isles | B63: 0 | C63: 0 | D63: 820 | E63: 52.20165922 | F63: 0 | G63: 0 | H63: 750 | I63: 47.79834078 | J63: 0 | K63: 0 | L63: 1570 | M63: 0 | N63: 0 | O63: 1570
A64: Wentworth | B64: 530 | C64: 100 | D64: 0 | E64: 0 | F64: 0 | G64: 0 | H64: 0 | I64: 0 | J64: 0 | K64: 0 | L64: 530 | M64: 0 | N64: 0 | O64: 530
A65: Brownsburg-Chatham | B65: 0 | C65: 0 | D65: 670 | E65: 9.463633811 | F65: 0 | G65: 0 | H65: 5800 | I65: 81.36759337 | J65: 650 | K65: 9.168772817 | L65: 7120 | M65: 0 | N65: 0 | O65: 7120
A66: Grenville-sur-la-Rouge | B66: 0 | C66: 0 | D66: 0 | E66: 0 | F66: 0 | G66: 0 | H66: 2820 | I66: 100 | J66: 0 | K66: 0 | L66: 2820 | M66: 0 | N66: 0 | O66: 2820
A67: Grenville | B67: 0 | C67: 0 | D67: 0 | E67: 0 | F67: 710 | G67: 41.55464641 | H67: 0 | I67: 0 | J67: 1000 | K67: 58.44535359 | L67: 1710 | M67: 0 | N67: 0 | O67: 1710
A68: Harrington | B68: 0 | C68: 0 | D68: 0 | E68: 0 | F68: 0 | G68: 0 | H68: 850 | I68: 100 | J68: 0 | K68: 0 | L68: 850 | M68: 0 | N68: 0 | O68: 850
A69: 1515 - RLS de Deux-Montagnes - Mirabel-Sud | B69: 13300 | C69: 11.6 | D69: 41700 | E69: 36.4 | F69: 23820 | G69: 20.8 | H69: 20770 | I69: 18.1 | J69: 14970 | K69: 13.1 | L69: 114560 | M69: 810 | N69: 0.689160454 | O69: 115370
A70: Saint-Eustache | B70: 5910 | C70: 13.66708328 | D70: 14360 | E70: 33.22918113 | F70: 9040 | G70: 20.92764894 | H70: 4570 | I70: 10.57954914 | J70: 9330 | K70: 21.59653752 | L70: 43210 | M70: 800 | N70: 1.822395928 | O70: 44010
A71: Deux-Montagnes | B71: 3070 | C71: 17.52972108 | D71: 3720 | E71: 21.24485597 | F71: 8760 | G71: 50.08573388 | H71: 1500 | I71: 8.561957019 | J71: 450 | K71: 2.577732053 | L71: 17500 | M71: 0 | N71: 0 | O71: 17500
A72: Sainte-Marthe-sur-le-Lac | B72: 3870 | C72: 21.411973 | D72: 8510 | E72: 47.10080779 | F72: 380 | G72: 2.124598871 | H72: 4470 | I72: 24.74272436 | J72: 840 | K72: 4.619895983 | L72: 18070 | M72: 0 | N72: 0 | O72: 18070
A73: Pointe-Calumet | B73: 0 | C73: 0 | D73: 0 | E73: 0 | F73: 470 | G73: 7.26509023 | H73: 3850 | I73: 59.87865588 | J73: 2110 | K73: 32.85625389 | L73: 6430 | M73: 0 | N73: 0 | O73: 6430
A74: Saint-Joseph-du-Lac | B74: 0 | C74: 0 | D74: 5290 | E74: 79.13862719 | F74: 0 | G74: 0 | H74: 1400 | I74: 20.86137281 | J74: 0 | K74: 0 | L74: 6690 | M74: 0 | N74: 0 | O74: 6690
A75: Oka | B75: 450 | C75: 11.86174391 | D75: 1600 | E75: 41.76485991 | F75: 0 | G75: 0 | H75: 1770 | I75: 46.37339618 | J75: 0 | K75: 0 | L75: 3820 | M75: 10 | N75: 0.1307531381 | O75: 3820
A76: Saint-Placide | B76: 0 | C76: 0 | D76: 0 | E76: 0 | F76: 660 | G76: 39.3831554 | H76: 470 | I76: 27.87663108 | J76: 550 | K76: 32.74021352 | L76: 1690 | M76: 0 | N76: 0 | O76: 1690
A77: Mirabel | B77: 0 | C77: 0 | D77: 8230 | E77: 47.9 | F77: 4500 | G77: 26.2 | H77: 2740 | I77: 14.5057155 | J77: 1690 | K77: 16.87129551 | L77: 17170 | M77: 0 | N77: 0 | O77: 17170
A78: 1516 - RLS de la Rivière-du-Nord - Mirabel-Nord | B78: 15270 | C78: 9.62382129 | D78: 35560 | E78: 23 | F78: 34850 | G78: 22.5 | H78: 38250 | I78: 24.10997933 | J78: 30790 | K78: 19.9 | L78: 154710 | M78: 6810 | N78: 4.112950506 | O78: 161520
A79: Mirabel | B79: 5900 | C79: 15.82222461 | D79: 11650 | E79: 32.55639299 | F79: 7400 | G79: 22.2 | H79: 3490 | I79: 9.363516884 | J79: 4910 | K79: 14.84590832 | L79: 33350 | M79: 0 | N79: 0 | O79: 33350
A80: Saint-Colomban | B80: 1090 | C80: 6.804419752 | D80: 7210 | E80: 44.97783882 | F80: 2600 | G80: 16.22448343 | H80: 5130 | I80: 31.99325801 | J80: 0 | K80: 0 | L80: 16020 | M80: 0 | N80: 0 | O80: 16020
A81: Saint-Jérôme | B81: 3490 | C81: 5.171673502 | D81: 8920 | E81: 13.20531233 | F81: 16170 | G81: 23.94397477 | H81: 13770 | I81: 20.38465525 | J81: 25190 | K81: 37.29438415 | L81: 67540 | M81: 6810 | N81: 9.153148791 | O81: 74350
A82: Sainte-Sophie | B82: 0 | C82: 0 | D82: 0 | E82: 0 | F82: 2590 | G82: 16.50732951 | H82: 13100 | I82: 83.49267049 | J82: 0 | K82: 0 | L82: 15690 | M82: 0 | N82: 0 | O82: 15690
A83: Prévost | B83: 4790 | C83: 36.80972158 | D83: 4100 | E83: 31.50284572 | F83: 2840 | G83: 21.87355791 | H83: 590 | I83: 4.55314567 | J83: 680 | K83: 5.260729119 | L83: 13000 | M83: 0 | N83: 0 | O83: 13000
A84: Saint-Hippolyte | B84: 0 | C84: 0 | D84: 3690 | E84: 40.50257873 | F84: 3250 | G84: 35.64139142 | H84: 2170 | I84: 23.85602985 | J84: 0 | K84: 0 | L84: 9110 | M84: 0 | N84: 0 | O84: 9110
A85: 1517 - RLS de Thérèse-De Blainville | B85: 50110 | C85: 33.58670662 | D85: 21540 | E85: 14.43825534 | F85: 44600 | G85: 29.89670682 | H85: 18880 | I85: 12.65793936 | J85: 14050 | K85: 9.420391857 | L85: 149190 | M85: 7920 | N85: 5.038732551 | O85: 195910
A86: Boisbriand | B86: 5920 | C86: 22.00565392 | D86: 6830 | E86: 25.41288499 | F86: 7430 | G86: 27.62981699 | H86: 2490 | I86: 9.273173635 | J86: 4220 | K86: 15.67847047 | L86: 26880 | M86: 0 | N86: 0 | O86: 26880
A87: Sainte-Thérèse | B87: 3230 | C87: 14.35181066 | D87: 1000 | E87: 4.46214076 | F87: 9870 | G87: 43.91404929 | H87: 370 | I87: 1.632707536 | J87: 8010 | K87: 35.63929175 | L87: 22480 | M87: 3510 | N87: 13.50956174 | O87: 25990
A88: Blainville | B88: 23510 | C88: 43.06148239 | D88: 7780 | E88: 14.25431769 | F88: 16410 | G88: 30.06172048 | H88: 5630 | I88: 10.30384059 | J88: 1270 | K88: 2.318638853 | L88: 54600 | M88: 2260 | N88: 3.977982168 | O88: 56860
A89: Rosemère | B89: 7770 | C89: 57.91514428 | D89: 1900 | E89: 14.14510476 | F89: 3750 | G89: 27.93975095 | H89: 0 | I89: 0 | J89: 0 | K89: 0 | L89: 13410 | M89: 550 | N89: 3.918899556 | O89: 13960
A90: Lorraine | B90: 7790 | C90: 83.32976903 | D90: 1140 | E90: 12.2005988 | F90: 420 | G90: 4.469632164 | H90: 0 | I90: 0 | J90: 0 | K90: 0 | L90: 9350 | M90: 0 | N90: 0 | O90: 9350
A91: Bois-des-Filion | B91: 1030 | C91: 11.03840378 | D91: 1050 | E91: 11.30658657 | F91: 5770 | G91: 61.85367947 | H91: 910 | I91: 9.772580991 | J91: 560 | K91: 6.028749195 | L91: 9320 | M91: 310 | N91: 3.258613533 | O91: 9640
A92: Sainte-Anne-des-Plaines | B92: 860 | C92: 6.57584291 | D92: 1830 | E92: 13.92800061 | F92: 960 | G92: 7.291270264 | H92: 9490 | I92: 72.20488622 | J92: 0 | K92: 0 | L92: 13140 | M92: 1280 | N92: 8.889813466 | O92: 14420
A94: Défavorisation matérielle 2016 RLS
A95: Répartition de la population (N, %) par quintile de défavorisation matérielle 2016 Région des Laurentides (variation régionale 2016)
B96: Conditions plus favorables | J96: Conditions plus défavorables | L96: Population avec indice | M96: Population sans indice | O96: Population totale
B97: Quintile 1 | D97: Quintile 2 | F97: Quintile 3 | H97: Quintile 4 | J97: Quintile 5
B98: N | C98: % | D98: N | E98: % | F98: N | G98: % | L98: N | M98: N | N98: % | O98: N
A99: 1511 - RLS d'Antoine-Labelle | B99: 0 | C99: 0 | D99: 538 | E99: 1.666356935 | F99: 2485 | G99: 7.696834541 | H99: 4796 | I99: 14.8547358 | J99: 24467 | K99: 75.78207273 | L99: 32286 | M99: 2957 | N99: 8.390318645 | O99: 35243
A100: Notre-Dame-du-Laus | B100: 0 | C100: 0 | D100: 0 | E100: 0 | F100: 0 | G100: 0 | H100: 0 | I100: 0 | J100: 1558 | K100: 100 | L100: 1558 | M100: 0 | N100: 0 | O100: 1558
A101: Notre-Dame-de-Pontmain | B101: 0 | C101: 0 | D101: 0 | E101: 0 | F101: 0 | G101: 0 | H101: 0 | I101: 0 | J101: 782 | K101: 100 | L101: 782 | M101: 0 | N101: 0 | O101: 782
A102: Lac-du-Cerf | B102: 0 | C102: 0 | D102: 0 | E102: 0 | F102: 0 | G102: 0 | H102: 0 | I102: 0 | J102: 435 | K102: 100 | L102: 435 | M102: 0 | N102: 0 | O102: 435
A103: Saint-Aimé-du-Lac-des-îles | B103: 0 | C103: 0 | D103: 0 | E103: 0 | F103: 0 | G103: 0 | H103: 0 | I103: 0 | J103: 790 | K103: 100 | L103: 790 | M103: 0 | N103: 0 | O103: 790
A104: Kiamika | B104: 0 | C104: 0 | D104: 0 | E104: 0 | F104: 0 | G104: 0 | H104: 0 | I104: 0 | J104: 757 | K104: 100 | L104: 757 | M104: 0 | N104: 0 | O104: 757
A105: Nominingue | B105: 0 | C105: 0 | D105: 0 | E105: 0 | F105: 613 | G105: 28.68507253 | H105: 355 | I105: 16.612073 | J105: 1169 | K105: 54.70285447 | L105: 2137 | M105: 0 | N105: 0 | O105: 2137
A106: Rivière-Rouge | B106: 0 | C106: 0 | D106: 0 | E106: 0 | F106: 723 | G106: 16.7283665 | H106: 547 | I106: 12.6561777 | J106: 3052 | K106: 70.61545581 | L106: 4322 | M106: 0 | N106: 0 | O106: 4322
A107: La Macaza | B107: 0 | C107: 0 | D107: 0 | E107: 0 | F107: 0 | G107: 0 | H107: 439 | I107: 100 | J107: 0 | K107: 0 | L107: 439 | M107: 711 | N107: 61.8 | O107: 1150
A108: L'Ascension | B108: 0 | C108: 0 | D108: 0 | E108: 0 | F108: 0 | G108: 0 | H108: 0 | I108: 0 | J108: 791 | K108: 100 | L108: 791 | M108: 0 | N108: 0 | O108: 791
A109: Lac-Saguay | B109: 0 | C109: 0 | D109: 0 | E109: 0 | F109: 0 | G109: 0 | H109: 0 | I109: 0 | J109: 459 | K109: 100 | L109: 459 | M109: 0 | N109: 0 | O109: 459
A110: Chute-Saint-Philippe | B110: 0 | C110: 0 | D110: 0 | E110: 0 | F110: 0 | G110: 0 | H110: 444 | I110: 47.13375796 | J110: 498 | K110: 52.86624204 | L110: 942 | M110: 0 | N110: 0 | O110: 942
A111: Lac-des-Écorces | B111: 0 | C111: 0 | D111: 0 | E111: 0 | F111: 688 | G111: 25.164594 | H111: 0 | I111: 0 | J111: 2046 | K111: 74.835406 | L111: 2734 | M111: 0 | N111: 0 | O111: 2734
A112: Mont-Laurier | B112: 0 | C112: 0 | D112: 538 | E112: 4.530526316 | F112: 461 | G112: 3.882105263 | H112: 3011 | I112: 25.35578947 | J112: 7865 | K112: 66.23157895 | L112: 11875 | M112: 2241 | N112: 15.9 | O112: 14116
A113: Ferme-Neuve | B113: 0 | C113: 0 | D113: 0 | E113: 0 | F113: 0 | G113: 0 | H113: 0 | I113: 0 | J113: 2706 | K113: 100 | L113: 2706 | M113: 0 | N113: 0 | O113: 2706
A114: Lac-Saint-Paul | B114: 0 | C114: 0 | D114: 0 | E114: 0 | F114: 0 | G114: 0 | H114: 0 | I114: 0 | J114: 481 | K114: 100 | L114: 481 | M114: 0 | N114: 0 | O114: 481
A115: Mont-Saint-Michel | B115: 0 | C115: 0 | D115: 0 | E115: 0 | F115: 0 | G115: 0 | H115: 0 | I115: 0 | J115: 503 | K115: 100 | L115: 503 | M115: 0 | N115: 0 | O115: 503
A116: Sainte-Anne-du-Lac | B116: 0 | C116: 0 | D116: 0 | E116: 0 | F116: 0 | G116: 0 | H116: 0 | I116: 0 | J116: 575 | K116: 100 | L116: 575 | M116: 0 | N116: 0 | O116: 575
A117: Territoires non organisés | B117: 0 | C117: 0 | D117: 0 | E117: 0 | F117: 0 | G117: 0 | H117: 0 | I117: 0 | J117: 0 | K117: 0 | L117: 0 | M117: 5 | N117: 100 | O117: 5
A118: 1512 - RLS des Laurentides | B118: 4603 | C118: 10.73460821 | D118: 3602 | E118: 8.400186567 | F118: 9011 | G118: 21.01445896 | H118: 11110 | I118: 25.90951493 | J118: 14554 | K118: 33.94123134 | L118: 42880 | M118: 3022 | N118: 6.583591129 | O118: 45902
A119: Val-Morin | B119: 0 | C119: 0 | D119: 0 | E119: 0 | F119: 1515 | G119: 52.78745645 | H119: 1355 | I119: 47.21254355 | J119: 0 | K119: 0 | L119: 2870 | M119: 0 | N119: 0 | O119: 2870
A120: Val-David | B120: 692 | C120: 14.07362213 | D120: 1106 | E120: 22.49339028 | F120: 2005 | G120: 40.77689648 | H120: 1114 | I120: 22.65609111 | J120: 0 | K120: 0 | L120: 4917 | M120: 0 | N120: 0 | O120: 4917
A121: Lantier | B121: 0 | C121: 0 | D121: 0 | E121: 0 | F121: 0 | G121: 0 | H121: 0 | I121: 0 | J121: 834 | K121: 100 | L121: 834 | M121: 0 | N121: 0 | O121: 834
A122: Sainte-Lucie-des-Laurentides | B122: 0 | C122: 0 | D122: 0 | E122: 0 | F122: 0 | G122: 0 | H122: 0 | I122: 0 | J122: 1256 | K122: 100 | L122: 1256 | M122: 0 | N122: 0 | O122: 1256
A123: Sainte-Agathe-des-Monts | B123: 1329 | C123: 15.09712598 | D123: 0 | E123: 0 | F123: 1125 | G123: 12.77973418 | H123: 1677 | I123: 19.05032375 | J123: 4672 | K123: 53.07281609 | L123: 8803 | M123: 1420 | N123: 13.89024748 | O123: 10223
A124: Ivry-sur-le-Lac | B124: 0 | C124: 0 | D124: 0 | E124: 0 | F124: 387 | G124: 100 | H124: 0 | I124: 0 | J124: 0 | K124: 0 | L124: 387 | M124: 0 | N124: 0 | O124: 387
A125: St-Faustin—Lac-Carré | B125: 487 | C125: 13.91826236 | D125: 0 | E125: 0 | F125: 0 | G125: 0 | H125: 2549 | I125: 72.84938554 | J125: 463 | K125: 13.2323521 | L125: 3499 | M125: 0 | N125: 0 | O125: 3499
A126: Barkmere | B126: 0 | C126: 0 | D126: 0 | E126: 0 | F126: 58 | G126: 100 | H126: 0 | I126: 0 | J126: 0 | K126: 0 | L126: 58 | M126: 0 | N126: 0 | O126: 58
A127: Montcalm | B127: 0 | C127: 0 | D127: 0 | E127: 0 | F127: 0 | G127: 0 | H127: 0 | I127: 0 | J127: 628 | K127: 100 | L127: 628 | M127: 0 | N127: 0 | O127: 628
A128: Arundel | B128: 563 | C128: 100 | D128: 0 | E128: 0 | F128: 0 | G128: 0 | H128: 0 | I128: 0 | J128: 0 | K128: 0 | L128: 563 | M128: 0 | N128: 0 | O128: 563
A129: Huberdeau | B129: 0 | C129: 0 | D129: 0 | E129: 0 | F129: 0 | G129: 0 | H129: 868 | I129: 100 | J129: 0 | K129: 0 | L129: 868 | M129: 0 | N129: 0 | O129: 868
A130: Amherst | B130: 0 | C130: 0 | D130: 0 | E130: 0 | F130: 0 | G130: 0 | H130: 0 | I130: 0 | J130: 1484 | K130: 100 | L130: 1484 | M130: 0 | N130: 0 | O130: 1484
A131: Brébeuf | B131: 0 | C131: 0 | D131: 0 | E131: 0 | F131: 406 | G131: 41.59836066 | H131: 0 | I131: 0 | J131: 570 | K131: 58.40163934 | L131: 976 | M131: 0 | N131: 0 | O131: 976
A132: Lac-Supérieur | B132: 0 | C132: 0 | D132: 510 | E132: 27.01271186 | F132: 1378 | G132: 72.98728814 | H132: 0 | I132: 0 | J132: 0 | K132: 0 | L132: 1888 | M132: 0 | N132: 0 | O132: 1888
A133: Val-des-Lacs | B133: 0 | C133: 0 | D133: 0 | E133: 0 | F133: 0 | G133: 0 | H133: 0 | I133: 0 | J133: 744 | K133: 100 | L133: 744 | M133: 0 | N133: 0 | O133: 744
A134: Mont-Tremblant | B134: 1532 | C134: 19.04525112 | D134: 1385 | E134: 17.21780209 | F134: 731 | G134: 9.087518647 | H134: 2745 | I134: 34.12481353 | J134: 1651 | K134: 20.52461462 | L134: 8044 | M134: 1602 | N134: 16.60792038 | O134: 9646
A135: La Conception | B135: 0 | C135: 0 | D135: 559 | E135: 41.81002244 | F135: 778 | G135: 58.18997756 | H135: 0 | I135: 0 | J135: 0 | K135: 0 | L135: 1337 | M135: 0 | N135: 0 | O135: 1337
A136: Labelle | B136: 0 | C136: 0 | D136: 0 | E136: 0 | F136: 628 | G136: 25.3532499 | H136: 802 | I136: 32.37787646 | J136: 1047 | K136: 42.26887364 | L136: 2477 | M136: 0 | N136: 0 | O136: 2477
A137: Lac-Tremblant-Nord | B137: 0 | C137: 0 | D137: 42 | E137: 100 | F137: 0 | G137: 0 | H137: 0 | I137: 0 | J137: 0 | K137: 0 | L137: 42 | M137: 0 | N137: 0 | O137: 42
A138: La Minerve | B138: 0 | C138: 0 | D138: 0 | E138: 0 | F138: 0 | G138: 0 | H138: 0 | I138: 0 | J138: 1205 | K138: 100 | L138: 1205 | M138: 0 | N138: 0 | O138: 1205
A139: 1513 - RLS des Pays-d'en-Haut | B139: 17540 | C139: 42.78570557 | D139: 9238 | E139: 22.53445542 | F139: 7586 | G139: 18.50469569 | H139: 3966 | I139: 9.674350531 | J139: 2665 | K139: 6.50079278 | L139: 40995 | M139: 882 | N139: 2.106168064 | O139: 41877
A140: Estérel | B140: 0 | C140: 0 | D140: 196 | E140: 100 | F140: 0 | G140: 0 | H140: 0 | I140: 0 | J140: 0 | K140: 0 | L140: 196 | M140: 0 | N140: 0 | O140: 196
A141: Sainte-Marguerite-du-Lac-Masson | B141: 0 | C141: 0 | D141: 0 | E141: 0 | F141: 1474 | G141: 53.54159099 | H141: 0 | I141: 0 | J141: 1279 | K141: 46.45840901 | L141: 2753 | M141: 10 | N141: 0.3619254434 | O141: 2763
A142: Sainte-Adèle | B142: 1824 | C142: 14.11873984 | D142: 4548 | E142: 35.20396316 | F142: 2783 | G142: 21.54191501 | H142: 3218 | I142: 24.90904869 | J142: 546 | K142: 4.226333308 | L142: 12919 | M142: 0 | N142: 0 | O142: 12919
A143: Piedmont | B143: 2950 | C143: 100 | D143: 0 | E143: 0 | F143: 0 | G143: 0 | H143: 0 | I143: 0 | J143: 0 | K143: 0 | L143: 2950 | M143: 0 | N143: 0 | O143: 2950
A144: Sainte-Anne-des-Lacs | B144: 2873 | C144: 79.56244808 | D144: 738 | E144: 20.43755192 | F144: 0 | G144: 0 | H144: 0 | I144: 0 | J144: 0 | K144: 0 | L144: 3611 | M144: 0 | N144: 0 | O144: 3611
A145: Saint-Sauveur | B145: 6586 | C145: 70.37076611 | D145: 2192 | E145: 23.4213057 | F145: 581 | G145: 6.207928197 | H145: 0 | I145: 0 | J145: 0 | K145: 0 | L145: 9359 | M145: 872 | N145: 8.52311602 | O145: 10231
A146: Morin-Heights | B146: 1906 | C146: 45.98311218 | D146: 851 | E146: 20.53075995 | F146: 1388 | G146: 33.48612786 | H146: 0 | I146: 0 | J146: 0 | K146: 0 | L146: 4145 | M146: 0 | N146: 0 | O146: 4145
A147: Lac-des-Seize-îles | B147: 0 | C147: 0 | D147: 0 | E147: 0 | F147: 0 | G147: 0 | H147: 0 | I147: 0 | J147: 172 | K147: 100 | L147: 172 | M147: 0 | N147: 0 | O147: 172
A148: Wentworth-Nord | B148: 0 | C148: 0 | D148: 713 | E148: 51.62925416 | F148: 0 | G148: 0 | H148: 0 | I148: 0 | J148: 668 | K148: 48.37074584 | L148: 1381 | M148: 0 | N148: 0 | O148: 1381
A149: Saint-Adolphe-d'Howard | B149: 1401 | C149: 39.92590482 | D149: 0 | E149: 0 | F149: 1360 | G149: 38.75748076 | H149: 748 | I149: 21.31661442 | J149: 0 | K149: 0 | L149: 3509 | M149: 0 | N149: 0 | O149: 3509
A150: 1514 - RLS d'Argenteuil | B150: 0 | C150: 0 | D150: 533 | E150: 1.706091354 | F150: 3098 | G150: 9.916455939 | H150: 10445 | I150: 33.43362889 | J150: 17165 | K150: 54.94382382 | L150: 31241 | M150: 1148 | N150: 3.544413227 | O150: 32389
A151: Saint-André-d'Argenteuil | B151: 0 | C151: 0 | D151: 0 | E151: 0 | F151: 0 | G151: 0 | H151: 1372 | I151: 45.43046358 | J151: 1648 | K151: 54.56953642 | L151: 3020 | M151: 0 | N151: 0 | O151: 3020
A152: Lachute | B152: 0 | C152: 0 | D152: 0 | E152: 0 | F152: 0 | G152: 0 | H152: 3740 | I152: 31.92760799 | J152: 7974 | K152: 68.07239201 | L152: 11714 | M152: 1148 | N152: 8.925517027 | O152: 12862
A153: Gore | B153: 0 | C153: 0 | D153: 0 | E153: 0 | F153: 895 | G153: 47.00630252 | H153: 0 | I153: 0 | J153: 1009 | K153: 52.99369748 | L153: 1904 | M153: 0 | N153: 0 | O153: 1904
A154: Mille-Isles | B154: 0 | C154: 0 | D154: 0 | E154: 0 | F154: 818 | G154: 52.20165922 | H154: 749 | I154: 47.79834078 | J154: 0 | K154: 0 | L154: 1567 | M154: 0 | N154: 0 | O154: 1567
A155: Wentworth | B155: 0 | C155: 0 | D155: 533 | E155: 100 | F155: 0 | G155: 0 | H155: 0 | I155: 0 | J155: 0 | K155: 0 | L155: 533 | M155: 0 | N155: 0 | O155: 533
A156: Brownsburg-Chatham | B156: 0 | C156: 0 | D156: 0 | E156: 0 | F156: 674 | G156: 9.463633811 | H156: 2574 | I156: 36.14153328 | J156: 3874 | K156: 54.39483291 | L156: 7122 | M156: 0 | N156: 0 | O156: 7122
A157: Grenville-sur-la-Rouge | B157: 0 | C157: 0 | D157: 0 | E157: 0 | F157: 0 | G157: 0 | H157: 1164 | I157: 41.21813031 | J157: 1660 | K157: 58.78186969 | L157: 2824 | M157: 0 | N157: 0 | O157: 2824
A158: Grenville | B158: 0 | C158: 0 | D158: 0 | E158: 0 | F158: 711 | G158: 41.55464641 | H158: 0 | I158: 0 | J158: 1000 | K158: 58.44535359 | L158: 1711 | M158: 0 | N158: 0 | O158: 1711
A159: Harrington | B159: 0 | C159: 0 | D159: 0 | E159: 0 | F159: 0 | G159: 0 | H159: 846 | I159: 100 | J159: 0 | K159: 0 | L159: 846 | M159: 0 | N159: 0 | O159: 846
A160: 1515 - RLS de Deux-Montagnes—Mirabel-Sud | B160: 14346 | C160: 12.52254272 | D160: 28323.4 | E160: 24.72333656 | F160: 36152.012 | G160: 31.55688795 | H160: 20503.986 | I160: 17.89781406 | J160: 15236 | K160: 13.29941871 | L160: 114561.398 | M160: 807 | N160: 0.699498315 | O160: 115368.398
A161: Saint-Eustache | B161: 7287 | C161: 16.8657131 | D161: 8319 | E161: 19.25427024 | F161: 13698 | G161: 31.70393001 | H161: 6800 | I161: 15.73855483 | J161: 7102 | K161: 16.43753182 | L161: 43206 | M161: 802 | N161: 1.822395928 | O161: 44008
A162: Deux-Montagnes | B162: 4625 | C162: 26.43461363 | D162: 6196 | E162: 35.41380887 | F162: 4726 | G162: 27.01188843 | H162: 1453 | I162: 8.304755373 | J162: 496 | K162: 2.834933699 | L162: 17496 | M162: 0 | N162: 0 | O162: 17496
A163: Sainte-Marthe-sur-le-Lac | B163: 0 | C163: 0 | D163: 9509 | E163: 52.61148611 | F163: 3258 | G163: 18.02589355 | H163: 3535 | I163: 19.5584818 | J163: 1772 | K163: 9.804138542 | L163: 18074 | M163: 0 | N163: 0 | O163: 18074
A164: Pointe-Calumet | B164: 0 | C164: 0 | D164: 0 | E164: 0 | F164: 467 | G164: 7.26509023 | H164: 1508 | I164: 23.4598631 | J164: 4453 | K164: 69.27504667 | L164: 6428 | M164: 0 | N164: 0 | O164: 6428
A165: Saint-Joseph-du-Lac | B165: 0 | C165: 0 | D165: 1480 | E165: 22.13249589 | F165: 3812 | G165: 57.0061313 | H165: 1395 | I165: 20.86137281 | J165: 0 | K165: 0 | L165: 6687 | M165: 0 | N165: 0 | O165: 6687
A166: Oka | B166: 453 | C166: 11.86174391 | D166: 0 | E166: 0 | F166: 1595 | G166: 41.76485991 | H166: 1771 | I166: 46.37339618 | J166: 0 | K166: 0 | L166: 3819 | M166: 5 | N166: 0.1307531381 | O166: 3824
A167: Saint-Placide | B167: 0 | C167: 0 | D167: 0 | E167: 0 | F167: 664 | G167: 39.3831554 | H167: 0 | I167: 0 | J167: 1022 | K167: 60.6168446 | L167: 1686 | M167: 0 | N167: 0 | O167: 1686
A168: Mirabel | B168: 1981 | C168: 10.48370025 | D168: 2819.4 | E168: 16.42490317 | F168: 7932.012 | G168: 46.20931015 | H168: 4041.986 | I168: 23.54728973 | J168: 391 | K168: 2.277838242 | L168: 17165.398 | M168: 0 | N168: 0 | O168: 17165.398
A169: 1516 - RLS de la Rivière-du-Nord—Mirabel-Nord | B169: 18064 | C169: 11.7 | D169: 31669.6 | E169: 20.5 | F169: 35944 | G169: 23.2 | H169: 44486 | I169: 28.8 | J169: 24549 | K169: 15.9 | L169: 154713 | M169: 6805 | N169: 4.2 | O169: 161518
A170: Mirabel | B170: 5945 | C170: 17.8 | D170: 11068.6 | E170: 33.2 | F170: 7930.988 | G170: 23.8 | H170: 7544.014 | I170: 22.6 | J170: 859 | K170: 2.6 | L170: 33347.602 | M170: 0 | N170: 0 | O170: 33347.602
A171: Saint-Colomban | B171: 0 | C171: 0 | D171: 3689 | E171: 23 | F171: 7205 | G171: 45 | H171: 5125 | I171: 32 | K171: 0 | L171: 16019 | M171: 0 | N171: 0 | O171: 16019
A172: Saint-Jérôme | B172: 6600 | C172: 9.771842288 | D172: 9116 | E172: 13.5 | F172: 12868 | G172: 19.1 | H172: 19811 | I172: 29.3 | J172: 19146 | K172: 28.3 | L172: 67541 | M172: 6805 | N172: 9.153148791 | O172: 74346
A173: Sainte-Sophie | B173: 0 | C173: 0 | D173: 1507 | E173: 9.6 | F173: 1083 | G173: 6.9 | H173: 9240 | I173: 58.9 | J173: 3860 | K173: 24.6 | L173: 15690 | M173: 0 | N173: 0 | O173: 15690
A174: Prévost | B174: 4664 | C174: 35.8714044 | D174: 3896 | E174: 30 | F174: 3166 | G174: 24.4 | H174: 592 | I174: 4.6 | J174: 684 | K174: 5.3 | L174: 13002 | M174: 0 | N174: 0 | O174: 13002
A175: Saint-Hippolyte | B175: 855 | C175: 9.382201251 | D175: 2393 | E175: 26.3 | F175: 3691 | G175: 40.5 | H175: 2174 | I175: 23.9 | K175: 0 | L175: 9113 | M175: 0 | N175: 0 | O175: 9113
A176: 1517 - RLS de Thérèse-De Blainville | B176: 58220 | C176: 39 | D176: 39201 | E176: 26.3 | F176: 18828 | G176: 12.6 | H176: 17954 | I176: 12 | J176: 14984 | K176: 10 | L176: 149187 | M176: 7916 | N176: 5.038732551 | O176: 157103
A177: Boisbriand | B177: 8879 | C177: 33.0270793 | D177: 6285 | E177: 23.37821753 | F177: 5012 | G177: 18.64305907 | H177: 2378 | I177: 8.845409909 | J177: 4330 | K177: 16.10623419 | L177: 26884 | M177: 0 | N177: 0 | O177: 26884
A178: Sainte-Thérèse | B178: 5846 | C178: 26.00765193 | D178: 5424 | E178: 24.1302607 | F178: 2830 | G178: 12.59008809 | H178: 5279 | I178: 23.48518551 | J178: 3099 | K178: 13.78681377 | L178: 22478 | M178: 3511 | N178: 13.50956174 | O178: 25989
A179: Blainville | B179: 21700 | C179: 39.74286185 | D179: 19715 | E179: 36.1073973 | F179: 6294 | G179: 11.52726141 | H179: 4800 | I179: 8.791047783 | J179: 2092 | K179: 3.831431659 | L179: 54601 | M179: 2262 | N179: 3.977982168 | O179: 56863
A180: Rosemère | B180: 11181 | C180: 83.37185892 | D180: 2230 | E180: 16.62814108 | F180: 0 | G180: 0 | H180: 0 | I180: 0 | J180: 0 | K180: 0 | L180: 13411 | M180: 547 | N180: 3.918899556 | O180: 13958
A181: Lorraine | B181: 7543 | C181: 80.65654405 | D181: 1390 | E181: 14.86313088 | F181: 419 | G181: 4.480325064 | H181: 0 | I181: 0 | J181: 0 | K181: 0 | L181: 9352 | M181: 0 | N181: 0 | O181: 9352
A182: Bois-des-Filion | B182: 3071 | C182: 32.94357434 | D182: 3293 | E182: 35.32503755 | F182: 1485 | G182: 15.93005793 | H182: 1473 | I182: 15.80133019 | J182: 0 | K182: 0 | L182: 9322 | M182: 314 | N182: 3.258613533 | O182: 9636
A183: Sainte-Anne-des-Plaines | B183: 0 | C183: 0 | D183: 864 | E183: 6.57584291 | F183: 2788 | G183: 21.21927087 | H183: 4024 | I183: 30.62637948 | J183: 5463 | K183: 41.57850674 | L183: 13139 | M183: 1282 | N183: 8.889813466 | O183: 14421
A185: Défavorisation sociale 2016 RLS
A186: Répartition de la population (N, %) par quintile de défavorisation sociale 2016 Région des Laurentides (variation régionale 2016)
B187: Conditions plus favorables | J187: Conditions plus défavorables | L187: Population avec indice | M187: Population sans indice | O187: Population totale
B188: Quintile 1 | D188: Quintile 2 | F188: Quintile 3 | H188: Quintile 4 | J188: Quintile 5
B189: N | C189: % | D189: N | E189: % | F189: N | G189: % | L189: N | M189: N | N189: % | O189: N
A190: 1511 - RLS d'Antoine-Labelle | B190: 12900 | C190: 39.9380805 | D190: 9000 | E190: 27.86377709 | F190: 4300 | G190: 13.3126935 | H190: 4000 | I190: 12.38390093 | J190: 2100 | K190: 6.501547988 | L190: 32300 | M190: 3000 | N190: 8.522727273 | O190: 35200
A191: Notre-Dame-du-Laus | B191: 500 | C191: 31.25 | D191: 1100 | E191: 68.75 | F191: 0 | G191: 0 | H191: 0 | I191: 0 | J191: 0 | K191: 0 | L191: 1600 | M191: 0 | N191: 0 | O191: 1600
A192: Notre-Dame-de-Pontmain | B192: 800 | C192: 100 | D192: 0 | E192: 0 | F192: 0 | G192: 0 | H192: 0 | I192: 0 | J192: 0 | K192: 0 | L192: 800 | M192: 0 | N192: 0 | O192: 800
A193: Lac-du-Cerf | B193: 0 | C193: 0 | D193: 400 | E193: 100 | F193: 0 | G193: 0 | H193: 0 | I193: 0 | J193: 0 | K193: 0 | L193: 400 | M193: 0 | N193: 0 | O193: 400
A194: Saint-Aimé-du-Lac-des-îles | B194: 800 | C194: 100 | D194: 0 | E194: 0 | F194: 0 | G194: 0 | H194: 0 | I194: 0 | J194: 0 | K194: 0 | L194: 800 | M194: 0 | N194: 0 | O194: 800
A195: Kiamika | B195: 800 | C195: 100 | D195: 0 | E195: 0 | F195: 0 | G195: 0 | H195: 0 | I195: 0 | J195: 0 | K195: 0 | L195: 800 | M195: 0 | N195: 0 | O195: 800
A196: Nominingue | B196: 1400 | C196: 66.66666667 | D196: 400 | E196: 19.04761905 | F196: 400 | G196: 19.04761905 | H196: 0 | I196: 0 | J196: 0 | K196: 0 | L196: 2100 | M196: 0 | N196: 0 | O196: 2100
A197: Rivière-Rouge | B197: 400 | C197: 9.302325581 | D197: 2300 | E197: 53.48837209 | F197: 400 | G197: 9.302325581 | H197: 800 | I197: 18.60465116 | J197: 400 | K197: 9.302325581 | L197: 4300 | M197: 0 | N197: 0 | O197: 4300
A198: La Macaza | B198: 0 | C198: 0 | D198: 0 | E198: 0 | F198: 0 | G198: 0 | H198: 400 | I198: 100 | J198: 0 | K198: 0 | L198: 400 | M198: 700 | N198: 58.33333333 | O198: 1200
A199: L'Ascension | B199: 800 | C199: 100 | D199: 0 | E199: 0 | F199: 0 | G199: 0 | H199: 0 | I199: 0 | J199: 0 | K199: 0 | L199: 800 | M199: 0 | N199: 0 | O199: 800
A200: Lac-Saguay | B200: 0 | C200: 0 | D200: 0 | E200: 0 | F200: 500 | G200: 100 | H200: 0 | I200: 0 | J200: 0 | K200: 0 | L200: 500 | M200: 0 | N200: 0 | O200: 500
A201: Chute-Saint-Philippe | B201: 500 | C201: 55.55555556 | D201: 400 | E201: 44.44444444 | F201: 0 | G201: 0 | H201: 0 | I201: 0 | J201: 0 | K201: 0 | L201: 900 | M201: 0 | N201: 0 | O201: 900
A202: Lac-des-Écorces | B202: 500 | C202: 18.51851852 | D202: 1200 | E202: 44.44444444 | F202: 600 | G202: 22.22222222 | H202: 500 | I202: 18.51851852 | J202: 0 | K202: 0 | L202: 2700 | M202: 0 | N202: 0 | O202: 2700
A203: Mont-Laurier | B203: 3300 | C203: 27.73109244 | D203: 2600 | E203: 21.8487395 | F203: 2000 | G203: 16.80672269 | H203: 2300 | I203: 19.32773109 | J203: 1700 | K203: 14.28571429 | L203: 11900 | M203: 2200 | N203: 15.60283688 | O203: 14100
... 71 more rows

Sheet Liste
D1: Matérielle et sociale
D2: Matérielle
D3: Sociale
A4: 720 | B4: MRC Deux-Montagnes | C4: Local
A5: 730 | B5: MRC Thérèse-De Blainville | C5: Local
A6: 740 | B6: Mirabel | C6: Local
A7: 750 | B7: MRC la Rivière-du-Nord | C7: Local
A8: 760 | B8: MRC Argenteuil | C8: Local
A9: 770 | B9: MRC Les Pays-d'en-Haut | C9: Local
A10: 780 | B10: MRC Les Laurentides | C10: Local
A11: 790 | B11: MRC Antoine-Labelle | C11: Local
A23: 720 | B23: Région selon RLS | C23: Regional
A24: 15992 | B24: Région selon MRC | C24: Régional
A25: 15993 | B25: Liste des RLS et leurs régions | C25: Régional
A26: 720 | B26: MRC Deux-Montagnes | C26: Régional
A27: 1515 | B27: RLS de Deux-Montagnes - Mirabel-Sud | C27: Régional
A28: 730-1517 | B28: MRC/RLS Thérèse-De Blainville | C28: Régional
A29: 740 | B29: Mirabel | C29: Régional
A30: 750 | B30: MRC la Rivière-du-Nord | C30: Régional
A31: 1516 | B31: RLS de la Rivière-du-Nord - Mirabel-Nord | C31: Régional
A32: 760-1514 | B32: MRC/RLS Argenteuil | C32: Régional
A33: 770-1513 | B33: MRC/RLS Les Pays-d'en-Haut | C33: Régional
A34: 780-1512 | B34: MRC/RLS Les Laurentides | C34: Régional
A35: 790-1511 | B35: MRC/RLS Antoine-Labelle | C35: Régional
D41: 15991 | E41: Région selon RLS | F41: Regional
D42: 15992 | E42: Région selon MRC | F42: Régional
D43: 15993 | E43: Liste des RLS et leurs municipalités | F43: Régional
D44: 720 | E44: MRC Deux-Montagnes | F44: Régional
D45: 1515 | E45: RLS de Deux-Montagnes - Mirabel-Sud | F45: Régional
D46: 730-1517 | E46: MRC/RLS Thérèse-De Blainville | F46: Régional
D47: 740 | E47: Mirabel | F47: Régional
D48: 750 | E48: MRC la Rivière-du-Nord | F48: Régional
D49: 1516 | E49: RLS de la Rivière-du-Nord - Mirabel-Nord | F49: Régional
D50: 760-1514 | E50: MRC/RLS Argenteuil | F50: Régional
D51: 770-1513 | E51: MRC/RLS Les Pays-d'en-Haut | F51: Régional
D52: 780-1512 | E52: MRC/RLS Les Laurentides | F52: Régional
D53: 790-1511 | E53: MRC/RLS Antoine-Labelle | F53: Régional

Sheet Correspondance
A1: Id Territoire | B1: Concanetation | C1: Territoire | D1: Type défavo | E1: Plage Total | F1: Plage en-tête | G1: Plage Q5 | H1: Plage Q5 en-tête | I1: Plage Q5 Territoire | J1: PNG Carte | K1: Nom carte | L1: Endroit Copie Tableau | M1: Endroit Copie en-tête | N1: Endroit Copie Tableau Q5 | O1: Endroit Copie Q5 en-tête | P1: Endroit Copie Tableau Territoire Q5 | Q1: Texte carte | R1: Texte tableau | S1: Texte 2011 | T1: Endroit texte carte | U1: Endroit texte tableau | V1: Titre | W1: Source | X1: Endroit Source | Y1: Hauteur Ligne 4 | Z1: Titre Q5 | AA1: Source DSP | AB1: Endroit Source DSP | AC1: Note Pop sans indice | AD1: Endroit Note Pop sans indice | AE1: Lien vers Cartes 2011 | AF1: Plage Tableau à copier | AG1: Plage Tableau Q5 à copier | AH1: Titre carte | AI1: Tableau Plus Défavo
A29: 720 | B29: =A29&D29&C29 -> 720Matérielle et socialeLocal | C29: Local | D29: Matérielle et sociale | E29: A7:O14 | F29: A1:N4 | G29: J7:K14 | H29: A12:B15 | I29: A7:A14 | J29: MRC_DeuxMontagnes_Defavo_2016_Comb.png | K29: MRC_DM_2016_Comb | L29: A6 | M29: B2 | N29: B6 | O29: B2 | P29: A6 | Q29: Dans la MRC de Deux-Montagnes, les secteurs ayant des conditions parmi les plus défavorables de la MRC à la fois sur le plan matériel et social (profil 5 – en violet) sont localisés à Pointe-Calumet et à Saint-Eustache. À Pointe-Calumet, près du tiers de la population habite dans ces secteurs. Les secteurs où les conditions sont parmi les plus défavorables de la MRC seulement sur le plan social (profil 3 – en bleu) se trouvent à Pointe-Calumet, la municipalité de Deux-Montagnes, Saint-Eustache et à Sainte-Marthe-sur-le-Lac. Plus du tiers de la population de la municipalité de Deux-Montagnes habite dans ces secteurs. On retrouve des secteurs qui présentent les conditions parmi les plus défavorables de la MRC seulement sur le plan matériel (profil 4 – en orangé) dans toutes les municipalités du territoire. Plus de la moitié de la population de Saint-Placide et de Pointe-Calumet réside dans ces secteurs. Mise à jour : janvier 2024 | R29: Dans la MRC de Deux-Montagnes, les secteurs ayant des conditions parmi les plus défavorables de la MRC à la fois sur le plan matériel et social (profil 5) sont localisés à Pointe-Calumet et à Saint-Eustache. À Pointe-Calumet, près du tiers de la population habite dans ces secteurs. Les secteurs où les conditions sont parmi les plus défavorables de la MRC seulement sur le plan social (profil 3) se trouvent à Pointe-Calumet, la municipalité de Deux-Montagnes, Saint-Eustache et à Sainte-Marthe-sur-le-Lac. Plus du tiers de la population de la municipalité de Deux-Montagnes habite dans ces secteurs. On retrouve des secteurs qui présentent les conditions parmi les plus défavorables de la MRC seulement sur le plan matériel (profil 4) dans toutes les municipalités du territoire. Plus de la moitié de la population de Saint-Placide et de Pointe-Calumet réside dans ces secteurs. Mise à jour : janvier 2024 | T29: J3:O40 | U29: A19:K34 | V29: Répartition de la population selon les profils de défavorisation matérielle et sociale combinée 2021 de la MRC de Deux-Montagnes | W29: Source : INSPQ et BIESP, 2023. Statistique Canada, Recensement 2021. | X29: A14 | Y29: 49.5 | Z29: Population des secteurs ayant les conditions matérielles et sociales les plus défavorables de la MRC de Deux-Montagnes, 2021 | AA29: Panorama de la défavorisation dans les Laurentides 2021, produit par l’équipe Surveillance, recherche et évaluation, Direction de santé publique des Laurentides, Centre intégré de santé et de services sociaux des Laurentides, 2024 | AB29: A15 | AC29: La population sans indice réside dans des secteurs où l’information pour le calcul de l’indice est indisponible à cause des ménages collectifs (centres d’hébergement, pénitenciers) ou du taux de non-réponse trop élevé. | AD29: A16 | AE29: https://www.santelaurentides.gouv.qc.ca/sante-publique/donnees-sur-la-population/panorama-de-la-defavorisation/ | AF29: A1:O16 | AG29: A1:O14 | AH29: Répartition de la population selon les profils de défavorisation matérielle et sociale combinée 2021 de la MRC de Deux-Montagnes | AI29: Dans la MRC de Deux-Montagnes, les secteurs ayant des conditions parmi les plus défavorables de la MRC à la fois sur le plan matériel et social (profil 5) sont localisés à Pointe-Calumet et à Saint-Eustache. À Pointe-Calumet, près du tiers de la population habite ces secteurs. Mise à jour : janvier 2024
A30: 720 | B30: 720MatérielleLocal | C30: Local | D30: Matérielle | E30: A280:K287 | F30: A23:J25 | G30: F280:G287 | H30: A28:B30 | I30: A280:A287 | J30: MRC_DeuxMontagnes_Defavo_2016_Mat.png | K30: MRC_DM_2016_Mat | L30: A5 | M30: B2 | N30: B5 | O30: B2 | P30: A5 | Q30: Dans la MRC de Deux-Montagnes, on retrouve des secteurs ayant les conditions matérielles parmi les plus défavorables (quartile 4 – en orangé) de la MRC dans toutes les municipalités. Plus de 80 % de la population de Pointe-Calumet et plus de la moitié de celle de Saint-Placide habitent ces secteurs. Mise à jour : janvier 2024 | R30: Dans la MRC de Deux-Montagnes, on retrouve des secteurs ayant les conditions matérielles parmi les plus défavorables (quartile 4) de la MRC dans toutes les municipalités. Plus de 80 % de la population de Pointe-Calumet et plus de la moitié de celle de Saint-Placide habitent ces secteurs. Mise à jour : janvier 2024 | T30: J3:O40 | U30: A17:K32 | V30: Répartition de la population selon le niveau de défavorisation matérielle 2021 de la MRC de Deux-Montagnes | W30: Source : INSPQ et BIESP, 2023. Statistique Canada, Recensement 2021. | X30: A13 | Y30: 16.5 | Z30: Population des secteurs ayant les conditions matérielles les plus défavorables de la MRC de Deux-Montagnes, 2021 | AA30: Panorama de la défavorisation dans les Laurentides 2021, produit par l’équipe Surveillance, recherche et évaluation, Direction de santé publique des Laurentides, Centre intégré de santé et de services sociaux des Laurentides, 2024 | AB30: A14 | AC30: La population sans indice réside dans des secteurs où l’information pour le calcul de l’indice est indisponible à cause des ménages collectifs (centres d’hébergement, pénitenciers) ou du taux de non-réponse trop élevé. | AD30: A15 | AE30: https://www.santelaurentides.gouv.qc.ca/sante-publique/donnees-sur-la-population/panorama-de-la-defavorisation/ | AF30: A1:O15 | AG30: A1:O13 | AH30: Répartition de la population selon le niveau de défavorisation matérielle 2021 de la MRC de Deux-Montagnes | AI30: Dans la MRC de Deux-Montagnes, on retrouve des secteurs ayant les conditions matérielles parmi les plus défavorables (quartile 4) de la MRC dans toutes les municipalités. Plus de 80 % de la population de Pointe-Calumet et plus de la moitié de celle de Saint-Placide habitent ces secteurs. Mise à jour : janvier 2024
A31: 720 | B31: 720SocialeLocal | C31: Local | D31: Sociale | E31: A371:K378 | F31: A23:J25 | G31: F371:G378 | H31: A28:B30 | I31: A371:A378 | J31: MRC_DeuxMontagnes_Defavo_2016_Soc.png | K31: MRC_DM_2016_Soc | L31: A5 | M31: B2 | N31: B5 | O31: B2 | P31: A5 | Q31: Dans la MRC de Deux-Montagnes, les secteurs ayant les conditions sociales parmi les plus défavorables (quartile 4 – en orangé) de la MRC se répartissent dans Pointe-Calumet, la municipalité de Deux-Montagnes, Saint-Eustache et Sainte-Marthe-sur-le-Lac. Environ la moitié de la population de Pointe-Calumet et environ le tiers de la population de la municipalité de Deux-Montagnes et de Saint-Eustache habitent dans ces secteurs. Mise à jour : janvier 2024 | R31: Dans la MRC de Deux-Montagnes, les secteurs ayant les conditions sociales parmi les plus défavorables (quartile 4) de la MRC se répartissent dans Pointe-Calumet, la municipalité de Deux-Montagnes, Saint-Eustache et Sainte-Marthe-sur-le-Lac. Environ la moitié de la population de Pointe-Calumet et environ le tiers de la population de la municipalité de Deux-Montagnes et de Saint-Eustache habitent dans ces secteurs. Mise à jour : janvier 2024 | T31: J3:O40 | U31: A17:K32 | V31: Répartition de la population selon le niveau de défavorisation sociale 2021 de la MRC de Deux-Montagnes | W31: Source : INSPQ et BIESP, 2023. Statistique Canada, Recensement 2021. | X31: A13 | Y31: 16.5 | Z31: Population des secteurs ayant les conditions sociales les plus défavorables de la MRC de Deux-Montagnes, 2021 | AA31: Panorama de la défavorisation dans les Laurentides 2021, produit par l’équipe Surveillance, recherche et évaluation, Direction de santé publique des Laurentides, Centre intégré de santé et de services sociaux des Laurentides, 2024 | AB31: A14 | AC31: La population sans indice réside dans des secteurs où l’information pour le calcul de l’indice est indisponible à cause des ménages collectifs (centres d’hébergement, pénitenciers) ou du taux de non-réponse trop élevé. | AD31: A15 | AE31: https://www.santelaurentides.gouv.qc.ca/sante-publique/donnees-sur-la-population/panorama-de-la-defavorisation/ | AF31: A1:O15 | AG31: A1:O13 | AH31: Répartition de la population selon le niveau de défavorisation sociale 2021 de la MRC de Deux-Montagnes | AI31: Dans la MRC de Deux-Montagnes, les secteurs ayant les conditions sociales parmi les plus défavorables (quartile 4) de la MRC se répartissent dans Pointe-Calumet, la municipalité de Deux-Montagnes, Saint-Eustache et Sainte-Marthe-sur-le-Lac. Environ la moitié de la population de Pointe-Calumet et environ le tiers de la population de la municipalité de Deux-Montagnes et de Saint-Eustache habitent ces secteurs. Mise à jour : janvier 2024
A32: 730 | B32: 730Matérielle et socialeLocal | C32: Local | D32: Matérielle et sociale | E32: A15:O22 | F32: A1:N4 | G32: J15:K22 | H32: A12:B15 | I32: A15:A22 | J32: MRC_ThereseBlainville_Defavo_2016_Comb.png | K32: MRC_TDB_2016_Comb | L32: A6 | M32: B2 | N32: B6 | O32: B2 | P32: A6 | Q32: Dans la MRC de Thérèse-De Blainville, les secteurs ayant les conditions parmi les plus défavorables de la MRC à la fois sur le plan matériel et social (profil 5 – en violet) sont localisés à Sainte-Thérèse, Sainte-Anne-des-Plaines, Boisbriand et à Blainville. À Sainte-Thérèse, c’est près du quart de la population qui habite dans ces secteurs. Les secteurs où les conditions sont parmi les plus défavorables de la MRC seulement sur le plan social (profil 3 – en bleu) se retrouvent dans toutes les municipalités du territoire, SAUF à Lorraine et à Sainte-Anne-des-Plaines. Plus du tiers de la population de Sainte-Thérèse et près de la moitié de celle de Bois-des-Filion résident dans ces secteurs de profil 3. On retrouve des secteurs qui présentent les conditions parmi les plus défavorables de la MRC uniquement sur le plan matériel (profil 4 – en orangé) dans toutes les municipalités du territoire SAUF à Lorraine et à Rosemère. La moitié de la population de Sainte-Anne-des-Plaines et le tiers de celle de Boisbriand résident dans ces secteurs. Mise à jour : janvier 2024 | R32: Dans la MRC de Thérèse-De Blainville, les secteurs ayant les conditions parmi les plus défavorables de la MRC à la fois sur le plan matériel et social (profil 5) sont localisés à Sainte-Thérèse, Sainte-Anne-des-Plaines, Boisbriand et à Blainville. À Sainte-Thérèse, c’est près du quart de la population qui habite ces secteurs. Les secteurs où les conditions sont parmi les plus défavorables de la MRC seulement sur le plan social (profil 3) se retrouvent dans toutes les municipalités du territoire, SAUF à Lorraine et à Sainte-Anne-des-Plaines. Plus du tiers de la population de Sainte-Thérèse et près de la moitié de celle de Bois-des-Filion résident dans ces secteurs de profil 3. On retrouve des secteurs qui présentent les conditions parmi les plus défavorables de la MRC uniquement sur le plan matériel (profil 4) dans toutes les municipalités du territoire SAUF à Lorraine et à Rosemère. La moitié de la population de Sainte-Anne-des-Plaines et le tiers de celle de Boisbriand résident dans ces secteurs. Mise à jour : janvier 2024 | T32: J3:O40 | U32: A18:K33 | V32: Répartition de la population selon les profils de défavorisation matérielle et sociale combinée 2021 de la MRC de Thérèse-De Blainville | W32: Source : INSPQ et BIESP, 2023. Statistique Canada, Recensement 2021. | X32: A14 | Y32: 49.5 | Z32: Population des secteurs ayant les conditions matérielles et sociales les plus défavorables de la MRC de Thérèse-De Blainville, 2021 | AA32: Panorama de la défavorisation dans les Laurentides 2021, produit par l’équipe Surveillance, recherche et évaluation, Direction de santé publique des Laurentides, Centre intégré de santé et de services sociaux des Laurentides, 2024 | AB32: A15 | AC32: La population sans indice réside dans des secteurs où l’information pour le calcul de l’indice est indisponible à cause des ménages collectifs (centres d’hébergement, pénitenciers) ou du taux de non-réponse trop élevé. | AD32: A16 | AE32: https://www.santelaurentides.gouv.qc.ca/sante-publique/donnees-sur-la-population/panorama-de-la-defavorisation/ | AF32: A1:O16 | AG32: A1:O15 | AH32: Répartition de la population selon les profils de défavorisation matérielle et sociale combinée 2021 de la MRC de Thérèse-De Blainville | AI32: Dans la MRC de Thérèse-De Blainville, les secteurs ayant les conditions parmi les plus défavorables de la MRC à la fois sur le plan matériel et social (profil 5) sont localisés à Sainte-Thérèse, Sainte-Anne-des-Plaines, Boisbriand et à Blainville. À Sainte-Thérèse, c’est près du quart de la population qui habite dans ces secteurs. Mise à jour : janvier 2024
A33: 730 | B33: 730MatérielleLocal | C33: Local | D33: Matérielle | E33: A288:K295 | F33: A23:J25 | G33: F288:G295 | H33: A28:B30 | I33: A288:A295 | J33: MRC_ThereseBlainville_Defavo_2016_Mat.png | K33: MRC_TDB_2016_Mat | L33: A5 | M33: B2 | N33: B5 | O33: B2 | P33: A5 | Q33: Dans la MRC Thérèse-De Blainville, les secteurs ayant les conditions matérielles parmi les plus défavorables (quartile 4 – en orangé) de la MRC sont localisés à Sainte-Anne-des-Plaines, Boisbriand, Sainte-Thérèse, Bois-des-Filion et à Blainville. Les deux-tiers de la population de Sainte-Anne-des-Plaines et près de la moitié de celle de Boisbriand habitent ces secteurs. Mise à jour : janvier 2024 | R33: Dans la MRC Thérèse-De Blainville, les secteurs ayant les conditions matérielles parmi les plus défavorables (quartile 4) de la MRC sont localisés à Sainte-Anne-des-Plaines, Boisbriand, Sainte-Thérèse, Bois-des-Filion et à Blainville. Les deux-tiers de la population de Sainte-Anne-des-Plaines et près de la moitié de celle de Boisbriand habitent ces secteurs. Mise à jour : janvier 2024 | T33: J3:O40 | U33: A17:K32 | V33: Répartition de la population selon le niveau de défavorisation matérielle 2021 de la MRC de Thérèse-De Blainville | W33: Source : INSPQ et BIESP, 2023. Statistique Canada, Recensement 2021. | X33: A13 | Y33: 16.5 | Z33: Population des secteurs ayant les conditions matérielles les plus défavorables de la MRC de Thérèse-De Blainville, 2021 | AA33: Panorama de la défavorisation dans les Laurentides 2021, produit par l’équipe Surveillance, recherche et évaluation, Direction de santé publique des Laurentides, Centre intégré de santé et de services sociaux des Laurentides, 2024 | AB33: A14 | AC33: La population sans indice réside dans des secteurs où l’information pour le calcul de l’indice est indisponible à cause des ménages collectifs (centres d’hébergement, pénitenciers) ou du taux de non-réponse trop élevé. | AD33: A15 | AE33: https://www.santelaurentides.gouv.qc.ca/sante-publique/donnees-sur-la-population/panorama-de-la-defavorisation/ | AF33: A1:O15 | AG33: A1:O14 | AH33: Répartition de la population selon le niveau de défavorisation matérielle 2021 de la MRC de Thérèse-De Blainville | AI33: Dans la MRC Thérèse-De Blainville, les secteurs ayant les conditions matérielles parmi les plus défavorables (quartile 4) de la MRC sont localisés à Sainte-Anne-des-Plaines, Boisbriand, Sainte-Thérèse, Bois-des-Filion et à Blainville. Les deux-tiers de la population de Sainte-Anne-des-Plaines et près de la moitié de celle de Boisbriand habitent ces secteurs. Mise à jour : janvier 2024
A34: 730 | B34: 730SocialeLocal | C34: Local | D34: Sociale | E34: A379:K386 | F34: A23:J25 | G34: F379:G386 | H34: A28:B30 | I34: A379:A386 | J34: MRC_ThereseBlainville_Defavo_2016_Soc.png | K34: MRC_TDB_2016_Soc | L34: A5 | M34: B2 | N34: B5 | O34: B2 | P34: A5 | Q34: Dans la MRC Thérèse-De Blainville, les secteurs ayant les conditions sociales parmi les plus défavorables (quartile 4 – en orangé) de la MRC sont répartis dans toutes les municipalités du territoire, SAUF à Lorraine. Environ la moitié de la population de Sainte-Thérèse et de Bois-des-Filion habite ces secteurs. C’est aussi le cas pour plus du quart des résidents de Boisbriand. Mise à jour : janvier 2024 | R34: Dans la MRC Thérèse-De Blainville, les secteurs ayant les conditions sociales parmi les plus défavorables (quartile 4) de la MRC sont répartis dans toutes les municipalités du territoire, SAUF à Lorraine. Environ la moitié de la population de Sainte-Thérèse et de Bois-des-Filion habite ces secteurs. C’est aussi le cas pour plus du quart des résidents de Boisbriand. Mise à jour : janvier 2024 | T34: J3:O40 | U34: A17:K32 | V34: Répartition de la population selon le niveau de défavorisation sociale 2021 de la MRC de Thérèse-De Blainville | W34: Source : INSPQ et BIESP, 2023. Statistique Canada, Recensement 2021. | X34: A13 | Y34: 16.5 | Z34: Population des secteurs ayant les conditions sociales les plus défavorables de la MRC de Thérèse-De Blainville, 2021 | AA34: Panorama de la défavorisation dans les Laurentides 2021, produit par l’équipe Surveillance, recherche et évaluation, Direction de santé publique des Laurentides, Centre intégré de santé et de services sociaux des Laurentides, 2024 | AB34: A14 | AC34: La population sans indice réside dans des secteurs où l’information pour le calcul de l’indice est indisponible à cause des ménages collectifs (centres d’hébergement, pénitenciers) ou du taux de non-réponse trop élevé. | AD34: A15 | AE34: https://www.santelaurentides.gouv.qc.ca/sante-publique/donnees-sur-la-population/panorama-de-la-defavorisation/ | AF34: A1:O15 | AG34: A1:O14 | AH34: Répartition de la population selon le niveau de défavorisation sociale 2021 de la MRC de Thérèse-De Blainville | AI34: Dans la MRC Thérèse-De Blainville, les secteurs ayant les conditions sociales parmi les plus défavorables (quartile 4) de la MRC sont répartis dans toutes les municipalités du territoire, SAUF à Lorraine. Environ la moitié de la population de Sainte-Thérèse et de Bois-des-Filion habite ces secteurs. C’est aussi le cas pour plus du quart des résidents de Boisbriand. Mise à jour : janvier 2024
A35: 740 | B35: 740Matérielle et socialeLocal | C35: Local | D35: Matérielle et sociale | E35: A23:O23 | F35: A1:N4 | G35: J23:K23 | H35: A12:B15 | I35: A23:A23 | J35: MRC_Mirabel_Defavo_2016_Comb.png | K35: MRC_MIR_2016_Comb | L35: A6 | M35: B2 | N35: B6 | O35: B2 | P35: A6 | Q35: On remarque des secteurs ayant les conditions les plus défavorisées matériellement et socialement (profil 5 – en violet) de Mirabel dans les secteurs de Saint-Janvier et de Saint-Augustin. Les secteurs qui présentent les conditions les plus défavorables de Mirabel seulement sur le plan social (profil 3 – en bleu) se situent dans Saint-Canut, Saint-Janvier, Le Petit-Brûlé, Saint-Augustin et à Saint-Benoît. Les secteurs dont les conditions sont les plus défavorables sur le plan matériel seulement (profil 4 – en orangé) se situent dans Saint-Canut, Sainte-Monique, Saint-Janvier et Saint-Augustin. Mise à jour : janvier 2024 | R35: 6,1% de la population de Mirabel, soit 3 700 personnes, habitent des secteurs ayant les conditions parmi les plus défavorables de Mirabel à la fois sur le plan matériel et social (profil 5). Les secteurs qui présentent les conditions plus défavorables uniquement sur le plan social (profil 3) regroupent 18,4 % de la population (11 200 personnes). Les secteurs dont les conditions sont les plus défavorables seulement sur le plan matériel (profil 4) sont le lieu de résidence de 19,2 % de la population de la municipalité, ce qui correspond à 11 700 personnes. Mise à jour : janvier 2024 | T35: J3:O40 | U35: A12:K27 | V35: Répartition de la population selon les profils de défavorisation matérielle et sociale combinée 2021 de Mirabel | W35: Source : INSPQ et BIESP, 2023. Statistique Canada, Recensement 2021. | X35: A8 | Y35: 49.5 | Z35: Population des secteurs ayant les conditions matérielles et sociales les plus défavorables de Mirabel, 2021 | AA35: Panorama de la défavorisation dans les Laurentides 2021, produit par l’équipe Surveillance, recherche et évaluation, Direction de santé publique des Laurentides, Centre intégré de santé et de services sociaux des Laurentides, 2024 | AB35: A9 | AC35: La population sans indice réside dans des secteurs où l’information pour le calcul de l’indice est indisponible à cause des ménages collectifs (centres d’hébergement, pénitenciers) ou du taux de non-réponse trop élevé. | AD35: A10 | AE35: https://www.santelaurentides.gouv.qc.ca/sante-publique/donnees-sur-la-population/panorama-de-la-defavorisation/ | AF35: A1:O10 | AG35: A1:O9 | AH35: Répartition de la population selon les profils de défavorisation matérielle et sociale combinée 2021 de Mirabel | AI35: 6,1% de la population de Mirabel, soit 3 700 personnes, habitent des secteurs ayant les conditions parmi les plus défavorables de Mirabel à la fois sur le plan matériel et social (profil 5). Mise à jour : janvier 2024
A36: 740 | B36: 740MatérielleLocal | C36: Local | D36: Matérielle | E36: A296:K297 | F36: A23:J25 | G36: F296:G296 | H36: A28:B30 | I36: A296:A296 | J36: MRC_Mirabel_Defavo_2016_Mat.png | K36: MRC_MIR_2016_Mat | L36: A5 | M36: B2 | N36: B5 | O36: B2 | P36: A5 | Q36: Les secteurs de Mirabel ayant les conditions matérielles les plus défavorables (quartile 4 – en orangé) se situent essentiellement dans Saint-Canut, Saint-Hermas, Saint-Benoît, Le Petit-Brûlé, Saint-Augustin et Saint-Janvier. Mise à jour : janvier 2024 | R36: Le quart de la population de Mirabel habitent les secteurs ayant les conditions matérielles les plus défavorables (quartile 4), ce qui correspond à près de 15 400 personnes. Mise à jour : janvier 2024 | T36: J3:O40 | U36: A11:K26 | V36: Répartition de la population selon le niveau de défavorisation matérielle 2021 de Mirabel | W36: Source : INSPQ et BIESP, 2023. Statistique Canada, Recensement 2021. | X36: A7 | Y36: 16.5 | Z36: Population des secteurs ayant les conditions matérielles les plus défavorables de Mirabel, 2021 | AA36: Panorama de la défavorisation dans les Laurentides 2021, produit par l’équipe Surveillance, recherche et évaluation, Direction de santé publique des Laurentides, Centre intégré de santé et de services sociaux des Laurentides, 2024 | AB36: A8 | AC36: La population sans indice réside dans des secteurs où l’information pour le calcul de l’indice est indisponible à cause des ménages collectifs (centres d’hébergement, pénitenciers) ou du taux de non-réponse trop élevé. | AD36: A9 | AE36: https://www.santelaurentides.gouv.qc.ca/sante-publique/donnees-sur-la-population/panorama-de-la-defavorisation/ | AF36: A1:O9 | AG36: A1:O8 | AH36: Répartition de la population selon le niveau de défavorisation matérielle 2021 de Mirabel | AI36: Le quart de la population de Mirabel habitant les secteurs ayant les conditions matérielles les plus défavorables (quartile 4), ce qui correspond à près de 15 400 personnes. Mise à jour : janvier 2024
A37: 740 | B37: 740SocialeLocal | C37: Local | D37: Sociale | E37: A387:K387 | F37: A23:J25 | G37: F387:G387 | H37: A28:B30 | I37: A387:A387 | J37: MRC_Mirabel_Defavo_2016_Soc.png | K37: MRC_MIR_2016_Soc | L37: A5 | M37: B2 | N37: B5 | O37: B2 | P37: A5 | Q37: Les secteurs de Mirabel ayant les conditions sociales les plus défavorables (quartile 4 – en orangé) se situent essentiellement dans Saint-Canut, Sainte-Monique, Saint-Augustin et Saint-Janvier. Mise à jour : janvier 2024 | R37: Le quart de la population de Mirabel habitant des secteurs ayant les conditions sociales les plus défavorables (quartile 4) correspond à environ 15 000 personnes. Mise à jour : janvier 2024 | T37: J3:O40 | U37: A11:K26 | V37: Répartition de la population selon le niveau de défavorisation sociale 2021 de Mirabel | W37: Source : INSPQ et BIESP, 2023. Statistique Canada, Recensement 2021. | X37: A7 | Y37: 16.5 | Z37: Population des secteurs ayant les conditions sociales les plus défavorables de la Mirabel, 2021 | AA37: Panorama de la défavorisation dans les Laurentides 2021, produit par l’équipe Surveillance, recherche et évaluation, Direction de santé publique des Laurentides, Centre intégré de santé et de services sociaux des Laurentides, 2024 | AB37: A8 | AC37: La population sans indice réside dans des secteurs où l’information pour le calcul de l’indice est indisponible à cause des ménages collectifs (centres d’hébergement, pénitenciers) ou du taux de non-réponse trop élevé. | AD37: A9 | AE37: https://www.santelaurentides.gouv.qc.ca/sante-publique/donnees-sur-la-population/panorama-de-la-defavorisation/ | AF37: A1:O9 | AG37: A1:O8 | AH37: Répartition de la population selon le niveau de défavorisation sociale 2021 de Mirabel | AI37: Le quart de la population de Mirabel habitant des secteurs ayant les conditions sociales les plus défavorables (quartile 4) correspond à environ 15 000 personnes. Mise à jour : janvier 2024
A38: 750 | B38: 750Matérielle et socialeLocal | C38: Local | D38: Matérielle et sociale | E38: A25:O30 | F38: A1:N4 | G38: J25:K30 | H38: A12:B15 | I38: A25:A30 | J38: MRC_RiviereN_Defavo_2016_Comb.png | K38: MRC_RDN_2016_Comb | L38: A6 | M38: B2 | N38: B6 | O38: B2 | P38: A6 | Q38: Dans la MRC de la Rivière-du-Nord, les secteurs ayant les conditions parmi les plus défavorables de la MRC à la fois au plan matériel et social (profil 5 – en violet) sont localisés à Saint-Jérôme, dont près d’un cinquième de la population habite ces secteurs. Les secteurs où les conditions sont parmi les plus défavorables de la MRC seulement au plan social (profil 3 – en bleu) se trouvent à Saint-Jérôme et Prévost. On retrouve des secteurs qui présentent les conditions parmi les plus défavorables uniquement au plan matériel (profil 4 – en orangé) dans toutes les municipalités du territoire, sauf à Prévost. Près de la moitié de la population de Sainte-Sophie réside dans ces secteurs. Mise à jour : janvier 2024 | R38: Dans la MRC de la Rivière-du-Nord, les secteurs ayant les conditions parmi les plus défavorables de la MRC à la fois au plan matériel et social (profil 5) sont localisés à Saint-Jérôme, dont près d’un cinquième de sa population habite ces secteurs. Les secteurs où les conditions sont parmi les plus défavorables de la MRC seulement au plan social (profil 3) se trouvent à Saint-Jérôme et à Prévost. On retrouve des secteurs qui présentent les conditions parmi les plus défavorables uniquement au plan matériel (profil 4) dans toutes les municipalités du territoire, SAUF à Prévost. Près de la moitié de la population de Sainte-Sophie réside dans ces secteurs. Mise à jour : janvier 2024 | T38: J3:O40 | U38: A16:K31 | V38: Répartition de la population selon les profils de défavorisation matérielle et sociale combinée 2021 de la MRC de la Rivière-du-Nord | W38: Source : INSPQ et BIESP, 2023. Statistique Canada, Recensement 2021. | X38: A12 | Y38: 49.5 | Z38: Population des secteurs ayant les conditions matérielles et sociales les plus défavorables de la MRC de la Rivière-du-Nord, 2021 | AA38: Panorama de la défavorisation dans les Laurentides 2021, produit par l’équipe Surveillance, recherche et évaluation, Direction de santé publique des Laurentides, Centre intégré de santé et de services sociaux des Laurentides, 2024 | AB38: A13 | AC38: La population sans indice réside dans des secteurs où l’information pour le calcul de l’indice est indisponible à cause des ménages collectifs (centres d’hébergement, pénitenciers) ou du taux de non-réponse trop élevé. | AD38: A14 | AE38: https://www.santelaurentides.gouv.qc.ca/sante-publique/donnees-sur-la-population/panorama-de-la-defavorisation/ | AF38: A1:O14 | AG38: A1:O13 | AH38: Répartition de la population selon les profils de défavorisation matérielle et sociale combinée 2021 de la MRC de la Rivière-du-Nord | AI38: Dans la MRC de la Rivière-du-Nord, les secteurs ayant les conditions parmi les plus défavorables de la MRC à la fois au plan matériel et social (profil 5) sont localisés à Saint-Jérôme, dont près d’un cinquième de la population habite ces secteurs. Mise à jour : janvier 2024
A39: 750 | B39: 750MatérielleLocal | C39: Local | D39: Matérielle | E39: A298:K303 | F39: A23:J25 | G39: F298:G303 | H39: A28:B30 | I39: A298:A303 | J39: MRC_RiviereN_Defavo_2016_Mat.png | K39: MRC_RDN_2016_Mat | L39: A5 | M39: B2 | N39: B5 | O39: B2 | P39: A5 | Q39: Toutes les municipalités de la MRC de la Rivière-du-Nord SAUF Prévost comportent des secteurs ayant les conditions matérielles parmi les plus défavorables (quartile 4 – en orangé) de la MRC. Près de la moitié de la population de Sainte-Sophie et un tiers de celle de Saint-Jérôme habitent ces secteurs. Mise à jour : janvier 2024 | R39: Toutes les municipalités de la MRC de la Rivière-du-Nord SAUF Prévost comportent des secteurs ayant les conditions matérielles parmi les plus défavorables (quartile 4) de la MRC. Près de la moitié de la population de Sainte-Sophie et un tiers de celle de Saint-Jérôme habitent ces secteurs. Mise à jour janvier 2024 | T39: J3:O40 | U39: A15:K30 | V39: Répartition de la population selon le niveau de défavorisation matérielle 2021 de MRC de la Rivière-du-Nord | W39: Source : INSPQ et BIESP, 2023. Statistique Canada, Recensement 2021. | X39: A11 | Y39: 16.5 | Z39: Population des secteurs ayant les conditions matérielles les plus défavorables de la MRC de la Rivière-du-Nord, 2021 | AA39: Panorama de la défavorisation dans les Laurentides 2021, produit par l’équipe Surveillance, recherche et évaluation, Direction de santé publique des Laurentides, Centre intégré de santé et de services sociaux des Laurentides, 2024 | AB39: A12 | AC39: La population sans indice réside dans des secteurs où l’information pour le calcul de l’indice est indisponible à cause des ménages collectifs (centres d’hébergement, pénitenciers) ou du taux de non-réponse trop élevé. | AD39: A13 | AE39: https://www.santelaurentides.gouv.qc.ca/sante-publique/donnees-sur-la-population/panorama-de-la-defavorisation/ | AF39: A1:O13 | AG39: A1:O12 | AH39: Répartition de la population selon le niveau de défavorisation matérielle 2021 de MRC de la Rivière-du-Nord | AI39: Toutes les municipalités de la MRC de la Rivière-du-Nord SAUF Prévost comportent des secteurs ayant les conditions matérielles parmi les plus défavorables (quartile 4) de la MRC. Près de la moitié de la population de Sainte-Sophie et un tiers de celle de Saint-Jérôme habitent ces secteurs. Mise à jour : janvier 2024
A40: 750 | B40: 750SocialeLocal | C40: Local | D40: Sociale | E40: A389:K394 | F40: A23:J25 | G40: F389:G394 | H40: A28:B30 | I40: A389:A394 | J40: MRC_RiviereN_Defavo_2016_Soc.png | K40: MRC_RDN_2016_Soc | L40: A5 | M40: B2 | N40: B5 | O40: B2 | P40: A5 | Q40: Dans la MRC de la Rivière-du-Nord, les secteurs ayant les conditions sociales parmi les plus défavorables (quartile 4 – en orangé) de la MRC sont localisés à Prévost et à Saint-Jérôme. Plus de 40 % des Jérômiens habitent ces secteurs. Mise à jour : janvier 2024 | R40: Dans la MRC de la Rivière-du-Nord, les secteurs ayant les conditions sociales parmi les plus défavorables (quartile 4) de la MRC sont localisés à Prévost et à Saint-Jérôme. Plus de 40 % des Jérômiens habitent ces secteurs. Mise à jour : janvier 2024 | T40: J3:O40 | U40: A15:K30 | V40: Répartition de la population selon le niveau de défavorisation sociale 2021 de la MRC de la Rivière-du-Nord | W40: Source : INSPQ et BIESP, 2023. Statistique Canada, Recensement 2021. | X40: A11 | Y40: 16.5 | Z40: Population des secteurs ayant les conditions sociales les plus défavorables de la MRC de la Rivière-du-Nord, 2021 | AA40: Panorama de la défavorisation dans les Laurentides 2021, produit par l’équipe Surveillance, recherche et évaluation, Direction de santé publique des Laurentides, Centre intégré de santé et de services sociaux des Laurentides, 2024 | AB40: A12 | AC40: La population sans indice réside dans des secteurs où l’information pour le calcul de l’indice est indisponible à cause des ménages collectifs (centres d’hébergement, pénitenciers) ou du taux de non-réponse trop élevé. | AD40: A13 | AE40: https://www.santelaurentides.gouv.qc.ca/sante-publique/donnees-sur-la-population/panorama-de-la-defavorisation/ | AF40: A1:O13 | AG40: A1:O12 | AH40: Répartition de la population selon le niveau de défavorisation sociale 2021 de la MRC de la Rivière-du-Nord | AI40: Dans la MRC de la Rivière-du-Nord, les secteurs ayant les conditions sociales parmi les plus défavorables (quartile 4) de la MRC sont localisés à Prévost et à Saint-Jérôme. Plus de 40 % des Jérômiens habitent ces secteurs. Mise à jour : janvier 2024
A41: 760 | B41: 760Matérielle et socialeLocal | C41: Local | D41: Matérielle et sociale | E41: A31:O40 | F41: A1:N4 | G41: J31:K40 | H41: A12:B15 | I41: A31:A40 | J41: MRC_Argenteuil_Defavo_2016_Comb.png | K41: MRC_ARG_2016_Comb | L41: A6 | M41: B2 | N41: B6 | O41: B2 | P41: A6 | Q41: Dans la MRC d’Argenteuil, les secteurs ayant les conditions parmi les plus défavorables de la MRC à la fois sur le plan matériel et social (profil 5 – en violet) sont tous localisés à Lachute. Près du tiers de la population de Lachute habite ces secteurs. Les secteurs où les conditions sont les parmi les plus défavorables de la MRC sur le plan social uniquement (profil 3 – en bleu) se trouvent à Grenville, Lachute et à Brownsburg-Chatham. L’ensemble de la population de Grenville réside dans ces secteurs. On retrouve des secteurs qui présentent les conditions parmi les plus défavorables de la MRC seulement sur le plan matériel (profil 4 – en orangé) à Brownsburg-Chatham, à Grenville-sur-la-Rouge et à Lachute. Environ un quart des résidents de Brownsburg-Chatham et de Grenville-sur-la Rouge habite ces secteurs. Mise à jour : janvier 2024 | R41: Dans la MRC d’Argenteuil, les secteurs ayant les conditions parmi les plus défavorables de la MRC à la fois sur le plan matériel et social (profil 5) sont tous localisés à Lachute. Près du tiers de la population de Lachute habite ces secteurs. Les secteurs où les conditions sont les parmi les plus défavorables de la MRC sur le plan social uniquement (profil 3) se retrouvent à Grenville, Lachute et à Brownsburg-Chatham. L’ensemble de la population de Grenville réside dans ces secteurs. On retrouve des secteurs qui présentent les conditions parmi les plus défavorables de la MRC seulement sur le plan matériel (profil 4) à Brownsburg-Chatham, Grenville-sur-la-Rouge et à Lachute. Environ un quart des résidents de Brownsburg-Chatham et de Grenville-sur-la Rouge habite ces secteurs. Mise à jour : janvier 2024 | T41: J3:O40 | U41: A20:K35 | V41: Répartition de la population selon les profils de défavorisation matérielle et sociale combinée 2021 de la MRC d'Argenteuil | W41: Source : INSPQ et BIESP, 2023. Statistique Canada, Recensement 2021. | X41: A16 | Y41: 49.5 | Z41: Population des secteurs ayant les conditions matérielles et sociales les plus défavorables de la MRC d'Argenteuil, 2021 | AA41: Panorama de la défavorisation dans les Laurentides 2021, produit par l’équipe Surveillance, recherche et évaluation, Direction de santé publique des Laurentides, Centre intégré de santé et de services sociaux des Laurentides, 2024 | AB41: A17 | AC41: La population sans indice réside dans des secteurs où l’information pour le calcul de l’indice est indisponible à cause des ménages collectifs (centres d’hébergement, pénitenciers) ou du taux de non-réponse trop élevé. | AD41: A18 | AE41: https://www.santelaurentides.gouv.qc.ca/sante-publique/donnees-sur-la-population/panorama-de-la-defavorisation/ | AF41: A1:O18 | AG41: A1:O17 | AH41: Répartition de la population selon les profils de défavorisation matérielle et sociale combinée 2021 de la MRC d'Argenteuil | AI41: Dans la MRC d’Argenteuil, les secteurs ayant les conditions parmi les plus défavorables de la MRC à la fois sur le plan matériel et social (profil 5) sont tous localisés à Lachute. Près du tiers de la population de Lachute habite ces secteurs. Mise à jour : janvier 2024
A42: 760 | B42: 760MatérielleLocal | C42: Local | D42: Matérielle | E42: A304:K313 | F42: A23:J25 | G42: F304:G313 | H42: A28:B30 | I42: A304:A313 | J42: MRC_Argenteuil_Defavo_2016_Mat.png | K42: MRC_ARG_2016_Mat | L42: A5 | M42: B2 | N42: B5 | O42: B2 | P42: A5 | Q42: Dans la MRC d’Argenteuil, on retrouve des secteurs ayant les conditions matérielles parmi les plus défavorables (quartile 4 – en orangé) de la MRC à Lachute, Brownsburg-Chatham et Grenville-sur-la-Rouge. Près de la moitié des résidents de Lachute habite ces secteurs, comme environ le quart de ceux de Brownsburg-Chatham et de Grenville-sur-la Rouge. Mise à jour : janvier 2024 | R42: Dans la MRC d’Argenteuil, on retrouve des secteurs ayant les conditions matérielles parmi les plus défavorables (quartile 4) de la MRC à Lachute, Brownsburg-Chatham et Grenville-sur-la-Rouge. Près de la moitié des résidents de Lachute habite ces secteurs, comme environ le quart de ceux de Brownsburg-Chatham et de Grenville-sur-la Rouge. Mise à jour : janvier 2024 | T42: J3:O40 | U42: A19:K34 | V42: Répartition de la population selon le niveau de défavorisation matérielle 2021 de la MRC d'Argenteuil | W42: Source : INSPQ et BIESP, 2023. Statistique Canada, Recensement 2021. | X42: A15 | Y42: 16.5 | Z42: Population des secteurs ayant les conditions matérielles les plus défavorables de la MRC d'Argenteuil, 2021 | AA42: Panorama de la défavorisation dans les Laurentides 2021, produit par l’équipe Surveillance, recherche et évaluation, Direction de santé publique des Laurentides, Centre intégré de santé et de services sociaux des Laurentides, 2024 | AB42: A16 | AC42: La population sans indice réside dans des secteurs où l’information pour le calcul de l’indice est indisponible à cause des ménages collectifs (centres d’hébergement, pénitenciers) ou du taux de non-réponse trop élevé. | AD42: A17 | AE42: https://www.santelaurentides.gouv.qc.ca/sante-publique/donnees-sur-la-population/panorama-de-la-defavorisation/ | AF42: A1:O17 | AG42: A1:O16 | AH42: Répartition de la population selon le niveau de défavorisation matérielle 2021 de la MRC d'Argenteuil | AI42: Dans la MRC d’Argenteuil, on retrouve des secteurs ayant les conditions matérielles parmi les plus défavorables (quartile 4) de la MRC à Lachute, Brownsburg-Chatham et Grenville-sur-la-Rouge. Près de la moitié des résidents de Lachute habite ces secteurs, comme environ le quart de ceux de Brownsburg-Chatham et de Grenville-sur-la Rouge. Mise à jour : janvier 2024
A43: 760 | B43: 760SocialeLocal | C43: Local | D43: Sociale | E43: A395:K404 | F43: A23:J25 | G43: F395:G404 | H43: A28:B30 | I43: A395:A404 | J43: MRC_Argenteuil_Defavo_2016_Soc.png | K43: MRC_ARG_2016_Soc | L43: A5 | M43: B2 | N43: B5 | O43: B2 | P43: A5 | Q43: Dans la MRC d’Argenteuil, les secteurs ayant les conditions sociales parmi les plus défavorables (quartile 4 – en orangé) de la MRC se répartissent dans Grenville, Lachute et Brownsburg-Chatham. Près de la moitié de la population de Lachute et l’ensemble de la population de Grenville habite ces secteurs. Mise à jour : janvier 2024 | R43: Dans la MRC d’Argenteuil, les secteurs ayant les conditions sociales parmi les plus défavorables (quartile 4) de la MRC se répartissent dans Grenville, Lachute et Brownsburg-Chatham. Près de la moitié de la population de Lachute et l’ensemble de la population de Grenville habitent ces secteurs. Mise à jour : janvier 2024 | T43: J3:O40 | U43: A19:K34 | V43: Répartition de la population selon le niveau de défavorisation sociale 2021 de la MRC d'Argenteuil | W43: Source : INSPQ et BIESP, 2023. Statistique Canada, Recensement 2021. | X43: A15 | Y43: 16.5 | Z43: Population des secteurs ayant les conditions sociales les plus défavorables de la MRC d'Argenteuil, 2021 | AA43: Panorama de la défavorisation dans les Laurentides 2021, produit par l’équipe Surveillance, recherche et évaluation, Direction de santé publique des Laurentides, Centre intégré de santé et de services sociaux des Laurentides, 2024 | AB43: A16 | AC43: La population sans indice réside dans des secteurs où l’information pour le calcul de l’indice est indisponible à cause des ménages collectifs (centres d’hébergement, pénitenciers) ou du taux de non-réponse trop élevé. | AD43: A17 | AE43: https://www.santelaurentides.gouv.qc.ca/sante-publique/donnees-sur-la-population/panorama-de-la-defavorisation/ | AF43: A1:O17 | AG43: A1:O16 | AH43: Répartition de la population selon le niveau de défavorisation sociale 2021 de la MRC d'Argenteuil | AI43: Dans la MRC d’Argenteuil, les secteurs ayant les conditions sociales parmi les plus défavorables (quartile 4) de la MRC se répartissent dans Grenville, Lachute et Brownsburg-Chatham. Près de la moitié de la population de Lachute et l’ensemble de la population de Grenville habitent ces secteurs. Mise à jour : janvier 2024
A44: 770 | B44: 770Matérielle et socialeLocal | C44: Local | D44: Matérielle et sociale | E44: A41:O51 | F44: A1:N4 | G44: J41:K51 | H44: A12:B15 | I44: A41:A51 | J44: MRC_PaysEnHaut_Defavo_2016_Comb.png | K44: MRC_PDH_2016_Comb | L44: A6 | M44: B2 | N44: B6 | O44: B2 | P44: A6 | Q44: Dans la MRC des Pays-d’en-Haut, les secteurs ayant les conditions parmi les plus défavorables de la MRC à la fois sur le plan matériel et social (profil 5 – en violet) sont localisés à Sainte-Adèle. Les secteurs où les conditions sont parmi les plus défavorables de la MRC uniquement sur le plan social (profil 3 – en bleu) se retrouvent à Sainte-Adèle, Piedmont et à Saint-Sauveur. Plus des trois-quarts de la population de Piedmont habitent ces secteurs. On retrouve des secteurs qui présentent les conditions parmi les plus défavorables de la MRC seulement sur le plan matériel (profil 4 – en orangé) dans Sainte-Marguerite-du-Lac-Masson, Sainte-Adèle, Wentworth-Nord, Saint-Adolphe-d’Howard et Saint-Sauveur. Presque toute la population de Sainte-Marguerite-du-Lac-Masson et plus de la moitié de celle de Saint-Adolphe-d'Howard habitent ces secteurs. Mise à jour : janvier 2024 | R44: Dans la MRC des Pays-d’en-Haut, les secteurs ayant les conditions parmi les plus défavorables de la MRC à la fois sur le plan matériel et social (profil 5) sont localisés à Sainte-Adèle. Les secteurs où les conditions sont parmi les plus défavorables de la MRC uniquement sur le plan social (profil 3) se retrouvent à Sainte-Adèle, Piedmont et à Saint-Sauveur. Plus des trois-quarts de la population de Piedmont habitent ces secteurs. On retrouve des secteurs qui présentent les conditions parmi les plus défavorables de la MRC seulement sur le plan matériel (profil 4) dans Sainte-Marguerite-du-Lac-Masson, Sainte-Adèle, Wentworth-Nord, Saint-Adolphe-d’Howard et Saint-Sauveur. Presque toute la population de Sainte-Marguerite-du-Lac-Masson et plus de la moitié de celle de Saint-Adolphe-d'Howard habitent ces secteurs. Mise à jour : janvier 2024 | T44: J3:O40 | U44: A21:K36 | V44: Répartition de la population selon les profils de défavorisation matérielle et sociale combinée 2021 de la MRC des Pays-d'en-Haut | W44: Source : INSPQ et BIESP, 2023. Statistique Canada, Recensement 2021. | X44: A17 | Y44: 49.5 | Z44: Population des secteurs ayant les conditions matérielles et sociales les plus défavorables de la MRC des Pays-d'en-Haut, 2021 | AA44: Panorama de la défavorisation dans les Laurentides 2021, produit par l’équipe Surveillance, recherche et évaluation, Direction de santé publique des Laurentides, Centre intégré de santé et de services sociaux des Laurentides, 2024 | AB44: A18 | AC44: La population sans indice réside dans des secteurs où l’information pour le calcul de l’indice est indisponible à cause des ménages collectifs (centres d’hébergement, pénitenciers) ou du taux de non-réponse trop élevé. | AD44: A19 | AE44: https://www.santelaurentides.gouv.qc.ca/sante-publique/donnees-sur-la-population/panorama-de-la-defavorisation/ | AF44: A1:O18 | AG44: A1:O17 | AH44: Répartition de la population selon les profils de défavorisation matérielle et sociale combinée 2021 de la MRC des Pays-d'en-Haut | AI44: Dans la MRC des Pays-d’en-Haut, les secteurs ayant les conditions parmi les plus défavorables de la MRC à la fois sur le plan matériel et social (profil 5) sont localisés à Sainte-Adèle. Mise à jour : janvier 2024
A45: 770 | B45: 770MatérielleLocal | C45: Local | D45: Matérielle | E45: A314:K324 | F45: A23:J25 | G45: F314:G324 | H45: A28:B30 | I45: A314:A324 | J45: MRC_PaysEnHaut_Defavo_2016_Mat.png | K45: MRC_PDH_2016_Mat | L45: A5 | M45: B2 | N45: B5 | O45: B2 | P45: A5 | Q45: Dans la MRC des Pays-d’en-Haut, les secteurs ayant les conditions matérielles parmi les plus défavorables (quartile 4 – en orangé) de la MRC sont à Sainte-Marguerite-du-Lac-Masson, Sainte-Adèle, Wentworth-Nord, Saint-Adolphe-d’Howard et Saint-Sauveur. Presque toute la population de Sainte-Marguerite-du-Lac-Masson et plus de la moitié de celle de Saint-Adolphe-d'Howard habitent ces secteurs. Mise à jour : janvier 2024 | R45: Dans la MRC des Pays-d’en-Haut, les secteurs ayant les conditions matérielles parmi les plus défavorables (quartile 4) de la MRC sont Sainte-Marguerite-du-Lac-Masson, Sainte-Adèle, Wentworth-Nord, Saint-Adolphe-d’Howard et Saint-Sauveur. Presque toute la population de Sainte-Marguerite-du-Lac-Masson et plus de la moitié de celle de Saint-Adolphe-d'Howard habitent ces secteurs. Mise à jour : janvier 2024 | T45: J3:O40 | U45: A20:K35 | V45: Répartition de la population selon le niveau de défavorisation matérielle 2021 de la MRC des Pays-d'en-Haut | W45: Source : INSPQ et BIESP, 2023. Statistique Canada, Recensement 2021. | X45: A16 | Y45: 16.5 | Z45: Population des secteurs ayant les conditions matérielles les plus défavorables de la MRC des Pays-d'en-Haut, 2021 | AA45: Panorama de la défavorisation dans les Laurentides 2021, produit par l’équipe Surveillance, recherche et évaluation, Direction de santé publique des Laurentides, Centre intégré de santé et de services sociaux des Laurentides, 2024 | AB45: A17 | AC45: La population sans indice réside dans des secteurs où l’information pour le calcul de l’indice est indisponible à cause des ménages collectifs (centres d’hébergement, pénitenciers) ou du taux de non-réponse trop élevé. | AD45: A18 | AE45: https://www.santelaurentides.gouv.qc.ca/sante-publique/donnees-sur-la-population/panorama-de-la-defavorisation/ | AF45: A1:O17 | AG45: A1:O16 | AH45: Répartition de la population selon le niveau de défavorisation matérielle 2021 de la MRC des Pays-d'en-Haut | AI45: Dans la MRC des Pays-d’en-Haut, les secteurs ayant les conditions matérielles parmi les plus défavorables (quartile 4) de la MRC sont à Sainte-Marguerite-du-Lac-Masson, Sainte-Adèle, Wentworth-Nord, Saint-Adolphe-d’Howard et à Saint-Sauveur. Presque toute la population de Sainte-Marguerite-du-Lac-Masson et plus de la moitié de celle de Saint-Adolphe-d'Howard habitent ces secteurs. Mise à jour : janvier 2024
A46: 770 | B46: 770SocialeLocal | C46: Local | D46: Sociale | E46: A405:K415 | F46: A23:J25 | G46: F405:G415 | H46: A28:B30 | I46: A405:A415 | J46: MRC_PaysEnHaut_Defavo_2016_Soc.png | K46: MRC_PDH_2016_Soc | L46: A5 | M46: B2 | N46: B5 | O46: B2 | P46: A5 | Q46: Les secteurs de la MRC des Pays-d’en-Haut qui présentent les conditions sociales parmi les plus défavorables (quartile 4 – en orangé) de la MRC se retrouvent à Sainte-Adèle, Piedmont et à Saint-Sauveur. Plus des trois-quarts de la population de Piedmont et près de la moitié de celle de Sainte-Adèle habitent ces secteurs. Mise à jour : janvier 2024 | R46: Les secteurs de la MRC des Pays-d’en-Haut qui présentent les conditions sociales parmi les plus défavorables (quartile 4) de la MRC se retrouvent à Sainte-Adèle, Piedmont et à Saint-Sauveur. Plus des trois-quarts de la population de Piedmont et près de la moitié de celle de Sainte-Adèle habitent ces secteurs. Mise à jour : janvier 2024 | T46: J3:O40 | U46: A20:K35 | V46: Répartition de la population selon le niveau de défavorisation sociale 2021 de la MRC des Pays-d'en-Haut | W46: Source : INSPQ et BIESP, 2023. Statistique Canada, Recensement 2021. | X46: A16 | Y46: 16.5 | Z46: Population des secteurs ayant les conditions sociales les plus défavorables de la MRC des Pays-d'en-Haut, 2021 | AA46: Panorama de la défavorisation dans les Laurentides 2021, produit par l’équipe Surveillance, recherche et évaluation, Direction de santé publique des Laurentides, Centre intégré de santé et de services sociaux des Laurentides, 2024 | AB46: A17 | AC46: La population sans indice réside dans des secteurs où l’information pour le calcul de l’indice est indisponible à cause des ménages collectifs (centres d’hébergement, pénitenciers) ou du taux de non-réponse trop élevé. | AD46: A18 | AE46: https://www.santelaurentides.gouv.qc.ca/sante-publique/donnees-sur-la-population/panorama-de-la-defavorisation/ | AF46: A1:O17 | AG46: A1:O16 | AH46: Répartition de la population selon le niveau de défavorisation sociale 2021 de la MRC des Pays-d'en-Haut | AI46: Les secteurs de la MRC des Pays-d’en-Haut qui présentent les conditions sociales parmi les plus défavorables (quartile 4) de la MRC se retrouvent à Sainte-Adèle, Piedmont et à Saint-Sauveur. Plus des trois-quarts de la population de Piedmont et près de la moitié de celle de Sainte-Adèle habitent ces secteurs. Mise à jour : janvier 2024
A47: 780 | B47: 780Matérielle et socialeLocal | C47: Local | D47: Matérielle et sociale | E47: A52:O72 | F47: A1:N4 | G47: J52:K72 | H47: A12:B15 | I47: A52:A72 | J47: MRC_Laurentides_Defavo_2016_Comb.png | K47: MRC_LAUR_2016_Comb | L47: A6 | M47: B2 | N47: B6 | O47: B2 | P47: A6 | Q47: Dans la MRC des Laurentides, on retrouve des secteurs ayant les conditions parmi les plus défavorables de la MRC à la fois sur le plan matériel et social (profil 5 – en violet) à Sainte-Agathe-des-Monts et à Mont-Tremblant. À Sainte-Agathe-des-Monts, près du quart de la population habite dans ces secteurs. Les secteurs où les conditions sont parmi les plus défavorables de la MRC uniquement sur le plan social (profil 3 – en bleu) se situent à Val-Morin, Val-David, Sainte-Agathe-des-Monts, Mont-Blanc, Arundel et Mont-Tremblant. C’est à Mont-Tremblant et à Val-David qu’on retrouve le plus grand nombre de personnes qui résident dans ces secteurs. L’ensemble de la population d’Arundel habite ces secteurs. Les secteurs qui présentent les conditions parmi les plus défavorables de la MRC seulement sur le plan matériel (profil 4 – en orangé) se situent à Sainte-Agathe-des-Monts, Sainte-Lucie-des-Laurentides, Montcalm, Huberdeau, Lac-Supérieur, Lanthier, Mont-Tremblant, Mont-Blanc, Amherst, Labelle et à La Conception. L’ensemble de la population Amherst et de Lanthier habite ces secteurs. Mise à jour : janvier 2024 | R47: Dans la MRC des Laurentides, on retrouve des secteurs ayant les conditions parmi les plus défavorables de la MRC à la fois sur le plan matériel et social (profil 5) à Sainte-Agathe-des-Monts et à Mont-Tremblant. À Sainte-Agathe-des-Monts, près du quart de la population habite dans ces secteurs. Les secteurs où les conditions sont parmi les plus défavorables de la MRC uniquement sur le plan social (profil 3) se situent à Val-Morin, Val-David, Sainte-Agathe-des-Monts, Mont-Blanc, Arundel et Mont-Tremblant. C’est à Val-David, Mont-Tremblant et à Val-David qu’on retrouve le plus grand nombre de personnes qui résident dans ces secteurs. L’ensemble de la population d’Arundel habitent ces secteurs. Les secteurs qui présentent les conditions parmi les plus défavorables de la MRC seulement sur le plan matériel (profil 4) se situent à Sainte-Agathe-des-Monts, Sainte-Lucie-des-Laurentides, Montcalm, Huberdeau, Lac-Supérieur, Lanthier, Mont-Tremblant, Mont-Blanc, Amherst, Labelle et à La Conception. L’ensemble de la population d’Amherst et de Lanthier habite ces secteurs. Mise à jour : janvier 2024 | T47: J3:O40 | U47: A31:K45 | V47: Répartition de la population selon les profils de défavorisation matérielle et sociale combinée 2021 de la MRC des Laurentides | W47: Source : INSPQ et BIESP, 2023. Statistique Canada, Recensement 2021. | X47: A27 | Y47: 49.5 | Z47: Population des secteurs ayant les conditions matérielles et sociales les plus défavorables de la MRC des Laurentides, 2021 | AA47: Panorama de la défavorisation dans les Laurentides 2021, produit par l’équipe Surveillance, recherche et évaluation, Direction de santé publique des Laurentides, Centre intégré de santé et de services sociaux des Laurentides, 2024 | AB47: A28 | AC47: La population sans indice réside dans des secteurs où l’information pour le calcul de l’indice est indisponible à cause des ménages collectifs (centres d’hébergement, pénitenciers) ou du taux de non-réponse trop élevé. | AD47: A29 | AE47: https://www.santelaurentides.gouv.qc.ca/sante-publique/donnees-sur-la-population/panorama-de-la-defavorisation/ | AF47: A1:O29 | AG47: A1:O28 | AH47: Répartition de la population selon les profils de défavorisation matérielle et sociale combinée 2021 de la MRC des Laurentides | AI47: Dans la MRC des Laurentides, on retrouve des secteurs ayant les conditions parmi les plus défavorables de la MRC à la fois sur le plan matériel et social (profil 5) à Sainte-Agathe-des-Monts et à Mont-Tremblant. À Sainte-Agathe-des-Monts, près du quart de la population habite dans ces secteurs. Mise à jour : janvier 2024
A48: 780 | B48: 780MatérielleLocal | C48: Local | D48: Matérielle | E48: A325:K345 | F48: A23:J25 | G48: F325:G345 | H48: A28:B30 | I48: A325:A345 | J48: MRC_Laurentides_Defavo_2016_Mat.png | K48: MRC_LAUR_2016_Mat | L48: A5 | M48: B2 | N48: B5 | O48: B2 | P48: A5 | Q48: Dans la MRC des Laurentides, les secteurs ayant les conditions matérielles parmi les plus défavorables (quartile 4 – en orangé) de la MRC sont localisés à Sainte-Agathe-des-Monts, Sainte-Lucie-des-Laurentides, Huberdeau, Lac-Supérieur, Lanthier, Mont-Tremblant, Mont-Blanc, Amherst, Labelle et à La Conception. En nombre de personnes, Sainte-Agathe-des-Monts est de loin la municipalité où la population habitant ces secteurs est la plus importante. Mise à jour : janvier 2024 | R48: Dans la MRC des Laurentides, les secteurs ayant les conditions matérielles parmi les plus défavorables (quartile 4) de la MRC sont localisés à Sainte-Agathe-des-Monts, Sainte-Lucie-des-Laurentides, Huberdeau, Lac-Supérieur, Lanthier, Mont-Tremblant, Mont-Blanc, Amherst, Labelle et à La Conception. En nombre de personnes, Sainte-Agathe-des-Monts est de loin la municipalité où la population habitant ces secteurs est la plus importante. Mise à jour : janvier 2024 | T48: J3:O40 | U48: A30:K44 | V48: Répartition de la population selon le niveau de défavorisation matérielle 2021 de la MRC des Laurentides | W48: Source : INSPQ et BIESP, 2023. Statistique Canada, Recensement 2021. | X48: A26 | Y48: 16.5 | Z48: Population des secteurs ayant les conditions matérielles les plus défavorables de la MRC des Laurentides, 2021 | AA48: Panorama de la défavorisation dans les Laurentides 2021, produit par l’équipe Surveillance, recherche et évaluation, Direction de santé publique des Laurentides, Centre intégré de santé et de services sociaux des Laurentides, 2024 | AB48: A27 | AC48: La population sans indice réside dans des secteurs où l’information pour le calcul de l’indice est indisponible à cause des ménages collectifs (centres d’hébergement, pénitenciers) ou du taux de non-réponse trop élevé. | AD48: A28 | AE48: https://www.santelaurentides.gouv.qc.ca/sante-publique/donnees-sur-la-population/panorama-de-la-defavorisation/ | AF48: A1:O28 | AG48: A1:O27 | AH48: Répartition de la population selon le niveau de défavorisation matérielle 2021 de la MRC des Laurentides | AI48: Dans la MRC des Laurentides, les secteurs ayant les conditions matérielles parmi les plus défavorables (quartile 4) de la MRC sont localisés à Sainte-Agathe-des-Monts, Sainte-Lucie-des-Laurentides, Huberdeau, Lac-Supérieur, Lanthier, Mont-Tremblant, Mont-Blanc, Amherst, Labelle et à La Conception. En nombre de personnes, Sainte-Agathe-des-Monts est de loin la municipalité où la population habitant ces secteurs est la plus importante. Mise à jour : janvier 2024
A49: 780 | B49: 780SocialeLocal | C49: Local | D49: Sociale | E49: A416:K436 | F49: A23:J25 | G49: F416:G436 | H49: A28:B30 | I49: A416:A436 | J49: MRC_Laurentides_Defavo_2016_Soc.png | K49: MRC_LAUR_2016_Soc | L49: A5 | M49: B2 | N49: B5 | O49: B2 | P49: A5 | Q49: Dans la MRC des Laurentides, les secteurs ayant les conditions sociales parmi les plus défavorables (quartile 4 – en orangé) de la MRC sont localisés à Sainte-Agathe-des-Monts, Mont-Blanc, Barkmere, Arundel, Mont-Tremblant, Val-David et à Val-Morin. En nombre de personnes, Mont-Tremblant est la municipalité où la population habitant ces secteurs est la plus importante, suivie par Sainte-Agathe-des-Monts et Val-David. Mise à jour : janvier 2024 | R49: Dans la MRC des Laurentides, les secteurs ayant les conditions sociales parmi les plus défavorables (quartile 4) de la MRC sont localisés à Sainte-Agathe-des-Monts, Mont-Blanc, Barkmere, Arundel, Mont-Tremblant, Val-David et à Val-Morin. En nombre de personnes, Mont-Tremblant est la municipalité où la population habitant ces secteurs est la plus importante, suivie par Sainte-Agathe-des-Monts et Val-David. Mise à jour : janvier 2024 | T49: J3:O40 | U49: A30:K44 | V49: Répartition de la population selon le niveau de défavorisation sociale 2021 de la MRC des Laurentides | W49: Source : INSPQ et BIESP, 2023. Statistique Canada, Recensement 2021. | X49: A26 | Y49: 16.5 | Z49: Population des secteurs ayant les conditions sociales les plus défavorables de la MRC des Laurentides, 2021 | AA49: Panorama de la défavorisation dans les Laurentides 2021, produit par l’équipe Surveillance, recherche et évaluation, Direction de santé publique des Laurentides, Centre intégré de santé et de services sociaux des Laurentides, 2024 | AB49: A27 | AC49: La population sans indice réside dans des secteurs où l’information pour le calcul de l’indice est indisponible à cause des ménages collectifs (centres d’hébergement, pénitenciers) ou du taux de non-réponse trop élevé. | AD49: A28 | AE49: https://www.santelaurentides.gouv.qc.ca/sante-publique/donnees-sur-la-population/panorama-de-la-defavorisation/ | AF49: A1:O28 | AG49: A1:O27 | AH49: Répartition de la population selon le niveau de défavorisation sociale 2021 de la MRC des Laurentides | AI49: Dans la MRC des Laurentides, les secteurs ayant les conditions sociales parmi les plus défavorables (quartile 4) de la MRC sont localisés à Sainte-Agathe-des-Monts, Mont-Blanc, Barkmere, Arundel, Mont-Tremblant, Val-David et Val-Morin. En nombre de personnes, Mont-Tremblant est la municipalité où la population habitant ces secteurs est la plus importante, suivie par Sainte-Agathe-des-Monts et Val-David. Mise à jour : janvier 2024
A50: 790 | B50: 790Matérielle et socialeLocal | C50: Local | D50: Matérielle et sociale | E50: A73:O91 | F50: A1:N4 | G50: J73:K91 | H50: A12:B15 | I50: A73:A91 | J50: MRC_Antoine-Labelle_Defavo_2016_Comb.png | K50: MRC_AL_2016_Comb | L50: A6 | M50: B2 | N50: B6 | O50: B2 | P50: A6 | Q50: Dans la MRC d’Antoine-Labelle, les secteurs ayant les conditions parmi les plus défavorables de la MRC à la fois sur le plan matériel et social (profil 5 – en violet) sont localisés à Rivière-Rouge, à Nominingue, à Lac-des-Écorces, à Ferme-Neuve et à Mont-Laurier. Les secteurs ayant les conditions parmi les plus défavorables de la MRC sur le plan social uniquement (profil 3 – en bleu) se retrouvent à Rivière-Rouge, La Macaza, Lac-des-Écorces et Mont-Laurier. Celle-ci est de loin la municipalité où la taille de la population habitant ces secteurs est la plus importante. On retrouve des secteurs ayant les conditions parmi les plus défavorables de la MRC sur le plan matériel seulement (profil 4 – en orangé) à Notre-Dame-de-Pontmain, L’Ascension, Lac-des-Écorces, Mont-Laurier, Ferme-Neuve, Chute-Saint-Philippe, Lac-du-Cerf et Mont-Saint-Michel. L’ensemble des populations de Notre-Dame-de-Pontmain, Mont-Saint-Michel et Lac-du-Cerf habitent ces secteurs. Mise à jour : janvier 2024 | R50: Dans la MRC d’Antoine-Labelle, les secteurs ayant les conditions parmi les plus défavorables de la MRC à la fois sur le plan matériel et social (profil 5) sont localisés à Rivière-Rouge, Nominingue, Lac-des-Écorces, Ferme-Neuve et à Mont-Laurier. Les secteurs ayant les conditions parmi les plus défavorables de la MRC sur le plan social uniquement (profil 3) se retrouvent à Rivière-Rouge, La Macaza, Lac-des-Écorces et Mont-Laurier. Celle-ci est de loin la municipalité où la taille de la population habitant ces secteurs est la plus importante. On retrouve des secteurs ayant les conditions parmi les plus défavorables de la MRC sur le plan matériel seulement (profil 4) à Notre-Dame-de-Pontmain, L’Ascension, Lac-des-Écorces, Mont-Laurier, Ferme-Neuve, Chute-Saint-Philippe, Lac-du-Cerf et Mont-Saint-Michel. L’ensemble des populations de Notre-Dame-de-Pontmain, Mont-Saint-Michel et Lac-du-Cerf habitent ces secteurs. Mise à jour : janvier 2024 | T50: J3:O40 | U50: A29:K43 | V50: Répartition de la population selon les profils de défavorisation matérielle et sociale combinée 2021 de la MRC d'Antoine-Labelle | W50: Source : INSPQ et BIESP, 2023. Statistique Canada, Recensement 2021. | X50: A25 | Y50: 49.5 | Z50: Population des secteurs ayant les conditions matérielles et sociales les plus défavorables de la MRC d'Antoine-Labelle, 2021 | AA50: Panorama de la défavorisation dans les Laurentides 2021, produit par l’équipe Surveillance, recherche et évaluation, Direction de santé publique des Laurentides, Centre intégré de santé et de services sociaux des Laurentides, 2024 | AB50: A26 | AC50: La population sans indice réside dans des secteurs où l’information pour le calcul de l’indice est indisponible à cause des ménages collectifs (centres d’hébergement, pénitenciers) ou du taux de non-réponse trop élevé. | AD50: A27 | AE50: https://www.santelaurentides.gouv.qc.ca/sante-publique/donnees-sur-la-population/panorama-de-la-defavorisation/ | AF50: A1:O27 | AG50: A1:O26 | AH50: Répartition de la population selon les profils de défavorisation matérielle et sociale combinée 2021 de la MRC d'Antoine-Labelle | AI50: Dans la MRC d’Antoine-Labelle, les secteurs ayant les conditions parmi les plus défavorables de la MRC à la fois sur le plan matériel et social (profil 5) sont localisés à Rivière-Rouge, Nominingue, Lac-des-Écorces, Ferme-Neuve et à Mont-Laurier. Mise à jour : janvier 2024
A51: 790 | B51: 790MatérielleLocal | C51: Local | D51: Matérielle | E51: A346:K364 | F51: A23:J25 | G51: F346:G364 | H51: A28:B30 | I51: A346:A364 | J51: MRC_Antoine-Labelle_Defavo_2016_Mat.png | K51: MRC_AL_2016_Mat | L51: A5 | M51: B2 | N51: B5 | O51: B2 | P51: A5 | Q51: Dans la MRC d’Antoine-Labelle, on retrouve les secteurs ayant les conditions matérielles parmi les plus défavorables (quartile 4) de la MRC à Notre-Dame-de-Pontmain, L’Ascension, Lac-des-Écorces, Mont-Laurier, Ferme-Neuve, Chute-Saint-Philippe, Lac-du-Cerf, Rivière-Rouge, Nominingue et Mont-Saint-Michel. En nombre de personnes, Mont-Laurier et Ferme-Neuve sont les municipalités où les populations habitant ces secteurs sont les plus importantes. Mise à jour : janvier 2024 | R51: Dans la MRC d’Antoine-Labelle, on retrouve les secteurs ayant les conditions matérielles parmi les plus défavorables (quartile 4) de la MRC à Notre-Dame-de-Pontmain, L’Ascension, Lac-des-Écorces, Mont-Laurier, Ferme-Neuve, Chute-Saint-Philippe, Lac-du-Cerf, Rivière-Rouge, Nominingue et Mont-Saint-Michel. En nombre de personnes, Mont-Laurier, Ferme-Neuve et Lac-des-Écorces sont les municipalités où les populations habitant ces secteurs sont les plus importantes. Mise à jour : janvier 2024 | T51: J3:O40 | U51: A28:K42 | V51: Répartition de la population selon le niveau de défavorisation matérielle 2021 de la MRC d'Antoine-Labelle | W51: Source : INSPQ et BIESP, 2023. Statistique Canada, Recensement 2021. | X51: A24 | Y51: 16.5 | Z51: Population des secteurs ayant les conditions matérielles les plus défavorables de la MRC d'Antoine-Labelle, 2021 | AA51: Panorama de la défavorisation dans les Laurentides 2021, produit par l’équipe Surveillance, recherche et évaluation, Direction de santé publique des Laurentides, Centre intégré de santé et de services sociaux des Laurentides, 2024 | AB51: A25 | AC51: La population sans indice réside dans des secteurs où l’information pour le calcul de l’indice est indisponible à cause des ménages collectifs (centres d’hébergement, pénitenciers) ou du taux de non-réponse trop élevé. | AD51: A26 | AE51: https://www.santelaurentides.gouv.qc.ca/sante-publique/donnees-sur-la-population/panorama-de-la-defavorisation/ | AF51: A1:O26 | AG51: A1:O25 | AH51: Répartition de la population selon le niveau de défavorisation matérielle 2021 de la MRC d'Antoine-Labelle | AI51: Dans la MRC d’Antoine-Labelle, on retrouve les secteurs ayant les conditions matérielles parmi les plus défavorables (quartile 4) de la MRC à Notre-Dame-de-Pontmain, L’Ascension, Lac-des-Écorces, Mont-Laurier, Ferme-Neuve, Chute-Saint-Philippe, Lac-du-Cerf, Rivière-Rouge, Nominingue et Mont-Saint-Michel. En nombre de personnes, Mont-Laurier et Ferme-Neuve sont les municipalités où les populations habitant ces secteurs sont les plus importantes. Mise à jour : janvier 2024
A52: 790 | B52: 790SocialeLocal | C52: Local | D52: Sociale | E52: A437:K455 | F52: A23:J25 | G52: F437:G455 | H52: A28:B30 | I52: A437:A455 | J52: MRC_Antoine-Labelle_Defavo_2016_Soc.png | K52: MRC_AL_2016_Soc | L52: A5 | M52: B2 | N52: B5 | O52: B2 | P52: A5 | Q52: Dans la MRC d’Antoine-Labelle, on retrouve les secteurs ayant les conditions sociales parmi les plus défavorables (quartile 4) à Rivière-Rouge, La Macaza, Sainte-Anne-du-Lac, Nominingue, Mont-Laurier, Ferme-Neuve, Lac-des-Écorces, et Mont-Laurier. En nombre de personnes, Mont-Laurier est de loin la municipalité où la population habitant ces secteurs est la plus importante. Mise à jour : janvier 2024 | R52: Dans la MRC d’Antoine-Labelle, on retrouve les secteurs ayant les conditions sociales parmi les plus défavorables (quartile 4) à Rivière-Rouge, La Macaza, Sainte-Anne-du-Lac, Nominingue, Mont-Laurier, Ferme-Neuve, Lac-des-Écorces, et Mont-Laurier. En nombre de personnes, Mont-Laurier est de loin la municipalité où la population habitant ces secteurs est la plus importante. Mise à jour : janvier 2024 | T52: J3:O40 | U52: A28:K42 | V52: Répartition de la population selon le niveau de défavorisation sociale 2021 de la MRC d'Antoine-Labelle | W52: Source : INSPQ et BIESP, 2023. Statistique Canada, Recensement 2021. | X52: A24 | Y52: 16.5 | Z52: Population des secteurs ayant les conditions sociales les plus défavorables de la MRC d'Antoine-Labelle, 2021 | AA52: Panorama de la défavorisation dans les Laurentides 2021, produit par l’équipe Surveillance, recherche et évaluation, Direction de santé publique des Laurentides, Centre intégré de santé et de services sociaux des Laurentides, 2024 | AB52: A25 | AC52: La population sans indice réside dans des secteurs où l’information pour le calcul de l’indice est indisponible à cause des ménages collectifs (centres d’hébergement, pénitenciers) ou du taux de non-réponse trop élevé. | AD52: A26 | AE52: https://www.santelaurentides.gouv.qc.ca/sante-publique/donnees-sur-la-population/panorama-de-la-defavorisation/ | AF52: A1:O26 | AG52: A1:O25 | AH52: Répartition de la population selon le niveau de défavorisation sociale 2021 de la MRC d'Antoine-Labelle | AI52: Dans la MRC d’Antoine-Labelle, on retrouve les secteurs ayant les conditions sociales parmi les plus défavorables (quartile 4) à Rivière-Rouge, La Macaza, Sainte-Anne-du-Lac, Nominingue, Mont-Laurier, Ferme-Neuve, Lac-des-Écorces, et Mont-Laurier. En nombre de personnes, Mont-Laurier est de loin la municipalité où la population habitant ces secteurs est la plus importante. Mise à jour : janvier 2024
A53: 720 | B53: 720Matérielle et socialeRégional | C53: Régional | D53: Matérielle et sociale | E53: A462:O470 | F53: A1:N4 | G53: J462:K470 | H53: A12:B15 | I53: A462:A470 | J53: MRC_DeuxMontagnes_Defavo_2016_Comb.png | K53: MRC_DM_2016_Comb_Quintile | L53: A6 | M53: B2 | N53: B6 | O53: B2 | P53: A6 | Q53: Dans la MRC de Deux-Montagnes, les secteurs ayant des conditions parmi les plus défavorables de la MRC à la fois sur le plan matériel et social (profil 5 – en violet) sont localisés à Pointe-Calumet, Sainte-Marthe-sur-le-Lac, Deux-Montagnes et à Saint-Eustache. Les secteurs où les conditions sont les plus défavorables de la MRC seulement sur le plan social (profil 3 – en bleu) se retrouvent dans toutes les municipalités de la MRC, SAUF à Saint-Placide (à noter qu’il s’agit de très petits secteurs dans Oka et Pointe-Calumet). On retrouve des secteurs qui présentent les conditions les plus défavorables de la MRC seulement sur le plan matériel (profil 4 – en orangé) dans toutes les municipalités du territoire. Plus de la moitié de la population de Pointe-Calumet et près de la moitié de celle de Saint-Joseph-du-Lac résident dans ces secteurs. Mise à jour : janvier 2024 | R53: Plus d’un résident sur dix de la MRC de Deux-Montagnes habitent un secteur ayant des conditions parmi les plus défavorables à la fois sur le plan matériel et social (profil 5). Ces secteurs sont localisés à Deux-Montagnes, Pointe-Calumet, Saint-Eustache et à Sainte-Marthe-sur-le-Lac. À Pointe-Calumet, plus du tiers de la population habite dans ces secteurs. Environ un cinquième de la population de la MRC habitent des secteurs où les conditions sont parmi les plus défavorables seulement sur le plan social (profil 3). On retrouve de ces secteurs dans toutes les municipalités SAUF Saint-Placide. Pointe-Calumet compte moins d’un résident sur dix qui habite un secteur de profil 3. Plus du tiers de la population de la municipalité de Deux-Montagnes habite dans ces secteurs. Environ un cinquième de la population de la MRC habitent des secteurs où les conditions sont parmi les plus défavorables seulement sur le plan matériel (profil 4). Ces derniers se retrouvent dans toutes les municipalités du territoire. Plus de la moitié de la population de Saint-Placide et de Pointe-Calumet réside dans ces secteurs. Mise à jour : janvier 2024 | S53: Lorsqu’on se concentre sur l’évolution des secteurs du profil 5 (violet), soit ceux ayant les conditions matérielles et sociales les plus défavorables, on remarque peu de changement en 2021 par rapport à 2016. Certains secteurs de profil 5 se sont ajoutés à Sainte-Marthe-sur-le-Lac, Deux-Montagnes et Saint-Eustache. D’autres sont passés à un profil plus favorable dans ces trois mêmes municipalités, ainsi qu’à Saint-Placide. À savoir - Les variations entre 2016 et 2021 ont plusieurs causes possibles. Elles peuvent être dues à des changements 1) dans la population des secteurs auxquels on réfère, 2) dans la population de l’ensemble du territoire auquel les secteurs sont comparés, ou encore 3) dans la compilation de l’indice, en raison, par exemple, des modifications du découpage des secteurs ou des données manquantes. Mise à jour : février 2024 | T53: J3:O40 | U53: A19:K34 | V53: Répartition de la population selon les profils de défavorisation matérielle et sociale combinée 2021 de la région des Laurentides - secteur MRC de Deux-Montagnes | W53: Source : INSPQ et BIESP, 2023. Statistique Canada, Recensement 2021. | X53: A15 | Y53: 49.5 | Z53: Population des secteurs ayant les conditions matérielles et sociales les plus défavorables - secteur de Deux-Montagnes, 2021 | AA53: Panorama de la défavorisation dans les Laurentides 2021, produit par l’équipe Surveillance, recherche et évaluation, Direction de santé publique des Laurentides, Centre intégré de santé et de services sociaux des Laurentides, 2024 | AB53: A16 | AC53: La population sans indice réside dans des secteurs où l’information pour le calcul de l’indice est indisponible à cause des ménages collectifs (centres d’hébergement, pénitenciers) ou du taux de non-réponse trop élevé. | AD53: A17 | AE53: https://www.santelaurentides.gouv.qc.ca/sante-publique/donnees-sur-la-population/panorama-de-la-defavorisation/ | AF53: A1:O16 | AG53: A1:O14 | AH53: Répartition de la population selon les profils de défavorisation matérielle et sociale combinée 2021 de la région des Laurentides - secteur MRC de Deux-Montagnes | AI53: Plus d’un résident sur dix de la MRC de Deux-Montagnes habitent un secteur ayant des conditions parmi les plus défavorables à la fois sur le plan matériel et social (profil 5). Ces secteurs sont localisés à Deux-Montagnes, Pointe-Calumet, Saint-Eustache et à Sainte-Marthe-sur-le-Lac. À Pointe-Calumet, plus du tiers de la population habite dans ces secteurs. Mise à jour : janvier 2024
A54: 720 | B54: 720MatérielleRégional | C54: Régional | D54: Matérielle | E54: A561:O569 | F54: A7:N9 | G54: J561:K569 | H54: A18:B20 | I54: A561:A569 | J54: MRC_DeuxMontagnes_Defavo_2016_Mat.png | K54: MRC_DM_2016_Mat_Quintile | L54: A5 | M54: B2 | N54: B5 | O54: B2 | P54: A5 | Q54: Dans la MRC de Deux-Montagnes, on retrouve des secteurs ayant les conditions matérielles les plus défavorables (quintile 5 – en orangé) dans toutes les municipalités. Près du tiers de la population de Pointe-Calumet et plus du quart de celle de Saint-Placide habitent ces secteurs. Si on regroupe les deux quintiles les plus défavorables (quintile 4 – en orangé pâle et quintile 5 – en orangé), on retrouvera plus de 9 résidents sur 10 de Pointe-Calumet et plus de la moitié de ceux de Saint-Placide et Saint-Eustache habitant ces secteurs. Mise à jour : janvier 2024 | R54: Dans la MRC de Deux-Montagnes, on retrouve des secteurs ayant les conditions matérielles parmi les plus défavorables (quintile 5) dans toutes les municipalités. Près du tiers de la population de Pointe-Calumet et plus du quart de celle de Saint-Placide habitent ces secteurs. Mise à jour : janvier 2024 | S54: Lorsqu’on se concentre sur l’évolution des secteurs se retrouvant dans des conditions parmi les plus défavorables matériellement (quintile 5 – en orangé), on constate que certains secteurs sont passés d’un quintile 3 ou 4 en 2016 au quintile 5 en 2021. Ils se trouvent dans Saint-Placide, Saint-Joseph-du-Lac et Saint-Eustache. À l’inverse, d’autres secteurs de Saint-Placide et de Saint-Eustache et des secteurs de Sainte-Marthe-sur-le-Lac sont passés d’un quintile 5 en 2016 à des quintiles plus favorisés en 2021. À savoir - Les variations entre 2016 et 2021 ont plusieurs causes possibles. Elles peuvent être dues à des changements 1) dans la population des secteurs auxquels on réfère, 2) dans la population de l’ensemble du territoire auquel les secteurs sont comparés, ou encore 3) dans la compilation de l’indice, en raison, par exemple, des modifications du découpage des secteurs ou des données manquantes. Mise à jour : février 2024 | T54: J3:O40 | U54: A18:K33 | V54: Répartition de la population (N, %) parniveau de défavorisation matérielle 2021 de la région des Laurentides - secteur MRC de Deux-Montagnes | W54: Source : INSPQ et BIESP, 2023. Statistique Canada, Recensement 2021. | X54: A14 | Y54: 16.5 | Z54: Population des secteurs ayant les conditions matérielles les plus défavorables - secteur MRC de Deux-Montagnes, 2021 | AA54: Panorama de la défavorisation dans les Laurentides 2021, produit par l’équipe Surveillance, recherche et évaluation, Direction de santé publique des Laurentides, Centre intégré de santé et de services sociaux des Laurentides, 2024 | AB54: A15 | AC54: La population sans indice réside dans des secteurs où l’information pour le calcul de l’indice est indisponible à cause des ménages collectifs (centres d’hébergement, pénitenciers) ou du taux de non-réponse trop élevé. | AD54: A16 | AE54: https://www.santelaurentides.gouv.qc.ca/sante-publique/donnees-sur-la-population/panorama-de-la-defavorisation/ | AF54: A1:O15 | AG54: A1:O13 | AH54: Répartition de la population (N, %) par niveau de défavorisation matérielle 2021 de la région des Laurentides - secteur MRC de Deux-Montagnes | AI54: Dans la MRC de Deux-Montagnes, on retrouve des secteurs ayant les conditions matérielles parmi les plus défavorables (quintile 5) dans toutes les municipalités. Près du tiers de la population de Pointe-Calumet et plus du quart de celle de Saint-Placide habitent ces secteurs. Mise à jour : janvier 2024
A55: 720 | B55: 720SocialeRégional | C55: Régional | D55: Sociale | E55: A660:O668 | F55: A7:N9 | G55: J660:K668 | H55: A18:B20 | I55: A660:A668 | J55: MRC_DeuxMontagnes_Defavo_2016_Soc.png | K55: MRC_DM_2016_Soc_Quintile | L55: A5 | M55: B2 | N55: B5 | O55: B2 | P55: A5 | Q55: Dans la MRC de Deux-Montagnes, les secteurs ayant les conditions sociales les plus défavorables (quintile 5 – en orangé) se répartissent dans Pointe-Calumet, la municipalité de Deux-Montagnes et Saint-Eustache. En nombre, Saint-Eustache se démarque avec 10 600 personnes qui résident dans ces secteurs. Mise à jour : janvier 2024 | R55: Dans la MRC de Deux-Montagnes, les secteurs ayant les conditions sociales parmi les plus défavorables (quintile 5) se répartissent dans les municipalités de Deux-Montagnes, Pointe-Calumet et Saint-Eustache. Environ le tiers de la population de la municipalité de Deux-Montagnes habite dans ces secteurs. Mise à jour : janvier 2024 | S55: On observe peu de changements significatifs dans la MRC en ce qui a trait la répartition des secteurs où les conditions sont les plus défavorables sociale (quintile 5 – en orangé) de 2021 par rapport à celles de 2016. Quelques secteurs sont passés du quintile 5 à un quintile plus favorable à Sainte-Marthe-sur-le-Lac et Deux-Montagnes. À savoir - Les variations entre 2016 et 2021 ont plusieurs causes possibles. Elles peuvent être dues à des changements 1) dans la population des secteurs auxquels on réfère, 2) dans la population de l’ensemble du territoire auquel les secteurs sont comparés, ou encore 3) dans la compilation de l’indice, en raison, par exemple, des modifications du découpage des secteurs ou des données manquantes. Mise à jour : février 2024 | T55: J3:O40 | U55: A18:K33 | V55: Répartition de la population (N, %) par niveau de défavorisation sociale 2021 de la région des Laurentides - secteur MRC de Deux-Montagnes | W55: Source : INSPQ et BIESP, 2023. Statistique Canada, Recensement 2021. | X55: A14 | Y55: 16.5 | Z55: Population des secteurs ayant les conditions sociales les plus défavorables - secteur MRC de Deux-Montagnes, 2021 | AA55: Panorama de la défavorisation dans les Laurentides 2021, produit par l’équipe Surveillance, recherche et évaluation, Direction de santé publique des Laurentides, Centre intégré de santé et de services sociaux des Laurentides, 2024 | AB55: A15 | AC55: La population sans indice réside dans des secteurs où l’information pour le calcul de l’indice est indisponible à cause des ménages collectifs (centres d’hébergement, pénitenciers) ou du taux de non-réponse trop élevé. | AD55: A16 | AE55: https://www.santelaurentides.gouv.qc.ca/sante-publique/donnees-sur-la-population/panorama-de-la-defavorisation/ | AF55: A1:O15 | AG55: A1:O13 | AH55: Répartition de la population (N, %) par niveau de défavorisation sociale 2021 de la région des Laurentides - secteur MRC de Deux-Montagnes | AI55: Dans la MRC de Deux-Montagnes, les secteurs ayant les conditions sociales parmi les plus défavorables (quintile 5) se répartissent dans les municipalités de Deux-Montagnes, Pointe-Calumet et Saint-Eustache. Environ le tiers de la population de la municipalité de Deux-Montagnes habite dans ces secteurs. Mise à jour : janvier 2024
A56: 730-1517 | B56: 730-1517Matérielle et socialeRégional | C56: Régional | D56: Matérielle et sociale | E56: A471:O479 | F56: A1:N4 | G56: J471:K479 | H56: A12:B15 | I56: A471:A479 | J56: MRC_ThereseBlainville_Defavo_2016_Comb.png | K56: RLS_TDB_2016_Comb | L56: A6 | M56: B2 | N56: B6 | O56: B2 | P56: A6 | Q56: Dans la MRC/RLS de Thérèse-De Blainville, les secteurs ayant les conditions les plus défavorables à la fois sur le plan matériel et social (profil 5 – en violet) sont localisés à Boisbriand, Blainville, Sainte-Thérèse, Bois-des-Filion et Sainte Anne-des-Plaines. À Sainte Anne-des-Plaines et Sainte-Thérèse, c’est environ le quart de la population qui habite ces secteurs. Les secteurs où les conditions sont parmi les plus défavorables du territoire seulement sur le plan social (profil 3 – en bleu) se retrouvent dans toutes les municipalités du territoire, SAUF à Sainte-Anne-des-Plaines. Plus de la moitié de la population de Bois-des-Filion et plus de 40% de celle de Sainte-Thérèse résident dans ces secteurs. On retrouve des secteurs qui présentent les conditions parmi les plus défavorables de la MRC/RLS uniquement sur le plan matériel (profil 4 – en orangé) à Boisbriand, Blainville, Sainte-Thérèse, Bois-des-Filion et Sainte Anne-des-Plaines. Près de la moitié de la population de Sainte-Anne-des-Plaines et le quart de celle de Boisbriand résident dans ces secteurs. Mise à jour : janvier 2024 | R56: Environ un dixième de la population la MRC/RLS Thérèse-De Blainville habitent des secteurs ayant les conditions les plus défavorables à la fois sur le plan matériel et social (profil 5). Ces secteurs sont localisés à Blainville, Boisbriand, Bois-des-Filion, Sainte-Anne-des-Plaines et à Sainte-Thérèse. À Sainte Anne-des-Plaines et à Sainte-Thérèse, c’est environ le quart de la population qui habite dans ces secteurs. Le quart de la population de la MRC/RLS Thérèse-De Blainville habitent des secteurs où les conditions sont parmi les plus défavorables seulement sur le plan social (profil 3). Ces secteurs se retrouvent dans toutes les municipalités du territoire, SAUF à Sainte-Anne-des-Plaines. Plus de la moitié de la population de Bois-des-Filion et plus de 40% de celle de Sainte-Thérèse résident dans ces secteurs. Environ un dixième de la population de la MRC/RLS Thérèse-De Blainville habitent des secteurs présentent les conditions plus défavorables uniquement sur le plan matériel (profil 4). Ces secteurs sont présents dans toutes les municipalités du territoire, SAUF à Lorraine et à Rosemère. Près de la moitié de la population de Sainte-Anne-des-Plaines et le quart de celle de Boisbriand résident dans ces secteurs. Mise à jour : janvier 2024 | S56: Lorsqu’on se concentre sur l’évolution des secteurs présentant des conditions parmi les plus défavorables matériellement et socialement (profil 5 – en violet), on remarque que certains se sont ajoutés en 2021 par rapport à 2016 au profil 5 en 2021. Ils se trouvent dans Boisbriand, Blainville et Sainte-Anne-des-Plaines. À l’inverse, des secteurs de Sainte-Thérèse qui étaient de profil 5 en 2016 sont de profil 3 (défavorable socialement seulement – en bleu) en 2021. À savoir - Les variations entre 2016 et 2021 ont plusieurs causes possibles. Elles peuvent être dues à des changements 1) dans la population des secteurs auxquels on réfère, 2) dans la population de l’ensemble du territoire auquel les secteurs sont comparés, ou encore 3) dans la compilation de l’indice, en raison, par exemple, des modifications du découpage des secteurs ou des données manquantes. Mise à jour : février 2024 | T56: J3:O40 | U56: A19:K34 | V56: Répartition de la population selon les profils de défavorisation matérielle et sociale combinée 2021 de la région des Laurentides - secteur MRC/RLS de Thérèse-De Blainville | W56: Source : INSPQ et BIESP, 2023. Statistique Canada, Recensement 2021. | X56: A15 | Y56: 49.5 | Z56: Population des secteurs ayant les conditions matérielles et sociales les plus défavorables - secteur MRC/RLS de Thérèse-De Blainville, 2021 | AA56: Panorama de la défavorisation dans les Laurentides 2021, produit par l’équipe Surveillance, recherche et évaluation, Direction de santé publique des Laurentides, Centre intégré de santé et de services sociaux des Laurentides, 2024 | AB56: A16 | AC56: La population sans indice réside dans des secteurs où l’information pour le calcul de l’indice est indisponible à cause des ménages collectifs (centres d’hébergement, pénitenciers) ou du taux de non-réponse trop élevé. | AD56: A17 | AE56: https://www.santelaurentides.gouv.qc.ca/sante-publique/donnees-sur-la-population/panorama-de-la-defavorisation/ | AF56: A1:O16 | AG56: A1:O15 | AH56: Répartition de la population selon les profils de défavorisation matérielle et sociale combinée 2021 de la région des Laurentides - secteur MRC/RLS de Thérèse-De Blainville | AI56: Environ un dixième de la population la MRC/RLS Thérèse-De Blainville habitent des secteurs ayant les conditions les plus défavorables à la fois sur le plan matériel et social (profil 5). Ces secteurs sont localisés à Blainville, Boisbriand, Bois-des-Filion, Sainte-Anne-des-Plaines et à Sainte-Thérèse. À Sainte Anne-des-Plaines et à Sainte-Thérèse, c’est environ le quart de la population qui habite dans ces secteurs. Mise à jour : janvier 2024
A57: 730-1517 | B57: 730-1517MatérielleRégional | C57: Régional | D57: Matérielle | E57: A570:O578 | F57: A7:N9 | G57: J570:K578 | H57: A18:B20 | I57: A570:A578 | J57: MRC_ThereseBlainville_Defavo_2016_Mat.png | K57: RLS_TDB_2016_Mat | L57: A5 | M57: B2 | N57: B5 | O57: B2 | P57: A5 | Q57: Dans la MRC/RLS Thérèse-De Blainville, les secteurs ayant les conditions matérielles parmi les plus défavorables (quintile 5 – en orangé) sont localisés Boisbriand, Blainville, Sainte-Thérèse, Bois-des-Filion et Sainte Anne-des-Plaines. Plus du tiers de la population de Sainte-Anne-des-Plaines habite ces secteurs. Mise à jour : janvier 2024 | R57: Moins d’un dixième de la population de la MRC/RLS Thérèse-De Blainville habitent des secteurs ayant les conditions matérielles parmi les plus défavorables (quintile 5). Ces secteurs sont localisés à Blainville, Boisbriand, Bois-des-Filion, Sainte-Anne-des-Plaines et à Sainte-Thérèse. C’est à Sainte-Anne-des-Plaines et à Boisbriand qu’on trouve le plus de personnes qui habitent ces secteurs. Mise à jour : janvier 2024 | S57: Lorsqu’on se concentre sur l’évolution des secteurs présentant des conditions parmi les plus défavorables matériellement (quintile 5 - orangé), on constate que des secteurs se sont ajoutés à Sainte-Anne-des-Plaines et à Blainville. À l’inverse, d’autres secteurs de Blainville, de Sainte-Anne-des-Plaines et des secteurs de Sainte-Thérèse qui étaient de quintile 5 en 2016 affichent des quintiles plus favorables en 2021. À savoir - Les variations entre 2016 et 2021 ont plusieurs causes possibles. Elles peuvent être dues à des changements 1) dans la population des secteurs auxquels on réfère, 2) dans la population de l’ensemble du territoire auquel les secteurs sont comparés, ou encore 3) dans la compilation de l’indice, en raison, par exemple, des modifications du découpage des secteurs ou des données manquantes. Mise à jour : février 2024 | T57: J3:O40 | U57: A18:K33 | V57: Répartition de la population (N, %) par niveau de défavorisation matérielle 2021 de la région des Laurentides - secteur MRC/RLS de Thérèse-De Blainville | W57: Source : INSPQ et BIESP, 2023. Statistique Canada, Recensement 2021. | X57: A14 | Y57: 16.5 | Z57: Population des secteurs ayant les conditions matérielles les plus défavorables - secteur MRC/RLS de Thérèse-De Blainville, 2021 | AA57: Panorama de la défavorisation dans les Laurentides 2021, produit par l’équipe Surveillance, recherche et évaluation, Direction de santé publique des Laurentides, Centre intégré de santé et de services sociaux des Laurentides, 2024 | AB57: A15 | AC57: La population sans indice réside dans des secteurs où l’information pour le calcul de l’indice est indisponible à cause des ménages collectifs (centres d’hébergement, pénitenciers) ou du taux de non-réponse trop élevé. | AD57: A16 | AE57: https://www.santelaurentides.gouv.qc.ca/sante-publique/donnees-sur-la-population/panorama-de-la-defavorisation/ | AF57: A1:O15 | AG57: A1:O14 | AH57: Répartition de la population (N, %) par niveau de défavorisation matérielle 2021 de la région des Laurentides - secteur MRC/RLS de Thérèse-De Blainville | AI57: Moins d’un dixième de la population de la MRC/RLS Thérèse-De Blainville habitent des secteurs ayant les conditions matérielles parmi les plus défavorables (quintile 5). Ces secteurs sont localisés à Blainville, Boisbriand, Bois-des-Filion, Sainte-Anne-des-Plaines et à Sainte-Thérèse. C’est à Sainte-Anne-des-Plaines et à Boisbrian qu’on trouve le plus de personnes qui habitent ces secteurs. Mise à jour : janvier 2024
A58: 730-1517 | B58: 730-1517SocialeRégional | C58: Régional | D58: Sociale | E58: A669:O677 | F58: A7:N9 | G58: J669:K677 | H58: A18:B20 | I58: A669:A677 | J58: MRC_ThereseBlainville_Defavo_2016_Soc.png | K58: RLS_TDB_2016_Soc | L58: A5 | M58: B2 | N58: B5 | O58: B2 | P58: A5 | Q58: Dans la MRC/RLS Thérèse-De Blainville, les secteurs ayant les conditions sociales parmi les plus défavorables (quintile 5 – en orangé) sont répartis dans toutes les municipalités du territoire, SAUF à Lorraine. Environ la moitié de la population de Sainte-Thérèse et de Bois-des-Filion habite ces secteurs. C’est aussi le cas pour plus du quart des résidents de Boisbriand. Mise à jour : janvier 2024 | R58: Plus d’un cinquième de la population de la MRC/RLS Thérèse-De Blainville habitent des secteurs ayant les conditions sociales les plus défavorables (quintile 5). Ces derniers sont répartis dans toutes les municipalités du territoire, SAUF à Lorraine. Environ la moitié de la population de Sainte-Thérèse et de Bois-des-Filion habite ces secteurs. C’est aussi le cas pour plus du quart des résidents de Boisbriand. Mise à jour : décembre 2023 | S58: Lorsqu’on se concentre sur l’évolution des secteurs présentant des conditions parmi les plus défavorables socialement (quintile 5 - orangé), on constate que certains se sont ajoutés à Sainte-Anne-des-Plaines, Blainville et Rosemère. À l’inverse, d’autres secteurs de Rosemère, Boisbriand et de Blainville qui étaient de quintile 5 en 2016 affichent des quintiles plus favorables en 2021. À savoir - Les variations entre 2016 et 2021 ont plusieurs causes possibles. Elles peuvent être dues à des changements 1) dans la population des secteurs auxquels on réfère, 2) dans la population de l’ensemble du territoire auquel les secteurs sont comparés, ou encore 3) dans la compilation de l’indice, en raison, par exemple, des modifications du découpage des secteurs ou des données manquantes. Mise à jour : février 2024 | T58: J3:O40 | U58: A18:K33 | V58: Répartition de la population (N, %) par niveau de défavorisation sociale 2021 de la région des Laurentides - secteur MRC/RLS de Thérèse-De Blainville | W58: Source : INSPQ et BIESP, 2023. Statistique Canada, Recensement 2021. | X58: A14 | Y58: 16.5 | Z58: Population des secteurs ayant les conditions sociales les plus défavorables - secteur MRC/RLS de Thérèse-De Blainville, 2021 | AA58: Panorama de la défavorisation dans les Laurentides 2021, produit par l’équipe Surveillance, recherche et évaluation, Direction de santé publique des Laurentides, Centre intégré de santé et de services sociaux des Laurentides, 2024 | AB58: A15 | AC58: La population sans indice réside dans des secteurs où l’information pour le calcul de l’indice est indisponible à cause des ménages collectifs (centres d’hébergement, pénitenciers) ou du taux de non-réponse trop élevé. | AD58: A16 | AE58: https://www.santelaurentides.gouv.qc.ca/sante-publique/donnees-sur-la-population/panorama-de-la-defavorisation/ | AF58: A1:O15 | AG58: A1:O14 | AH58: Répartition de la population (N, %) par niveau de défavorisation sociale 2021 de la région des Laurentides - secteur MRC/RLS de Thérèse-De Blainville | AI58: Dans la MRC/RLS Thérèse-De Blainville, les secteurs ayant les conditions sociales parmi les plus défavorables (quintile 5) sont répartis dans toutes les municipalités du territoire, SAUF à Lorraine. Environ la moitié de la population de Sainte-Thérèse et de Bois-des-Filion habite ces secteurs. C’est aussi le cas pour plus du quart des résidents de Boisbriand. Mise à jour : janvier 2024
A59: 740 | B59: 740Matérielle et socialeRégional | C59: Régional | D59: Matérielle et sociale | E59: A480:O481 | F59: A1:N4 | G59: J480:K481 | H59: A12:B15 | I59: A480:A481 | J59: MRC_Mirabel_Defavo_2016_Comb.png | K59: MIR_2016_Comb | L59: A6 | M59: B2 | N59: B6 | O59: B2 | P59: A6 | Q59: On remarque des secteurs ayant les conditions les plus défavorisées matériellement et socialement (profil 5 – en violet) de Mirabel dans les secteurs de Saint-Canut, Saint-Janvier et de Saint-Augustin. Les secteurs qui présentent les conditions les plus défavorables de Mirabel seulement sur le plan social (profil 3 – en bleu) se situent dans Saint-Canut, Sainte-Monique, Saint-Augustin et Saint- Janvier. Les secteurs dont les conditions sont les plus défavorables sur le plan matériel seulement (profil 4 – en orangé) se situent dans Saint-Hermas, Saint-Canut, Saint-Canut, Saint-Augustin et Saint-Janvier. Mise à jour : janvier 2024 | R59: 11,0 % de la population de Mirabel, soit 6 700 personnes, habitent des secteurs ayant les conditions parmi les plus défavorables à la fois sur le plan matériel et social (profil 5). Les secteurs qui présentent les conditions plus défavorables uniquement sur le plan social (profil 3) regroupent 26,4 % de la population (16 200 personnes). Les secteurs dont les conditions sont les plus défavorables seulement sur le plan matériel (profil 4) hébergent 12,3 % de la population de la municipalité, ce qui correspond à 7 500 personnes. Mise à jour : janvier 2024 | S59: En 2021, comme en 2016, on retrouve peu de secteurs dont les conditions sont parmi les plus défavorables à la fois sur le plan matériel et social (profil 5 – en violet) dans Mirabel. Des secteurs sont passés du profil 3 (bleu) au profil 5 dans Saint-Janvier. À l’inverse, on constate que quelques secteurs sont passés du profil 5 en 2016 au profil 3 en 2021 dans Saint-Canut, Saint-Scholastique et Sainte-Monique. À savoir - Les variations entre 2016 et 2021 ont plusieurs causes possibles. Elles peuvent être dues à des changements 1) dans la population des secteurs auxquels on réfère, 2) dans la population de l’ensemble du territoire auquel les secteurs sont comparés, ou encore 3) dans la compilation de l’indice, en raison, par exemple, des modifications du découpage des secteurs ou des données manquantes. Mise à jour : février 2024 | T59: J3:O40 | U59: A13:K28 | V59: Répartition de la population selon les profils de défavorisation matérielle et sociale combinée 2021 de la région des Laurentides - secteur Mirabel | W59: Source : INSPQ et BIESP, 2023. Statistique Canada, Recensement 2021. | X59: A9 | Y59: 49.5 | Z59: Population des secteurs ayant les conditions matérielles et sociales les plus défavorabless - secteur Mirabel, 2021 | AA59: Panorama de la défavorisation dans les Laurentides 2021, produit par l’équipe Surveillance, recherche et évaluation, Direction de santé publique des Laurentides, Centre intégré de santé et de services sociaux des Laurentides, 2024 | AB59: A10 | AC59: La population sans indice réside dans des secteurs où l’information pour le calcul de l’indice est indisponible à cause des ménages collectifs (centres d’hébergement, pénitenciers) ou du taux de non-réponse trop élevé. | AD59: A11 | AE59: https://www.santelaurentides.gouv.qc.ca/sante-publique/donnees-sur-la-population/panorama-de-la-defavorisation/ | AF59: A1:O10 | AG59: A1:O9 | AH59: Répartition de la population selon les profils de défavorisation matérielle et sociale combinée 2021 de la région des Laurentides - secteur Mirabel | AI59: 11,0 % de la population de Mirabel, soit 6 700 personnes, habitent des secteurs ayant les conditions parmi les plus défavorables à la fois sur le plan matériel et social (profil 5). Mise à jour : janvier 2024
A60: 740 | B60: 740MatérielleRégional | C60: Régional | D60: Matérielle | E60: A579:O580 | F60: A7:N9 | G60: J579:K580 | H60: A18:B20 | I60: A579:A580 | J60: MRC_Mirabel_Defavo_2016_Mat.png | K60: MIR_2016_Mat | L60: A5 | M60: B2 | N60: B5 | O60: B2 | P60: A5 | Q60: Les secteurs de Mirabel ayant les conditions matérielles les plus défavorables (quintile 5 – en orangé) se situent essentiellement dans Saint-Augustin et Saint-Janvier. Mise à jour : janvier 2024 | R60: Près d’une personne sur 10 dans la population de Mirabel habite les secteurs ayant les conditions matérielles les plus défavorables (quintile 5), soit plus de 5 200 personnes. Mise à jour : janvier 2024 | S60: Lorsqu’on se concentre sur l’évolution des secteurs se retrouvant dans des conditions parmi les plus défavorables matériellement (quintile 5 – en orangé), on constate que certains secteurs sont passés d’un quintile 1 à 4 en 2016 au quintile 5 en 2021, dans Saint-Hermas, Saint-Canut, Saint-Augustin et le Petit-Brûlé. À savoir - Les variations entre 2016 et 2021 ont plusieurs causes possibles. Elles peuvent être dues à des changements 1) dans la population des secteurs auxquels on réfère, 2) dans la population de l’ensemble du territoire auquel les secteurs sont comparés, ou encore 3) dans la compilation de l’indice, en raison, par exemple, des modifications du découpage des secteurs ou des données manquantes. Mise à jour : février 2024 | T60: J3:O40 | U60: A12:K27 | V60: Répartition de la population (N, %) par niveau de défavorisation matérielle 2021 de la région des Laurentides - secteur Mirabel | W60: Source : INSPQ et BIESP, 2023. Statistique Canada, Recensement 2021. | X60: A8 | Y60: 16.5 | Z60: Population des secteurs ayant les conditions matérielles les plus défavorabless - secteur Mirabel, 2021 | AA60: Panorama de la défavorisation dans les Laurentides 2021, produit par l’équipe Surveillance, recherche et évaluation, Direction de santé publique des Laurentides, Centre intégré de santé et de services sociaux des Laurentides, 2024 | AB60: A9 | AC60: La population sans indice réside dans des secteurs où l’information pour le calcul de l’indice est indisponible à cause des ménages collectifs (centres d’hébergement, pénitenciers) ou du taux de non-réponse trop élevé. | AD60: A10 | AE60: https://www.santelaurentides.gouv.qc.ca/sante-publique/donnees-sur-la-population/panorama-de-la-defavorisation/ | AF60: A1:O9 | AG60: A1:O8 | AH60: Répartition de la population (N, %) par niveau de défavorisation matérielle 2021 de la région des Laurentides - secteur Mirabel | AI60: Près d’une personne sur 10 dans la population de Mirabel habite les secteurs ayant les conditions matérielles les plus défavorables (quintile 5), soit plus de 5 200 personnes. Mise à jour : janvier 2024
A61: 740 | B61: 740SocialeRégional | C61: Régional | D61: Sociale | E61: A678:O679 | F61: A7:N9 | G61: J678:K679 | H61: A18:B20 | I61: A678:A679 | J61: MRC_Mirabel_Defavo_2016_Soc.png | K61: MIR_2016_Soc | L61: A5 | M61: B2 | N61: B5 | O61: B2 | P61: A5 | Q61: Les secteurs de Mirabel ayant les conditions sociales les plus défavorables (quintile 5 – en orangé) se situent essentiellement dans Saint-Canut, Sainte-Monique, Saint-Augustin et Saint-Janvier. Mise à jour : janvier 2024 | R61: Près d’une personne sur 10 dans la population de Mirabel habite des secteurs ayant les conditions sociales les plus défavorables (quintile 5) correspond à environ 5 500 personnes. Mise à jour : janvier 2024 | S61: Lorsqu’on se concentre sur l’évolution des secteurs se retrouvant dans des conditions parmi les plus défavorables matériellement (quintile 5 – en orangé) de la région des Laurentides, on constate que certains secteurs sont passés d’un quintile 4 en 2016 au quintile 5 en 2021 dans Saint-Augustin. À savoir - Les variations entre 2016 et 2021 ont plusieurs causes possibles. Elles peuvent être dues à des changements 1) dans la population des secteurs auxquels on réfère, 2) dans la population de l’ensemble du territoire auquel les secteurs sont comparés, ou encore 3) dans la compilation de l’indice, en raison, par exemple, des modifications du découpage des secteurs ou des données manquantes. Mise à jour : février 2024 | T61: J3:O40 | U61: A12:K27 | V61: Répartition de la population (N, %) par niveau de défavorisation sociale 2021 de la région des Laurentides - secteur Mirabel | W61: Source : INSPQ et BIESP, 2023. Statistique Canada, Recensement 2021. | X61: A8 | Y61: 16.5 | Z61: Population des secteurs ayant les conditions sociales les plus défavorabless - secteur Mirabel, 2021 | AA61: Panorama de la défavorisation dans les Laurentides 2021, produit par l’équipe Surveillance, recherche et évaluation, Direction de santé publique des Laurentides, Centre intégré de santé et de services sociaux des Laurentides, 2024 | AB61: A9 | AC61: La population sans indice réside dans des secteurs où l’information pour le calcul de l’indice est indisponible à cause des ménages collectifs (centres d’hébergement, pénitenciers) ou du taux de non-réponse trop élevé. | AD61: A10 | AE61: https://www.santelaurentides.gouv.qc.ca/sante-publique/donnees-sur-la-population/panorama-de-la-defavorisation/ | AF61: A1:O9 | AG61: A1:O8 | AH61: Répartition de la population (N, %) par niveau de défavorisation sociale 2021 de la région des Laurentides - secteur Mirabel | AI61: Près d’une personne sur 10 dans la population de Mirabel habite des secteurs ayant les conditions sociales les plus défavorables (quintile 5) correspond à environ 5 500 personnes. Mise à jour : janvier 2024
A62: 750 | B62: 750Matérielle et socialeRégional | C62: Régional | D62: Matérielle et sociale | E62: A483:O489 | F62: A1:N4 | G62: J483:K489 | H62: A12:B15 | I62: A483:A489 | J62: RdN | K62: MRC_RDN_2016_Comb_Quintile | L62: A6 | M62: B2 | N62: B6 | O62: B2 | P62: A6 | Q62: Dans le MRC de la Rivière-du-Nord, les secteurs ayant les conditions les plus défavorables à la fois au plan matériel et social (profil 5 – en violet) dans toutes les municipalités du territoire SAUF à Saint-Colomban. Plus du tiers de la population de Saint-Jérôme habite ces secteurs. Les secteurs où les conditions sont parmi les plus défavorables seulement au plan social (profil 3 – en bleu) se retrouvent à Saint-Jérôme, Prévost et Saint-Hippolyte. On retrouve des secteurs qui présentent les conditions parmi les plus défavorables uniquement au plan matériel (profil 4 – en orangé) dans toutes les municipalités du territoire. Les trois-quarts de la population de Sainte-Sophie résident dans ces secteurs. Mise à jour : janvier 2024 | R62: Plus d’un cinquième de la population de la MRC de la Rivière-du-Nord habitent des secteurs ayant les conditions les plus défavorables à la fois au plan matériel et social (profil 5). Ces secteurs sont localisés à Prévost, Saint-Hippolyte, Sainte-Sophie et Saint-Jérôme. Le tiers de la population de Saint-Jérôme habite ces secteurs. Le quart de la population de la MRC de la Rivière-du-Nord habitent des secteurs où les conditions sont les plus défavorables seulement au plan social (profil 3). Ces derniers se retrouvent à Prévost, Saint-Hippolyte et Saint-Jérôme. Le quart de la population de la MRC de la Rivière-du-Nord habitent des secteurs où les conditions sont les plus défavorables uniquement au plan matériel (profil 4). On retrouve ces secteurs dans toutes les municipalités du territoire. Plus des trois-quarts de la population de Sainte-Sophie résident dans ces secteurs. Mise à jour : janvier 2024 | S62: Lorsqu’on se concentre sur l’évolution des secteurs du profil 5 (violet), soit ceux ayant les conditions matérielles et sociales parmi les plus défavorables, on remarque que plusieurs se sont ajoutés en 2021 par rapport à 2016, dans Saint-Hippolyte et Sainte-Sophie. À l’inverse, certains secteurs de Saint-Jérôme sont passés d’un profil 5 en 2016 à un profil 3 (défavorisés socialement seulement, en bleu) en 2021. À savoir - Les variations entre 2016 et 2021 ont plusieurs causes possibles. Elles peuvent être dues à des changements 1) dans la population des secteurs auxquels on réfère, 2) dans la population de l’ensemble du territoire auquel les secteurs sont comparés, ou encore 3) dans la compilation de l’indice, en raison, par exemple, des modifications du découpage des secteurs ou des données manquantes. Mise à jour : février 2024 | T62: J3:O40 | U62: A17:K32 | V62: Répartition de la population selon les profils de défavorisation matérielle et sociale combinée 2021 de la région des Laurentides - secteur MRC de la Rivière-du-Nord | W62: Source : INSPQ et BIESP, 2023. Statistique Canada, Recensement 2021. | X62: A13 | Y62: 49.5 | Z62: Population des secteurs ayant les conditions matérielles et sociales les plus défavorabless - secteur MRC de la Rivière-du-Nord, 2021 | AA62: Panorama de la défavorisation dans les Laurentides 2021, produit par l’équipe Surveillance, recherche et évaluation, Direction de santé publique des Laurentides, Centre intégré de santé et de services sociaux des Laurentides, 2024 | AB62: A14 | AC62: La population sans indice réside dans des secteurs où l’information pour le calcul de l’indice est indisponible à cause des ménages collectifs (centres d’hébergement, pénitenciers) ou du taux de non-réponse trop élevé. | AD62: A15 | AE62: https://www.santelaurentides.gouv.qc.ca/sante-publique/donnees-sur-la-population/panorama-de-la-defavorisation/ | AF62: A1:O14 | AG62: A1:O13 | AH62: Répartition de la population selon les profils de défavorisation matérielle et sociale combinée 2021 de la région des Laurentides - secteur MRC de la Rivière-du-Nord | AI62: Plus d’un cinquième de la population de la MRC de la Rivière-du-Nord habitent des secteurs ayant les conditions les plus défavorables à la fois au plan matériel et social (profil 5). Ces secteurs sont localisés à Prévost, Saint-Hippolyte, Sainte-Sophie et Saint-Jérôme. Le tiers de la population de Saint-Jérôme habite ces secteurs. Mise à jour : janvier 2024
A63: 750 | B63: 750MatérielleRégional | C63: Régional | D63: Matérielle | E63: A582:O588 | F63: A7:N9 | G63: J582:K588 | H63: A18:B20 | I63: A582:A588 | J63: RdN | K63: MRC_RDN_2016_Mat_Quintile | L63: A5 | M63: B2 | N63: B5 | O63: B2 | P63: A5 | Q63: Dans MRC de la Rivière-du-Nord, les secteurs ayant les conditions matérielles parmi les plus défavorables (quintile 5 – en orangé) se situent à Saint –Colomban, Saint-Jérôme et Sainte-Sophie. Le tiers de la population de Sainte-Sophie et plus du quart de celle de Saint-Jérôme habitent ces secteurs. Mise à jour : janvier 2024 | R63: Environ un cinquième de la population de la MRC de la Rivière-du-Nord habitent des secteurs ayant les conditions matérielles les plus défavorables (quintile 5). Ces secteurs se trouvent à Saint-Colomban, Sainte-Sophie et Saint-Jérôme. Le tiers de la population de Sainte-Sophie et plus du quart de celle de Saint-Jérôme habitent ces secteurs. Mise à jour : janvier 2024 | S63: Lorsqu’on se concentre sur l’évolution des secteurs se retrouvant dans des conditions parmi les plus défavorables matériellement (quintile 5 – en orangé), on constate que certains secteurs sont passés d’un quintile 3 ou 4 en 2016 au quintile 5 en 2021. Ils se trouvent dans Saint-Colomban, Saint-Jérôme et Sainte-Sophie. À l’inverse, d’autres secteurs de Saint-Jérôme sont passés d’un quintile 5 en 2016 à des quintiles plus favorisés en 2021. À savoir - Les variations entre 2016 et 2021 ont plusieurs causes possibles. Elles peuvent être dues à des changements 1) dans la population des secteurs auxquels on réfère, 2) dans la population de l’ensemble du territoire auquel les secteurs sont comparés, ou encore 3) dans la compilation de l’indice, en raison, par exemple, des modifications du découpage des secteurs ou des données manquantes. Mise à jour : février 2024 | T63: J3:O40 | U63: A16:K31 | V63: Répartition de la population (N, %) par niveau de défavorisation matérielle 2021 de la région des Laurentides - secteur MRC de la Rivière-du-Nord | W63: Source : INSPQ et BIESP, 2023. Statistique Canada, Recensement 2021. | X63: A12 | Y63: 16.5 | Z63: Population des secteurs ayant les conditions matérielles les plus défavorabless - secteur MRC de la Rivière-du-Nord, 2021 | AA63: Panorama de la défavorisation dans les Laurentides 2021, produit par l’équipe Surveillance, recherche et évaluation, Direction de santé publique des Laurentides, Centre intégré de santé et de services sociaux des Laurentides, 2024 | AB63: A13 | AC63: La population sans indice réside dans des secteurs où l’information pour le calcul de l’indice est indisponible à cause des ménages collectifs (centres d’hébergement, pénitenciers) ou du taux de non-réponse trop élevé. | AD63: A14 | AE63: https://www.santelaurentides.gouv.qc.ca/sante-publique/donnees-sur-la-population/panorama-de-la-defavorisation/ | AF63: A1:O13 | AG63: A1:O12 | AH63: Répartition de la population (N, %) par niveau de défavorisation matérielle 2021 de la région des Laurentides - secteur MRC de la Rivière-du-Nord | AI63: Environ un cinquième de la population de la MRC de la Rivière-du-Nord habitent des secteurs ayant les conditions matérielles les plus défavorables (quintile 5). Ces secteurs se trouvent à Saint-Colomban, Sainte-Sophie et Saint-Jérôme. Le tiers de la population de Sainte-Sophie et plus du quart de celle de Saint-Jérôme habitent ces secteurs. Mise à jour : janvier 2024
A64: 750 | B64: 750SocialeRégional | C64: Régional | D64: Sociale | E64: A681:O687 | F64: A7:N9 | G64: J681:K687 | H64: A18:B20 | I64: A681:A687 | J64: RdN | K64: MRC_RDN_2016_Soc_Quintile | L64: A5 | M64: B2 | N64: B5 | O64: B2 | P64: A5 | Q64: Dans la MRC de la Rivière-du-Nord, les secteurs ayant les conditions sociales parmi les plus défavorables (quintile 5 – en orangé) sont localisés à Prévost et principalement à Saint-Jérôme. Plus de 40 % des Jérômiens habitent ces secteurs. Mise à jour : janvier 2024 | R64: Environ un quart de la population de la MRC de la Rivière-du-Nord habitent des secteurs ayant les conditions sociales les plus défavorables (quintile 5). Ces secteurs se trouvent à Prévost et à Saint-Jérôme. Plus de 40 % des Jérômiens habitent ces secteurs. Mise à jour : janvier 2024 | S64: On n’observe pas de changements significatifs dans la répartition des secteurs où les conditions sont les plus défavorables sociale (quintile 5 – en orangé) de 2021 par rapport à celles de 2016. À savoir - Les variations entre 2016 et 2021 ont plusieurs causes possibles. Elles peuvent être dues à des changements 1) dans la population des secteurs auxquels on réfère, 2) dans la population de l’ensemble du territoire auquel les secteurs sont comparés, ou encore 3) dans la compilation de l’indice, en raison, par exemple, des modifications du découpage des secteurs ou des données manquantes. Mise à jour : février 2024 | T64: J3:O40 | U64: A16:K31 | V64: Répartition de la population (N, %) par niveau de défavorisation sociale 2021 de la région des Laurentides - secteur MRC de la Rivière-du-Nord | W64: Source : INSPQ et BIESP, 2023. Statistique Canada, Recensement 2021. | X64: A12 | Y64: 16.5 | Z64: Population des secteurs ayant les conditions sociales les plus défavorabless - secteur MRC de la Rivière-du-Nord, 2021 | AA64: Panorama de la défavorisation dans les Laurentides 2021, produit par l’équipe Surveillance, recherche et évaluation, Direction de santé publique des Laurentides, Centre intégré de santé et de services sociaux des Laurentides, 2024 | AB64: A13 | AC64: La population sans indice réside dans des secteurs où l’information pour le calcul de l’indice est indisponible à cause des ménages collectifs (centres d’hébergement, pénitenciers) ou du taux de non-réponse trop élevé. | AD64: A14 | AE64: https://www.santelaurentides.gouv.qc.ca/sante-publique/donnees-sur-la-population/panorama-de-la-defavorisation/ | AF64: A1:O13 | AG64: A1:O12 | AH64: Répartition de la population (N, %) par niveau de défavorisation sociale 2021 de la région des Laurentides - secteur MRC de la Rivière-du-Nord | AI64: Environ un quart de la population de la MRC de la Rivière-du-Nord habitent des secteurs ayant les conditions sociales les plus défavorables (quintile 5). Ces secteurs se trouvent à Prévost et à Saint-Jérôme. Plus de 40 % des Jérômiens habitent ces secteurs. Mise à jour : janvier 2024
A65: 760-1514 | B65: 760-1514Matérielle et socialeRégional | C65: Régional | D65: Matérielle et sociale | E65: A490:O500 | F65: A1:N4 | G65: J490:K500 | H65: A12:B15 | I65: A490:A500 | J65: MRC/RLS Argenteuil | K65: RLS_ARG_2016_Comb | L65: A6 | M65: B2 | N65: B6 | O65: B2 | P65: A6 | Q65: Dans la MRC/RLS d’Argenteuil, les secteurs ayant les conditions parmi les plus défavorables à la fois sur le plan matériel et social (profil 5 – en violet) sont localisés à Brownsburg-Chatham, Grenville, Grenville-sur-la-Rouge et Lachute. On ne retrouve qu’un seul secteur où les conditions les plus défavorables sur le plan social uniquement (profil 3 – en bleu), situé à Brownsburg-Chatham. On retrouve des secteurs qui présentent les conditions les plus défavorables seulement sur le plan matériel (profil 4 – en orangé) dans toutes les municipalités du territoire, SAUF à Grenville et Wentworth. Gore est la seule municipalité du terriroire où on retrouve des secteurs avec les condition les plus favorables à la fois sur le plan matériel et social (profil 1 – en vert). Mise à jour : janvier 2024 | R65: Près de la moitié de la population de la MRC/RLS d’Argenteuil habitent des secteurs ayant les conditions parmi les plus défavorables à la fois sur le plan matériel et social (profil 5). Ces derniers sont localisés à Brownsburg-Chatham, à Grenville, à Grenville-sur-la-Rouge et à Lachute. On trouve très peu de secteurs où les conditions sont les plus défavorables sur le plan social uniquement (profil 3). Il n’y a qu’à Brownsburg-Chatham où des résidents habitent un tel secteur. Le tiers de la population de la MRC/RLS habite des secteurs qui présentent les conditions parmi les plus défavorables seulement sur le plan matériel (profil 4). Il se répartissent dans toutes les municiplités du territoire, SAUF Grenville et Wentworth. Mise à jour : janvier 2024 | S65: Lorsqu’on se concentre sur l’évolution des secteurs du profil 5 (violet), soit ceux ayant les conditions matérielles et sociales les plus défavorables, on remarque que plusieurs se sont ajoutés en 2021 par rapport à 2016. Ils se trouvent dans Grenville-sur-la-Rouge, Grenville, Brownburg-Chatham et Lachute. À savoir - Les variations entre 2016 et 2021 ont plusieurs causes possibles. Elles peuvent être dues à des changements 1) dans la population des secteurs auxquels on réfère, 2) dans la population de l’ensemble du territoire auquel les secteurs sont comparés, ou encore 3) dans la compilation de l’indice, en raison, par exemple, des modifications du découpage des secteurs ou des données manquantes. Mise à jour : février 2024 | T65: J3:O40 | U65: A21:K36 | V65: Répartition de la population selon les profils de défavorisation matérielle et sociale combinée 2021 de la région des Laurentides - secteur MRC/RLS d'Argenteuil | W65: Source : INSPQ et BIESP, 2023. Statistique Canada, Recensement 2021. | X65: A17 | Y65: 49.5 | Z65: Population des secteurs ayant les conditions matérielles et sociales les plus défavorables - secteur MRC/RLS d'Argenteuil, 2021 | AA65: Panorama de la défavorisation dans les Laurentides 2021, produit par l’équipe Surveillance, recherche et évaluation, Direction de santé publique des Laurentides, Centre intégré de santé et de services sociaux des Laurentides, 2024 | AB65: A18 | AC65: La population sans indice réside dans des secteurs où l’information pour le calcul de l’indice est indisponible à cause des ménages collectifs (centres d’hébergement, pénitenciers) ou du taux de non-réponse trop élevé. | AD65: A19 | AE65: https://www.santelaurentides.gouv.qc.ca/sante-publique/donnees-sur-la-population/panorama-de-la-defavorisation/ | AF65: A1:O18 | AG65: A1:O17 | AH65: Répartition de la population selon les profils de défavorisation matérielle et sociale combinée 2021 de la région des Laurentides - secteur MRC/RLS d'Argenteuil | AI65: Près de la moitié de la population de la MRC/RLS d’Argenteuil habitent des secteurs ayant les conditions parmi les plus défavorables à la fois sur le plan matériel et social (profil 5). Ces derniers sont localisés à Brownsburg-Chatham, à Grenville, à Grenville-sur-la-Rouge et à Lachute. Mise à jour : janvier 2024
A66: 760-1514 | B66: 760-1514MatérielleRégional | C66: Régional | D66: Matérielle | E66: A589:O599 | F66: A7:N9 | G66: J589:K599 | H66: A18:B20 | I66: A589:A599 | J66: MRC/RLS Argenteuil | K66: RLS_ARG_2016_Mat | L66: A5 | M66: B2 | N66: B5 | O66: B2 | P66: A5 | Q66: Dans la MRC/RLS d’Argenteuil, on retrouve des secteurs ayant les conditions matérielles les plus défavorables (quintile 5 – en orangé) dans toutes les municipalités, SAUF Mille-Isles et Wentworth. Plus de la moitié des résidents de la MRC/RLS habite ces secteurs. Mise à jour : janvier 2024 | R66: Plus de la moitié de la population de la MRC/RLS d’Argenteuil résident des secteurs ayant les conditions matérielles parmi les plus défavorables (quintile 5). Ces secteurs se trouvent dans toutes les municipalités de la MRC/RLS, SAUF Mille-Isles et Wentworth. Mise à jour : janvier 2024 | S66: Lorsqu’on se concentre sur l’évolution des secteurs où les conditions sont parmi les plus défavorables matériellement (quintile 5 – en orangé), on constate que certains sont passés d’un quintile 4 en 2016 au quintile 5 en 2021. Ils se trouvent dans Harrington, Grenville-sur-la-Rouge, Lachute et Saint-André-d’Argenteuil. À l’inverse, d’autres secteurs qui étaient de quintiles 1 à 4 en 2016 sont passés au quintile 5, plus défavorable, en 2021. Ces secteurs se situent à Lachute et Saint-André-d’Argenteuil. À savoir - Les variations entre 2016 et 2021 ont plusieurs causes possibles. Elles peuvent être dues à des changements 1) dans la population des secteurs auxquels on réfère, 2) dans la population de l’ensemble du territoire auquel les secteurs sont comparés, ou encore 3) dans la compilation de l’indice, en raison, par exemple, des modifications du découpage des secteurs ou des données manquantes. Mise à jour : février 2024 | T66: J3:O40 | U66: A20:K35 | V66: Répartition de la population (N, %) par niveau de défavorisation matérielle 2021 de la région des Laurentides - secteur MRC/RLS d'Argenteuil | W66: Source : INSPQ et BIESP, 2023. Statistique Canada, Recensement 2021. | X66: A16 | Y66: 16.5 | Z66: Population des secteurs ayant les conditions matérielles les plus défavorables - secteur MRC/RLS d'Argenteuil, 2021 | AA66: Panorama de la défavorisation dans les Laurentides 2021, produit par l’équipe Surveillance, recherche et évaluation, Direction de santé publique des Laurentides, Centre intégré de santé et de services sociaux des Laurentides, 2024 | AB66: A17 | AC66: La population sans indice réside dans des secteurs où l’information pour le calcul de l’indice est indisponible à cause des ménages collectifs (centres d’hébergement, pénitenciers) ou du taux de non-réponse trop élevé. | AD66: A18 | AE66: https://www.santelaurentides.gouv.qc.ca/sante-publique/donnees-sur-la-population/panorama-de-la-defavorisation/ | AF66: A1:O17 | AG66: A1:O16 | AH66: Répartition de la population (N, %) par niveau de défavorisation matérielle 2021 de la région des Laurentides - secteur MRC/RLS d'Argenteuil | AI66: Plus de la moitié de la population de la MRC/RLS d’Argenteuil résident des secteurs ayant les conditions matérielles parmi les plus défavorables (quintile 5). Ces secteurs se trouvent dans toutes les municipalités du territoire, SAUF Mille-Isles et Wentworth. Mise à jour : janvier 2024
A67: 760-1514 | B67: 760-1514SocialeRégional | C67: Régional | D67: Sociale | E67: A688:O698 | F67: A7:N9 | G67: J688:K698 | H67: A18:B20 | I67: A688:A698 | J67: MRC/RLS Argenteuil | K67: RLS_ARG_2016_Soc | L67: A5 | M67: B2 | N67: B5 | O67: B2 | P67: A5 | Q67: Dans la MRC/RLS d’Argenteuil, les secteurs ayant les conditions sociales les plus défavorables (quintile 5 – en orangé) se répartissent dans Grenville, Brownsburg-Chatham et Lachute. Plus du tiers de la population de Lachute et l’ensemble de la population de Grenville habitent ces secteurs. Mise à jour : janvier 2024 | R67: Environ un cinquième de la population de la MRC/RLS d’Argenteuil habitent des secteurs ayant les conditions sociales parmi les plus défavorables (quintile 5). Ces secteurs se répartissent dans Brownsburg-Chatham, Grenville et Lachute. Mise à jour : janvier 2024 | S67: Sur le plan de la défavorisation sociale, la MRC/RLS Argenteuil présente un profil globalement favorable comparé à la région des Laurentides. Si on se concentre sur les secteurs ayant les conditions sociales parmi les plus défavorables (quintile 5 – en orangé), on remarque néanmoins que certains secteurs sont passés d’un quintile 4 en 2016 au quintile 5 en 2021 dans Grenville et Lachute. À savoir - Les variations entre 2016 et 2021 ont plusieurs causes possibles. Elles peuvent être dues à des changements 1) dans la population des secteurs auxquels on réfère, 2) dans la population de l’ensemble du territoire auquel les secteurs sont comparés, ou encore 3) dans la compilation de l’indice, en raison, par exemple, des modifications du découpage des secteurs ou des données manquantes. Mise à jour : février 2024 | T67: J3:O40 | U67: A20:K35 | V67: Répartition de la population (N, %) par niveau de défavorisation sociale 2021 de la région des Laurentides - secteur MRC/RLS d'Argenteuil | W67: Source : INSPQ et BIESP, 2023. Statistique Canada, Recensement 2021. | X67: A16 | Y67: 16.5 | Z67: Population des secteurs ayant les conditions sociales les plus défavorables - secteur MRC/RLS d'Argenteuil, 2021 | AA67: Panorama de la défavorisation dans les Laurentides 2021, produit par l’équipe Surveillance, recherche et évaluation, Direction de santé publique des Laurentides, Centre intégré de santé et de services sociaux des Laurentides, 2024 | AB67: A17 | AC67: La population sans indice réside dans des secteurs où l’information pour le calcul de l’indice est indisponible à cause des ménages collectifs (centres d’hébergement, pénitenciers) ou du taux de non-réponse trop élevé. | AD67: A18 | AE67: https://www.santelaurentides.gouv.qc.ca/sante-publique/donnees-sur-la-population/panorama-de-la-defavorisation/ | AF67: A1:O17 | AG67: A1:O16 | AH67: Répartition de la population (N, %) par niveau de défavorisation sociale 2021 de la région des Laurentides - secteur MRC/RLS d'Argenteuil | AI67: Environ un cinquième de la population de la MRC/RLS d’Argenteuil 5abitent des secteurs ayant les conditions sociales parmi les plus défavorables (quintile 5). Ces secteurs se répartissent dans Brownsburg-Chatham, Grenville et Lachute. Mise à jour : janvier 2024
A68: 770-1513 | B68: 770-1513Matérielle et socialeRégional | C68: Régional | D68: Matérielle et sociale | E68: A501:O512 | F68: A1:N4 | G68: J501:K512 | H68: A12:B15 | I68: A501:A512 | J68: MRC/RLS PDH | K68: RLS_PDH_2016_Comb | L68: A6 | M68: B2 | N68: B6 | O68: B2 | P68: A6 | Q68: Dans la MRC/RLS des Pays-d’en-Haut, les secteurs ayant les conditions parmi les plus défavorables à la fois sur le plan matériel et social (profil 5 – en violet) sont localisés à Saint-Adolphe-d’Howard, Saint-Sauveur, Sainte-Adèle et à Sainte-Marguerite-du-Lac-Masson. Près de la moitié des résidents de la MRC/RLS habite des secteurs où les conditions sont parmi les plus défavorables uniquement sur le plan social (profil 3 – en bleu). Ces derniers se retrouvent à Saint-Adolphe-d’Howard, Morin-Heights, Sainte-Adèle, Piedmont et Saint-Sauveur. La majorité de la population de Saint-Sauveur, Sainte-Adèle et Piedmont habite ces secteurs. On retrouve des secteurs qui présentent les conditions parmi les plus défavorables seulement sur le plan matériel (profil 4 – en orangé) dans Wentworth-Nord, Saint-Adolphe-d’Howard et Sainte-Marguerite-du-Lac-Masson. Autour de la moitié des populations de Wentworth-Nord et de Sainte-Marguerite-du-Lac-Masson habite ces secteurs. Mise à jour : janvier 2024 | R68: Dans la MRC/RLS des Pays-d’en-Haut, moins d’un dixième de la population habite des secteurs ayant les conditions parmi les plus défavorables de la MRC/RLS à la fois sur le plan matériel et social (profil 5). Ces derniers sont localisés à Saint-Adolphe-d’Howard, Sainte-Adèle, Sainte-Marguerite-du-Lac-Masson et Saint-Sauveur. Près de la moitié de la population de la MRC/RLS habite des secteurs où les conditions sont parmi les plus défavorables uniquement sur le plan social (profil 3). Ces secteurs se retrouvent à Morin-Heights, Piedmont, Saint-Adolphe-d’Howard, Sainte-Adèle, et Saint-Sauveur. En nombre, Sainte-Adèle et Saint-Sauveur sont les municipalités ayant le plus de résidents qui habitent ces secteurs. Moins d’un dixième de la population de la MRC/RLS habite des secteurs qui présentent les conditions parmi les plus défavorables seulement sur le plan matériel (profil 4). Ces derniers se trouvent dans Saint-Adolphe-d’Howard, Sainte-Marguerite-du-Lac-Masson Sainte-Adèle, et Saint-Sauveur. Presque toute la population de Sainte-Marguerite-du-Lac-Masson et plus de la moitié de celle de Saint-Adolphe-d'Howard habitent ces secteurs. Mise à jour : janvier 2024 | S68: En 2021 comme en 2016, on retrouve peu de secteurs dont les conditions sont parmi les plus défavorables à la fois sur le plan matériel et social (profil 5 – en violet) dans le RLS des Pays-d’en-Haut. uelques-uns sont passés du profil 5 en 2016 au profil 3 (à Sainte-Adèle) ou au profil 4 (à Sainte-Marguerite du-Lac-Masson) en 2021. À savoir - Les variations entre 2016 et 2021 ont plusieurs causes possibles. Elles peuvent être dues à des changements 1) dans la population des secteurs auxquels on réfère, 2) dans la population de l’ensemble du territoire auquel les secteurs sont comparés, ou encore 3) dans la compilation de l’indice, en raison, par exemple, des modifications du découpage des secteurs ou des données manquantes. Mise à jour : février 2024 | T68: J3:O40 | U68: A22:K37 | V68: Répartition de la population selon les profils de défavorisation matérielle et sociale combinée 2021 de la région des Laurentides - secteur MRC/RLS des Pays-d'en-Haut | W68: Source : INSPQ et BIESP, 2023. Statistique Canada, Recensement 2021. | X68: A18 | Y68: 49.5 | Z68: Population des secteurs ayant les conditions matérielles et sociales les plus défavorables - secteur MRC/RLS des Pays-d'en-Haut, 2021 | AA68: Panorama de la défavorisation dans les Laurentides 2021, produit par l’équipe Surveillance, recherche et évaluation, Direction de santé publique des Laurentides, Centre intégré de santé et de services sociaux des Laurentides, 2024 | AB68: A19 | AC68: La population sans indice réside dans des secteurs où l’information pour le calcul de l’indice est indisponible à cause des ménages collectifs (centres d’hébergement, pénitenciers) ou du taux de non-réponse trop élevé. | AD68: A20 | AE68: https://www.santelaurentides.gouv.qc.ca/sante-publique/donnees-sur-la-population/panorama-de-la-defavorisation/ | AF68: A1:O18 | AG68: A1:O17 | AH68: Répartition de la population selon les profils de défavorisation matérielle et sociale combinée 2021 de la région des Laurentides - secteur MRC/RLS des Pays-d'en-Haut | AI68: Dans la MRC/RLS des Pays-d’en-Haut, moins d’un dixième de la population habite des secteurs ayant les conditions parmi les plus défavorables du territoire à la fois sur le plan matériel et social (profil 5). Ces derniers sont localisés à Saint-Adolphe-d’Howard, Sainte-Adèle, Sainte-Marguerite-du-Lac-Masson et Saint-Sauveur. Mise à jour : janvier 2024
A69: 770-1513 | B69: 770-1513MatérielleRégional | C69: Régional | D69: Matérielle | E69: A600:O611 | F69: A7:N9 | G69: J600:K611 | H69: A18:B20 | I69: A600:A611 | J69: MRC/RLS PDH | K69: RLS_PDH_2016_Mat | L69: A5 | M69: B2 | N69: B5 | O69: B2 | P69: A5 | Q69: Dans la MRC/RLS des Pays-d’en-Haut, les secteurs ayant les conditions matérielles parmi les plus défavorables (quintile 5 – en orangé) sont à Wentworth-Nord, Saint-Adolphe-d’Howard, Sainte-Adèle et Sainte-Marguerite-du-Lac-Masson. Près de la moitié de la population de Wentworth-Nord habite ces secteurs. Mise à jour : janvier 2024 | R69: Dans la MRC/RLS des Pays-d’en-Haut, les secteurs ayant les conditions matérielles parmi les plus défavorables (quintile 5) sont à Saint-Adolphe-d’Howard, Sainte-Adèle, Sainte-Marguerite-du-Lac-Masson et Wentworth-Nord. En nombre, c’est à Sainte-Adèle qu’on trouve le plus de personnes habitant ces secteurs. Mise à jour : janvier 2024 | S69: Lorsqu’on se concentre sur l’évolution des secteurs se retrouvant dans le quintile 5 (en orangé), le plus défavorable matériellement, on constate quelques changements entre 2016 et 2021. Essentiellement, des secteurs sont passés du quintile 5 à des quintiles plus favorables dans Lac-des-Seize-Iles, Saint-Adolphe-d’Howard et Sainte-Marguerite du-Lac-Masson. À savoir - Les variations entre 2016 et 2021 ont plusieurs causes possibles. Elles peuvent être dues à des changements 1) dans la population des secteurs auxquels on réfère, 2) dans la population de l’ensemble du territoire auquel les secteurs sont comparés, ou encore 3) dans la compilation de l’indice, en raison, par exemple, des modifications du découpage des secteurs ou des données manquantes. Mise à jour : février 2024 | T69: J3:O40 | U69: A21:K36 | V69: Répartition de la population (N, %) par niveau de défavorisation matérielle 2021 de la région des Laurentides - secteur MRC/RLS des Pays-d'en-Haut | W69: Source : INSPQ et BIESP, 2023. Statistique Canada, Recensement 2021. | X69: A17 | Y69: 16.5 | Z69: Population des secteurs ayant les conditions matérielles les plus défavorables - secteur MRC/RLS des Pays-d'en-Haut, 2021 | AA69: Panorama de la défavorisation dans les Laurentides 2021, produit par l’équipe Surveillance, recherche et évaluation, Direction de santé publique des Laurentides, Centre intégré de santé et de services sociaux des Laurentides, 2024 | AB69: A18 | AC69: La population sans indice réside dans des secteurs où l’information pour le calcul de l’indice est indisponible à cause des ménages collectifs (centres d’hébergement, pénitenciers) ou du taux de non-réponse trop élevé. | AD69: A19 | AE69: https://www.santelaurentides.gouv.qc.ca/sante-publique/donnees-sur-la-population/panorama-de-la-defavorisation/ | AF69: A1:O17 | AG69: A1:O16 | AH69: Répartition de la population (N, %) par niveau de défavorisation matérielle 2021 de la région des Laurentides - secteur MRC/RLS des Pays-d'en-Haut | AI69: Dans la MRC/RLS des Pays-d’en-Haut, les secteurs ayant les conditions matérielles parmi les plus défavorables (quintile 5) sont à Saint-Adolphe-d’Howard, Sainte-Adèle, Sainte-Marguerite-du-Lac-Masson et Wentworth-Nord. En nombre, c’est à Sainte-Adèle qu’on trouve le plus de personnes habitant ces secteurs. Mise à jour : janvier 2024
A70: 770-1513 | B70: 770-1513SocialeRégional | C70: Régional | D70: Sociale | E70: A699:O710 | F70: A7:N9 | G70: J699:K710 | H70: A18:B20 | I70: A699:A710 | J70: MRC/RLS PDH | K70: RLS_PDH_2016_Soc | L70: A5 | M70: B2 | N70: B5 | O70: B2 | P70: A5 | Q70: Les secteurs de la MRC/RLS des Pays-d’en-Haut qui présentent les conditions sociales les plus défavorables (quintile 5 – en orangé) se retrouvent à Saint-Sauveur, Sainte-Adèle et Piedmont. On retrouve plus de la moitié de la population de la MRC dans les deux quintiles les plus défavorables regroupés (quintiles 4 – en orangé pâle et 5 – en orangé). Mise à jour : janvier 2024 | R70: Environ un cinquième de la population de la MRC/RLS des Pays-d’en-Haut habitent des secteurs qui présentent les conditions sociales les plus défavorables (quintile 5). Ces secteurs se retrouvent à Piedmont, Sainte-Adèle et à Saint-Sauveur. Plus des du tiers de la population de Piedmont et de Sainte-Adèle habite ces secteurs. Mise à jour : janvier 2024 | S70: Si on se concentre sur les secteurs ayant les conditions parmi les plus défavorables socialement (quintile 5 - en orangé), on constate que quelques qui étaient de quintiles 4 en 2016 sont passés au quintile 5 en 2021. Ces secteurs se situent à Saint-Sauveur et à Piedmont. À l’inverse, d’autres secteurs sont passés du quintile 5 en 2016 à des quintiles plus favorables en 2021 dans Sainte-Marguerite-du-Lac-Masson et Saint-Sauveur. À savoir - Les variations entre 2016 et 2021 ont plusieurs causes possibles. Elles peuvent être dues à des changements 1) dans la population des secteurs auxquels on réfère, 2) dans la population de l’ensemble du territoire auquel les secteurs sont comparés, ou encore 3) dans la compilation de l’indice, en raison, par exemple, des modifications du découpage des secteurs ou des données manquantes. Mise à jour : février 2024 | T70: J3:O40 | U70: A21:K36 | V70: Répartition de la population (N, %) par niveau de défavorisation sociale 2021 de la région des Laurentides - secteur MRC/RLS des Pays-d'en-Haut | W70: Source : INSPQ et BIESP, 2023. Statistique Canada, Recensement 2021. | X70: A17 | Y70: 16.5 | Z70: Population des secteurs ayant les conditions sociales les plus défavorables - secteur MRC/RLS des Pays-d'en-Haut, 2021 | AA70: Panorama de la défavorisation dans les Laurentides 2021, produit par l’équipe Surveillance, recherche et évaluation, Direction de santé publique des Laurentides, Centre intégré de santé et de services sociaux des Laurentides, 2024 | AB70: A18 | AC70: La population sans indice réside dans des secteurs où l’information pour le calcul de l’indice est indisponible à cause des ménages collectifs (centres d’hébergement, pénitenciers) ou du taux de non-réponse trop élevé. | AD70: A19 | AE70: https://www.santelaurentides.gouv.qc.ca/sante-publique/donnees-sur-la-population/panorama-de-la-defavorisation/ | AF70: A1:O17 | AG70: A1:O16 | AH70: Répartition de la population (N, %) par niveau de défavorisation sociale 2021 de la région des Laurentides - secteur MRC/RLS des Pays-d'en-Haut | AI70: Environ un cinquième de la population de la MRC/RLS des Pays-d’en-Haut habitent des secteurs qui présentent les conditions sociales les plus défavorables (quintile 5). Ces secteurs se retrouvent à Piedmont, Sainte-Adèle et à Saint-Sauveur. Plus du tiers de la population de Piedmont et de Sainte-Adèle habite ces secteurs. Mise à jour : janvier 2024
A71: 780-1512 | B71: 780-1512Matérielle et socialeRégional | C71: Régional | D71: Matérielle et sociale | E71: A513:O534 | F71: A1:N4 | G71: J513:K534 | H71: A12:B15 | I71: A513:A534 | J71: MRC/RLS Laurentides | K71: RLS_LAUR_2016_Comb | L71: A6 | M71: B2 | N71: B6 | O71: B2 | P71: A6 | Q71: Dans la MRC/RLS des Laurentides, on retrouve des secteurs ayant les conditions parmi les plus défavorables à la fois sur le plan matériel et social (profil 5 – en violet) à Labelle, Amherst, Brébeuf, Arundel, Huberdeau, Mont-Tremblant, Sainte-Agathe-des-Monts, Val-David et à Val-Morin. Mont-Tremblant et Sainte-Agathe-des-Monts se démarquent avec le plus grand nombre de personnes habitant ces secteurs. Les secteurs où les conditions sont parmi les plus défavorables de la MRC/RLS uniquement sur le plan social (profil 3 – en bleu) se situent à Mont-Tremblant, Mont-Blanc, Sainte-Agathe-des-Monts et Val-David. C’est à Val-David qu’on retrouve le plus grand nombre de personnes qui habitent ces secteurs. Les secteurs qui présentent les conditions parmi les plus défavorables de la MRC/RLS seulement sur le plan matériel (profil 4 – en orangé) se situent à La Minerve, Labelle, La Conception, Amherst, Brébeuf, Lac-Supérieur, Val-des-Lacs, Lanthier, Mont-Blanc, Sainte-Agathe-des-Monts et Sainte-Lucie-des-Laurentides. Mise à jour : janvier 2024 | R71: Près du tiers de la population de la MRC/RLS des Laurentides, on retrouve des secteurs ayant les conditions parmi les plus défavorables à la fois sur le plan matériel et social (profil 5). Ces secteurs se siteunt à Amherst, Arundel, Brébeuf, Huberdeau, Labelle, Mont-Tremblant, Sainte-Agathe-des-Monts, Mont-Blanc et à Val-Morin. Près de la moitié de la population de Mont-Tremblant et le tiers de celle de Sainte-Agathe-des-Monts habitent dans ces secteurs. Environ un cinquième de la population de la MRC/RLS habite les secteurs où les conditions sont parmi les plus défavorables uniquement sur le plan social (profil 3). Ces derniers se situent à Mont-Blanc, Mont-Tremblant, Sainte-Agathe-des-Monts et Val-David. C’est à Val-David qu’on retrouve le plus grand nombre de personnes qui résident dans ces secteurs Plus du quart de la population de la MRC/RLS habite les secteurs où les conditions sont parmi les plus défavorables seulement sur le plan matériel (profil 4). Ces secteurs se situent à Amherst, Brébeuf, La Conception, La Minerve, Labelle, Lac Supéreur, Mont-Blanc, Lanthier, Sainte-Agathe-des-Monts, Sainte-Lucie-des-Laurentides et Val-des-Lacs. L’ensemble de la population Amherst et de Lanthier habite ces secteurs. Mise à jour : janvier 2024 | S71: Lorsqu’on se concentre sur l’évolution des secteurs du profil 5 (violet), soit ceux ayant les conditions matérielles et sociales parmi les plus défavorables, on voit que certains secteurs sont passés d’un profil 4 (défavorisation matérielle seulement) en 2016 au profil 5 en 2021. On remarque ces changements dans Huberdeau, Arundel, Brébeuf et Mont-Tremblant. À l’inverse, des secteurs de profil 5 sont devenus de profil 3 à Mont-Blanc ou de profil 4 à Labelle. À savoir - Les variations entre 2016 et 2021 ont plusieurs causes possibles. Elles peuvent être dues à des changements 1) dans la population des secteurs auxquels on réfère, 2) dans la population de l’ensemble du territoire auquel les secteurs sont comparés, ou encore 3) dans la compilation de l’indice, en raison, par exemple, des modifications du découpage des secteurs ou des données manquantes. Mise à jour : février 2024 | T71: J3:O40 | U71: A32:K46 | V71: Répartition de la population selon les profils de défavorisation matérielle et sociale combinée 2021 de la région des Laurentides - secteur MRC/RLS des Laurentides | W71: Source : INSPQ et BIESP, 2023. Statistique Canada, Recensement 2021. | X71: A28 | Y71: 49.5 | Z71: Population des secteurs ayant les conditions matérielles et sociales les plus défavorables - secteur MRC/RLS des Laurentides, 2021 | AA71: Panorama de la défavorisation dans les Laurentides 2021, produit par l’équipe Surveillance, recherche et évaluation, Direction de santé publique des Laurentides, Centre intégré de santé et de services sociaux des Laurentides, 2024 | AB71: A29 | AC71: La population sans indice réside dans des secteurs où l’information pour le calcul de l’indice est indisponible à cause des ménages collectifs (centres d’hébergement, pénitenciers) ou du taux de non-réponse trop élevé. | AD71: A30 | AE71: https://www.santelaurentides.gouv.qc.ca/sante-publique/donnees-sur-la-population/panorama-de-la-defavorisation/ | AF71: A1:O29 | AG71: A1:O28 | AH71: Répartition de la population selon les profils de défavorisation matérielle et sociale combinée 2021 de la région des Laurentides - secteur MRC/RLS des Laurentides | AI71: Près du tiers de la population de la MRC/RLS des Laurentides, on retrouve des secteurs ayant les conditions parmi les plus défavorables à la fois sur le plan matériel et social (profil 5). Ces secteurs se siteunt à Amherst, Arundel, Brébeuf, Huberdeau, Labelle, Mont-Tremblant, Sainte-Agathe-des-Monts, Mont-Blanc et à Val-Morin. Près de la moitié de la population de Mont-Tremblant et le tiers de celle de Sainte-Agathe-des-Monts habitent dans ces secteurs. Mise à jour : janvier 2024
A72: 780-1512 | B72: 780-1512MatérielleRégional | C72: Régional | D72: Matérielle | E72: A612:O633 | F72: A7:N9 | G72: J612:K633 | H72: A18:B20 | I72: A612:A633 | J72: MRC/RLS Laurentides | K72: RLS_LAUR_2016_Mat | L72: A5 | M72: B2 | N72: B5 | O72: B2 | P72: A5 | Q72: Dans la MRC/RLS des Laurentides, les secteurs ayant les conditions matérielles parmi les plus défavorables (quintile 5 – en orangé) sont localisés Labelle, La Conception, Amherst, Brébeuf, Huberdeau, Mont-Tremblant, Lac-Supérieur, Mont-Blanc, Sainte-Agathe-des-Monts, Lanthier et Sainte-Lucie-des-Laurentides. En nombre de personnes, Sainte-Agathe-des-Monts est de loin la municipalité où la population habitant ces secteurs est la plus importante. Mise à jour : janvier 2024 | R72: Environ le quart de la population de la MRC/RLS des Laurentides habite des secteurs ayant les conditions matérielles parmi les plus défavorables (quintile 5). Ces derniers sont localisés à Amherst, Brébeuf, Huberdeau, La Conception, Labelle, Lac-Supérieur, Lanthier, Mont-Blanc, Mont-Tremblant, Sainte-Agathe-des-Monts et à Sainte-Lucie-des-Laurentides. En nombre de personnes, Sainte-Agathe-des-Monts est de loin la municipalité où la population habitant ces secteurs est la plus importante. Mise à jour : janvier 2024 | S72: Lorsqu’on se concentre sur l’évolution des secteurs ayant les conditions les plus défavorables matériellement (quintile 5 – en orangé) de la région des Laurentides, on constate que certains secteurs sont passés d’un quintile 3 ou 4 en 2016 au quintile 5 en 2021. Ces secteurs se trouvent dans La Conception, Huberdeau, Mont-Blanc et Lac-Supérieur. À l’inverse, d’autres secteurs qui étaient de quintiles 5 en 2016 sont passés à un quintile favorable, en 2021. Ils se situent à La Minerve, Montcalm et Val-des-Lacs. À savoir - Les variations entre 2016 et 2021 ont plusieurs causes possibles. Elles peuvent être dues à des changements 1) dans la population des secteurs auxquels on réfère, 2) dans la population de l’ensemble du territoire auquel les secteurs sont comparés, ou encore 3) dans la compilation de l’indice, en raison, par exemple, des modifications du découpage des secteurs ou des données manquantes. Mise à jour : février 2024 | T72: J3:O40 | U72: A31:K45 | V72: Répartition de la population (N, %) par niveau de défavorisation matérielle 2021 de la région des Laurentides - secteur MRC/RLS des Laurentides | W72: Source : INSPQ et BIESP, 2023. Statistique Canada, Recensement 2021. | X72: A27 | Y72: 16.5 | Z72: Population des secteurs ayant les conditions matérielles les plus défavorables - secteur MRC/RLS des Laurentides, 2021 | AA72: Panorama de la défavorisation dans les Laurentides 2021, produit par l’équipe Surveillance, recherche et évaluation, Direction de santé publique des Laurentides, Centre intégré de santé et de services sociaux des Laurentides, 2024 | AB72: A28 | AC72: La population sans indice réside dans des secteurs où l’information pour le calcul de l’indice est indisponible à cause des ménages collectifs (centres d’hébergement, pénitenciers) ou du taux de non-réponse trop élevé. | AD72: A29 | AE72: https://www.santelaurentides.gouv.qc.ca/sante-publique/donnees-sur-la-population/panorama-de-la-defavorisation/ | AF72: A1:O28 | AG72: A1:O27 | AH72: Répartition de la population (N, %) par niveau de défavorisation matérielle 2021 de la région des Laurentides - secteur MRC/RLS des Laurentides | AI72: Environ le quart de la population de la MRC/RLS des Laurentides habite des secteurs ayant les conditions matérielles parmi les plus défavorables (quintile 5). Ces derniers sont localisés à Amherst, Brébeuf, Huberdeau, La Conception, Labelle, Lac-Supérieur, Lanthier, Mont-Blanc, Mont-Tremblant, Sainte-Agathe-des-Monts et à Sainte-Lucie-des-Laurentides. En nombre de personnes, Sainte-Agathe-des-Monts est de loin la municipalité où la population habitant ces secteurs est la plus importante. Mise à jour : janvier 2024
A73: 780-1512 | B73: =A73&D73&C73 -> 780-1512SocialeRégional | C73: Régional | D73: Sociale | E73: A711:O732 | F73: A7:N9 | G73: J711:K732 | H73: A18:B20 | I73: A711:A732 | J73: MRC/RLS Laurentides | K73: RLS_LAUR_2016_Soc | L73: A5 | M73: B2 | N73: B5 | O73: B2 | P73: A5 | Q73: Dans la MRC/RLS des Laurentides, les secteurs ayant les conditions sociales parmi les plus défavorables (quintile 5 – en orangé) sont localisés à Mont-Tremblant, Arundel, Mont-Blanc, Sainte-Agathe-des-Monts, Val-David et Val-Morin. En nombre de personnes, Mont-Tremblant et Sainte-Agathe-des-Monts sont les municipalités où la population habitant ces secteurs est la plus importante. Mise à jour : janvier 2024 | R73: Plus d’un cinquième de la population de la MRC/RLS des Laurentides, les secteurs réside dans des secteurs ayant les conditions sociales parmi les plus défavorables (quintile 5). Ces secteurs sont localisés à Arundel, Mont-Blanc, Mont-Tremblant, Sainte-Agathe-des-Monts, Val-David et Val-Morin. En nombre de personnes, Sainte-Agathe-des-Monts, Val-David et Mont-Tremblant sont les municipalités où la population habitant ces secteurs est la plus. Mise à jour : janvier 2024 | S73: Si on se concentre sur les secteurs ayant les conditions sociales les plus défavorables (quintile 5 – en orangé), on remarque que certains secteurs sont passés d’un quintile 4 en 2016 au quintile 5 en 2021 dans Mont-Tremblant, Sainte-Agathe-des-Monts et Val-Morin. À savoir - Les variations entre 2016 et 2021 ont plusieurs causes possibles. Elles peuvent être dues à des changements 1) dans la population des secteurs auxquels on réfère, 2) dans la population de l’ensemble du territoire auquel les secteurs sont comparés, ou encore 3) dans la compilation de l’indice, en raison, par exemple, des modifications du découpage des secteurs ou des données manquantes. Mise à jour : février 2024 | T73: J3:O40 | U73: A31:K45 | V73: Répartition de la population (N, %) par niveau de défavorisation sociale 2021 de la région des Laurentides - secteur MRC/RLS des Laurentides | W73: Source : INSPQ et BIESP, 2023. Statistique Canada, Recensement 2021. | X73: A27 | Y73: 16.5 | Z73: Population des secteurs ayant les conditions sociales les plus défavorables - secteur MRC/RLS des Laurentides, 2021 | AA73: Panorama de la défavorisation dans les Laurentides 2021, produit par l’équipe Surveillance, recherche et évaluation, Direction de santé publique des Laurentides, Centre intégré de santé et de services sociaux des Laurentides, 2024 | AB73: A28 | AC73: La population sans indice réside dans des secteurs où l’information pour le calcul de l’indice est indisponible à cause des ménages collectifs (centres d’hébergement, pénitenciers) ou du taux de non-réponse trop élevé. | AD73: A29 | AE73: https://www.santelaurentides.gouv.qc.ca/sante-publique/donnees-sur-la-population/panorama-de-la-defavorisation/ | AF73: A1:O28 | AG73: A1:O27 | AH73: Répartition de la population (N, %) par niveau de défavorisation sociale 2021 de la région des Laurentides - secteur MRC/RLS des Laurentides | AI73: Plus d’un cinquième de la population de la MRC/RLS des Laurentides, les secteurs réside dans des secteurs ayant les conditions sociales parmi les plus défavorables (quintile 5). Ces secteurs sont localisés à Arundel, Mont-Blanc, Mont-Tremblant, Sainte-Agathe-des-Monts, Val-David et Val-Morin. En nombre de personnes, Sainte-Agathe-des-Monts, Val-David et Mont-Tremblant sont les municipalités où la population habitant ces secteurs est la plus. Mise à jour : janvier 2024
A74: 790-1511 | B74: 790-1511Matérielle et socialeRégional | C74: Régional | D74: Matérielle et sociale | E74: A535:O554 | F74: A1:N4 | G74: J535:K554 | H74: A12:B15 | I74: A535:A554 | J74: MRC/RLS AL | K74: RLS_AL_2016_Comb | L74: A6 | M74: B2 | N74: B6 | O74: B2 | P74: A6 | Q74: Dans la MRC/RLS d’Antoine-Labelle, les secteurs ayant les conditions parmi les plus défavorables de la région à la fois sur le plan matériel et social (profil 5 – en violet) sont localisés à Ferme-Neuve (très petit secteur sur la carte), Mont-Laurier, Lac-des-Écorces et à Rivière-Rouge. On retrouve un seul secteur de la MRC/RLS d’Antoine-Labelle qui présente les conditions parmi les plus défavorables de la région sur le plan social uniquement (profil 3 – en bleu), qui se situe à Mont-Laurier (petit secteur sur la carte). Celle-ci est de loin la municipalité où la taille de la population habitant ces secteurs est la plus importante. On retrouve des secteurs ayant les conditions parmi les plus défavorables de la région sur le plan matériel seulement (profil 4 – en orangé) dans toutes les municipalités de la MRC/RLS. Mise à jour : janvier 2024 | R74: Dans la MRC/RLS d’Antoine-Labelle, les secteurs ayant les conditions parmi les plus défavorables à la fois sur le plan matériel et social (profil 5) sont localisés à Rivière-Rouge, Nominingue, Lac-des-Écorces, Ferme-Neuve et à Mont-Laurier. Les secteurs ayant les conditions parmi les plus défavorables sur le plan social uniquement (profil 3) se retrouvent tous à Mont-Laurier. On retrouve des secteurs ayant les conditions parmi les plus défavorables sur le plan matériel seulement (profil 4) dans toutes les municipalités du territoire. Les municipalités où on retrouve le plus grand nombre de résidents dans ces secteurs sont Mont-Laurier, Rivière-Rouge, Ferme-Neuve et Lac-des-Écorces. Mise à jour : janvier 2024 | S74: La majeure partie des secteurs de la MRC/RLS Antoine-Labelle sont de profil 4 (défavorisation matérielle seulement - en orangé). Lorsqu’on se concentre sur l’évolution des secteurs du profil 5 (violet), soit ceux ayant les conditions matérielles et sociales parmi les plus défavorables, on remarque que certains secteurs sont passés d’un profil 4 en 2016 au profil 5 en 2021 dans Lac-des-Écorces. À l’inverse, des secteurs de profil 5 sont devenus de profil 4 à La Macaza. À savoir - Les variations entre 2016 et 2021 ont plusieurs causes possibles. Elles peuvent être dues à des changements 1) dans la population des secteurs auxquels on réfère, 2) dans la population de l’ensemble du territoire auquel les secteurs sont comparés, ou encore 3) dans la compilation de l’indice, en raison, par exemple, des modifications du découpage des secteurs ou des données manquantes. Mise à jour : février 2024 | T74: J3:O40 | U74: A30:K44 | V74: Répartition de la population selon les profils de défavorisation matérielle et sociale combinée 2021 de la région des Laurentides - secteur MRC/RLS d'Antoine-Labelle | W74: Source : INSPQ et BIESP, 2023. Statistique Canada, Recensement 2021. | X74: A26 | Y74: 49.5 | Z74: Population des secteurs ayant les conditions matérielles et sociales les plus défavorables - secteur MRC/RLS d'Antoine-Labelle, 2021 | AA74: Panorama de la défavorisation dans les Laurentides 2021, produit par l’équipe Surveillance, recherche et évaluation, Direction de santé publique des Laurentides, Centre intégré de santé et de services sociaux des Laurentides, 2024 | AB74: A27 | AC74: La population sans indice réside dans des secteurs où l’information pour le calcul de l’indice est indisponible à cause des ménages collectifs (centres d’hébergement, pénitenciers) ou du taux de non-réponse trop élevé. | AD74: A28 | AE74: https://www.santelaurentides.gouv.qc.ca/sante-publique/donnees-sur-la-population/panorama-de-la-defavorisation/ | AF74: A1:O27 | AG74: A1:O26 | AH74: Répartition de la population selon les profils de défavorisation matérielle et sociale combinée 2021 de la région des Laurentides - secteur MRC/RLS d'Antoine-Labelle | AI74: Dans la MRC/RLS d’Antoine-Labelle, les secteurs ayant les conditions parmi les plus défavorables à la fois sur le plan matériel et social (profil 5) sont localisés à Rivière-Rouge, à Nominingue, à Lac-des-Écorces, à Ferme-Neuve et à Mont-Laurier. Mise à jour : janvier 2024
A75: 790-1511 | B75: 790-1511MatérielleRégional | C75: Régional | D75: Matérielle | E75: A634:O653 | F75: A7:N9 | G75: J634:K653 | H75: A18:B20 | I75: A634:A653 | J75: MRC/RLS AL | K75: RLS_AL_2016_Mat | L75: A5 | M75: B2 | N75: B5 | O75: B2 | P75: A5 | Q75: Dans la MRC/RLS d’Antoine-Labelle, on retrouve les secteurs ayant les conditions matérielles les plus défavorables (quintile 5 – en orangé) dans toutes les municipalités. Pour la majorité d’entre elles (10 sur 17 municipalité), la totalité de leur territoire est composé de secteurs aux conditions plus défavorables. Mont-Laurier présente une répartition sensiblement plus diversifiée. Mise à jour : janvier 2024 | R75: Plus des deux-tiers de la population de la MRC/RLS d’Antoine-Labelle habitent les secteurs ayant les conditions matérielles parmi les plus défavorables (quintile 5). On retrouve ces secteurs dans toutes les municipalités du territoire. En nombre de personnes, Mont-Laurier, Rivière-Rouge, Ferme-Neuve et Lac-des-Écorces sont les municipalités où les populations habitant ces secteurs sont les plus importantes. Mise à jour : janvier 2024 | S75: Lorsqu’on se concentre sur l’évolution des secteurs se retrouvant dans des conditions parmi les plus défavorables matériellement (quintile 5 – en orangé) de la région des Laurentides, on constate que certains secteurs sont passés d’un quintile 3 ou 4 en 2016 au quintile 5 en 2021, dans Lac-des-Écorces, Nominingue, Rivière-Rouge et La Macaza. À l’inverse, d’autres secteurs qui étaient de quintile 5 en 2016 sont passés à un quintile plus favorables en 2021. Ces secteurs se situent à Ferme-Neuve, Mont-Laurier, Lac-des-Écorces, Rivière-Rouge et Notre-Dame-du-Laus. À savoir - Les variations entre 2016 et 2021 ont plusieurs causes possibles. Elles peuvent être dues à des changements 1) dans la population des secteurs auxquels on réfère, 2) dans la population de l’ensemble du territoire auquel les secteurs sont comparés, ou encore 3) dans la compilation de l’indice, en raison, par exemple, des modifications du découpage des secteurs ou des données manquantes. Mise à jour : février 2024 | T75: J3:O40 | U75: A29:K43 | V75: Répartition de la population (N, %) par niveaul de défavorisation matérielle 2021 de la région des Laurentides - secteur MRC/RLS d'Antoine-Labelle | W75: Source : INSPQ et BIESP, 2023. Statistique Canada, Recensement 2021. | X75: A25 | Y75: 16.5 | Z75: Population des secteurs ayant les conditions matérielles les plus défavorables - secteur MRC/RLS d'Antoine-Labelle, 2021 | AA75: Panorama de la défavorisation dans les Laurentides 2021, produit par l’équipe Surveillance, recherche et évaluation, Direction de santé publique des Laurentides, Centre intégré de santé et de services sociaux des Laurentides, 2024 | AB75: A26 | AC75: La population sans indice réside dans des secteurs où l’information pour le calcul de l’indice est indisponible à cause des ménages collectifs (centres d’hébergement, pénitenciers) ou du taux de non-réponse trop élevé. | AD75: A27 | AE75: https://www.santelaurentides.gouv.qc.ca/sante-publique/donnees-sur-la-population/panorama-de-la-defavorisation/ | AF75: A1:O26 | AG75: A1:O25 | AH75: Répartition de la population (N, %) par niveau de défavorisation matérielle 2021 de la région des Laurentides - secteur MRC/RLS d'Antoine-Labelle | AI75: Plus des deux-tiers de la population de la MRC/RLS d’Antoine-Labelle habitent les secteurs ayant les conditions matérielles parmi les plus défavorables (quintile 5). On retrouve ces secteurs dans toutes les municipalités du territoire. En nombre de personnes, Mont-Laurier, Rivière-Rouge, Ferme-Neuve et Lac-des-Écorces sont les municipalités où les populations habitant ces secteurs sont les plus importantes. Mise à jour : janvier 2024
A76: 790-1511 | B76: 790-1511SocialeRégional | C76: Régional | D76: Sociale | E76: A733:O752 | F76: A7:N9 | G76: J733:K752 | H76: A18:B20 | I76: A733:A752 | J76: MRC/RLS AL | K76: RLS_AL_2016_Soc | L76: A5 | M76: B2 | N76: B5 | O76: B2 | P76: A5 | Q76: Dans la MRC/RLS d’Antoine-Labelle, on retrouve les secteurs ayant les conditions sociales parmi les plus défavorables (quintile 5 – en orangé) uniquement à Mont-Laurier et à Rivière-Rouge. En nombre de personnes, Mont-Laurier est de loin la municipalité où la population habitant ces secteurs est la plus importante (1 600 personnes). Toutes les municipalités du territoire, SAUF La MAcaza, Lac Saguay et Sainte-Anne-du-Lac, ont des secteurs où les conditions sont les plus favorables (quintile 1 – en vert foncé et quintile 2 – en vert pâle). Mise à jour : janvier 2024 | R76: Dans la MRC/RLS d’Antoine-Labelle, à peine plus d’une personne sur 20 habite des secteurs ayant les conditions sociales parmi les plus défavorables (quintile 5). On retrouve ces secteurs à Mont-Laurier et à Rivière-Rouge. Mise à jour : janvier 2024 | S76: La MRC/RLS Antoine-Labelle présente un profil particulièrement favorable comparé à l’ensemble de la région des Laurentides en matière de défavorisation sociale. Lorsqu’on se concentre sur l’évolution des secteurs se retrouvant dans des conditions parmi les plus défavorables socialement (quintile 5 – en orangé), on constate que certains secteurs sont passés d’un quintile 3 ou 4 en 2016 au quintile 5 en 2021, Mont-Laurier et à Rivière-Rouge. À savoir - Les variations entre 2016 et 2021 ont plusieurs causes possibles. Elles peuvent être dues à des changements 1) dans la population des secteurs auxquels on réfère, 2) dans la population de l’ensemble du territoire auquel les secteurs sont comparés, ou encore 3) dans la compilation de l’indice, en raison, par exemple, des modifications du découpage des secteurs ou des données manquantes. Mise à jour : février 2024 | T76: J3:O40 | U76: A29:K43 | V76: Répartition de la population (N, %) par niveau de défavorisation sociale 2021 de la région des Laurentides - secteur MRC/RLS d'Antoine-Labelle | W76: Source : INSPQ et BIESP, 2023. Statistique Canada, Recensement 2021. | X76: A25 | Y76: 16.5 | Z76: Population des secteurs ayant les conditions sociales les plus défavorables - secteur MRC/RLS d'Antoine-Labelle, 2021 | AA76: Panorama de la défavorisation dans les Laurentides 2021, produit par l’équipe Surveillance, recherche et évaluation, Direction de santé publique des Laurentides, Centre intégré de santé et de services sociaux des Laurentides, 2024 | AB76: A26 | AC76: La population sans indice réside dans des secteurs où l’information pour le calcul de l’indice est indisponible à cause des ménages collectifs (centres d’hébergement, pénitenciers) ou du taux de non-réponse trop élevé. | AD76: A27 | AE76: https://www.santelaurentides.gouv.qc.ca/sante-publique/donnees-sur-la-population/panorama-de-la-defavorisation/ | AF76: A1:O26 | AG76: A1:O25 | AH76: Répartition de la population (N, %) par niveau de défavorisation sociale 2021 de la région des Laurentides - secteur MRC/RLS d'Antoine-Labelle | AI76: Dans la MRC/RLS d’Antoine-Labelle, à peine plus d’une personne sur 20 habite des secteurs ayant les conditions sociales parmi les plus défavorables (quintile 5). On retrouve ces secteurs à Mont-Laurier et à Rivière-Rouge. Mise à jour : janvier 2024
A77: 1515 | B77: 1515Matérielle et socialeRégional | C77: Régional | D77: Matérielle et sociale | E77: A767:O776 | F77: A1:N4 | G77: J767:K776 | H77: A12:B15 | I77: A767:A776 | J77: RLS DM | K77: RLS_DM_2016_Comb | L77: A6 | M77: B2 | N77: B6 | O77: B2 | P77: A6 | Q77: Dans le RLS de Deux-Montagnes-Mirabel-Sud, les secteurs ayant des conditions parmi les plus défavorables de la MRC à la fois sur le plan matériel et social (profil 5 – en violet) sont localisés à Mirabel, Pointe-Calumet, Sainte-Marthe-sur-le-Lac, Deux-Montagnes et à Saint-Eustache. Les secteurs où les conditions sont les plus défavorables du RLS seulement sur le plan social (profil 3 – en bleu) se retrouvent dans toutes les municipalités de la MRC, SAUF à Saint-Placide (à noter qu’il s’agit de très petits secteurs dans Oka et Pointe-Calumet). On retrouve des secteurs qui présentent les conditions les plus défavorables du RLS seulement sur le plan matériel (profil 4 – en orangé) dans toutes les municipalités du territoire. Plus de la moitié de la population de Pointe-Calumet et près de la moitié de celle de Saint-Joseph-du-Lac résident dans ces secteurs. Mise à jour : janvier 2024 | R77: Plus d’un résident sur dix du RLS Deux-Montagnes-Mirabel-Sud habitent un secteur ayant des conditions parmi les plus défavorables à la fois sur le plan matériel et social (profil 5). Ces secteurs sont localisés à Deux-Montagnes, Mirabel, Pointe-Calumet, Sainte-Marthe-sur-le-Lac et à Saint-Eustache. À Pointe-Calumet, plus du tiers de la population habite dans ces secteurs. Environ un cinquième de la population du RLS habitent des secteurs où les conditions sont parmi les plus défavorables seulement sur le plan social (profil 3). On retrouve de ces secteurs dans toutes les municipalités SAUF Saint-Placide. Pointe-Calumet compte moins d’un résident sur dix qui habite un secteur de profil 3. Plus du tiers de la population de la municipalité de Deux-Montagnes et de Mirabel habite dans ces secteurs. Environ un cinquième de la population du RLS résident des secteurs où les conditions sont parmi les plus défavorables seulement sur le plan matériel (profil 4). Ces derniers se retrouvent dans toutes les municipalités du territoire. Environ la moitié de la population de de Pointe-Calumet, de Saint-Placide et de Saint-Joseph-du-Lac réside dans ces secteurs. Mise à jour : janvier 2024 | S77: Lorsqu’on se concentre sur l’évolution des secteurs du profil 5 (violet), soit ceux ayant les conditions matérielles et sociales parmi les plus défavorables, on remarque peu de changement en 2021 par rapport à 2016. Certains secteurs de profil 5 se sont ajoutés à Sainte-Marthe-sur-le-Lac, Deux-Montagnes et Saint-Eustache. D’autres sont passés à un profil plus favorable dans ces trois mêmes municipalités, ainsi qu’à Saint-Placide et Mirabel. À savoir - Les variations entre 2016 et 2021 ont plusieurs causes possibles. Elles peuvent être dues à des changements 1) dans la population des secteurs auxquels on réfère, 2) dans la population de l’ensemble du territoire auquel les secteurs sont comparés, ou encore 3) dans la compilation de l’indice, en raison, par exemple, des modifications du découpage des secteurs ou des données manquantes. Mise à jour : février 2024 | T77: J3:O40 | U77: A20:K35 | V77: Répartition de la population selon les profils de défavorisation matérielle et sociale combinée 2021 de la région des Laurentides - secteur RLS de Deux-Montagnes - Mirabel-Sud | W77: Source : INSPQ et BIESP, 2023. Statistique Canada, Recensement 2021. | X77: A16 | Y77: 49.5 | Z77: Population des secteurs ayant les conditions matérielles et sociales les plus défavorables - secteur RLS de Deux-Montagnes - Mirabel-Sud, 2021 | AA77: Panorama de la défavorisation dans les Laurentides 2021, produit par l’équipe Surveillance, recherche et évaluation, Direction de santé publique des Laurentides, Centre intégré de santé et de services sociaux des Laurentides, 2024 | AB77: A17 | AC77: La population sans indice réside dans des secteurs où l’information pour le calcul de l’indice est indisponible à cause des ménages collectifs (centres d’hébergement, pénitenciers) ou du taux de non-réponse trop élevé. | AD77: A18 | AE77: https://www.santelaurentides.gouv.qc.ca/sante-publique/donnees-sur-la-population/panorama-de-la-defavorisation/ | AF77: A1:O16 | AG77: A1:O14 | AH77: Répartition de la population selon les profils de défavorisation matérielle et sociale combinée 2021 de la région des Laurentides - secteur RLS de Deux-Montagnes - Mirabel-Sud | AI77: Plus d’un résident sur dix du RLS Deux-Montagnes-Mirabel-Sud habitent un secteur ayant des conditions parmi les plus défavorables à la fois sur le plan matériel et social (profil 5). Ces secteurs sont localisés à Deux-Montagnes, Mirabel, Pointe-Calumet, Sainte-Marthe-sur-le-Lac et à Saint-Eustache. À Pointe-Calumet, plus du tiers de la population habite dans ces secteurs. Mise à jour : janvier 2024
A78: 1515 | B78: 1515MatérielleRégional | C78: Régional | D78: Matérielle | E78: A791:O800 | F78: A7:N9 | G78: J791:K800 | H78: A18:B20 | I78: A791:A800 | J78: RLS DM | K78: RLS_DM_2016_Mat | L78: A5 | M78: B2 | N78: B5 | O78: B2 | P78: A5 | Q78: Dans le RLS de Deux-Montagnes-Mirabel-Sud, on retrouve des secteurs ayant les conditions matérielles les plus défavorables (quintile 5 – en orangé) dans toutes les municipalités. Près du tiers de la population de Pointe-Calumet et plus du quart de celle de Saint-Placide habitent ces secteurs. Si on regroupe les deux quintiles les plus défavorables (quintile 4 – en orangé pâle et quintile 5 – en orangé), on retrouvera plus de 9 résidents sur 10 de Pointe-Calumet et plus de la moitié de ceux de Saint-Placide et Saint-Eustache habitant ces secteurs. Mise à jour : janvier 2024 | R78: Dans le RLS Deux-Montagnes-Mirabel-Sud, on retrouve des secteurs ayant les conditions matérielles parmi les plus défavorables (quintile 5) dans toutes les municipalités. Près du tiers de la population de Pointe-Calumet et plus du quart de celle de Saint-Placide habitent ces secteurs. Mise à jour : janvier 2024 | S78: Lorsqu’on se concentre sur l’évolution des secteurs se retrouvant dans des conditions parmi les plus défavorables matériellement (quintile 5 – en orangé), on constate que certains secteurs sont passés d’un quintile 3 ou 4 en 2016 au quintile 5 en 2021. Ces secteurs se trouvent dans Mirabel, Saint-Placide, Saint-Joseph-du-Lac et Saint-Eustache. À l’inverse, d’autres secteurs de Saint-Placide et de Saint-Eustache et des secteurs de Sainte-Marthe-sur-le-Lac sont passés d’un quintile 5 en 2016 à des quintiles plus favorisés en 2021. À savoir - Les variations entre 2016 et 2021 ont plusieurs causes possibles. Elles peuvent être dues à des changements 1) dans la population des secteurs auxquels on réfère, 2) dans la population de l’ensemble du territoire auquel les secteurs sont comparés, ou encore 3) dans la compilation de l’indice, en raison, par exemple, des modifications du découpage des secteurs ou des données manquantes. Mise à jour : février 2024 | T78: J3:O40 | U78: A19:K34 | V78: Répartition de la population (N, %) par niveau de défavorisation matérielle 2021 de la région des Laurentides - secteur RLS de Deux-Montagnes - Mirabel-Sud | W78: Source : INSPQ et BIESP, 2023. Statistique Canada, Recensement 2021. | X78: A15 | Y78: 16.5 | Z78: Population des secteurs ayant les conditions matérielles les plus défavorables - secteur RLS de Deux-Montagnes - Mirabel-Sud, 2021 | AA78: Panorama de la défavorisation dans les Laurentides 2021, produit par l’équipe Surveillance, recherche et évaluation, Direction de santé publique des Laurentides, Centre intégré de santé et de services sociaux des Laurentides, 2024 | AB78: A16 | AC78: La population sans indice réside dans des secteurs où l’information pour le calcul de l’indice est indisponible à cause des ménages collectifs (centres d’hébergement, pénitenciers) ou du taux de non-réponse trop élevé. | AD78: A17 | AE78: https://www.santelaurentides.gouv.qc.ca/sante-publique/donnees-sur-la-population/panorama-de-la-defavorisation/ | AF78: A1:O15 | AG78: A1:O13 | AH78: Répartition de la population (N, %) par niveau de défavorisation matérielle 2021 de la région des Laurentides - secteur RLS de Deux-Montagnes - Mirabel-Sud | AI78: Dans le RLS Deux-Montagnes-Mirabel-Sud, on retrouve des secteurs ayant les conditions matérielles parmi les plus défavorables (quintile 5) dans toutes les municipalités. Près du tiers de la population de Pointe-Calumet et plus du quart de celle de Saint-Placide habitent ces secteurs. Mise à jour : janvier 2024
A79: 1515 | B79: =A79&D79&C79 -> 1515SocialeRégional | C79: Régional | D79: Sociale | E79: A815:O824 | F79: A7:N9 | G79: J815:K824 | H79: A18:B20 | I79: A815:A824 | J79: RLS DM | K79: RLS_DM_2016_Soc | L79: A5 | M79: B2 | N79: B5 | O79: B2 | P79: A5 | Q79: Dans le RLS de Deux-Montagnes-Mirabel-Sud, les secteurs ayant les conditions sociales les plus défavorables (quintile 5 – en orangé) se répartissent dans Mirabel, Pointe-Calumet, la municipalité de Deux-Montagnes et Saint-Eustache. En nombre, Saint-Eustache se démarque avec 10 600 personnes qui résident dans ces secteurs. Mise à jour : janvier 2024 | R79: Dans le RLS Deux-Montagnes-Mirabel-Sud, les secteurs ayant les conditions sociales parmi les plus défavorables (quintile 5) se répartissent dans les municipalités de Deux-Montagnes, Mirabel, Pointe-Calumet et Saint-Eustache. Environ le tiers de la population de la municipalité de Deux-Montagnes et le quart de celle de Saint-Eustache habitent dans ces secteurs. Mise à jour : janvier 2024 | S79: On observe peu de changements significatifs dans la répartition des secteurs où les conditions sont les plus défavorables sociale (quintile 5 – en orangé) de 2021 par rapport à celles de 2016. Un secteur de Mirabel est passé du quintile 4 au quintile 5. Quelques secteurs sont passés du quintile 5 à un quintile plus favorable à Sainte-Marthe-sur-le-Lac et Deux-Montagnes. À savoir - Les variations entre 2016 et 2021 ont plusieurs causes possibles. Elles peuvent être dues à des changements 1) dans la population des secteurs auxquels on réfère, 2) dans la population de l’ensemble du territoire auquel les secteurs sont comparés, ou encore 3) dans la compilation de l’indice, en raison, par exemple, des modifications du découpage des secteurs ou des données manquantes. Mise à jour : février 2024 | T79: J3:O40 | U79: A19:K34 | V79: Répartition de la population (N, %) par niveau de défavorisation sociale 2021 de la région des Laurentides - secteur RLS de Deux-Montagnes - Mirabel-Sud | W79: Source : INSPQ et BIESP, 2023. Statistique Canada, Recensement 2021. | X79: A15 | Y79: 16.5 | Z79: Population des secteurs ayant les conditions sociales les plus défavorables - secteur RLS de Deux-Montagnes - Mirabel-Sud, 2021 | AA79: Panorama de la défavorisation dans les Laurentides 2021, produit par l’équipe Surveillance, recherche et évaluation, Direction de santé publique des Laurentides, Centre intégré de santé et de services sociaux des Laurentides, 2024 | AB79: A16 | AC79: La population sans indice réside dans des secteurs où l’information pour le calcul de l’indice est indisponible à cause des ménages collectifs (centres d’hébergement, pénitenciers) ou du taux de non-réponse trop élevé. | AD79: A17 | AE79: https://www.santelaurentides.gouv.qc.ca/sante-publique/donnees-sur-la-population/panorama-de-la-defavorisation/ | AF79: A1:O15 | AG79: A1:O13 | AH79: Répartition de la population (N, %) par niveau de défavorisation sociale 2021 de la région des Laurentides - secteur RLS de Deux-Montagnes - Mirabel-Sud | AI79: Dans le RLS Deux-Montagnes-Mirabel-Sud, les secteurs ayant les conditions sociales parmi les plus défavorables (quintile 5) se répartissent dans les municipalités de Deux-Montagnes, Mirabel, Pointe-Calumet et Saint-Eustache. Environ le tiers de la population de la municipalité de Deux-Montagnes et le quart de celle de Saint-Eustache habitent dans ces secteurs. Mise à jour : janvier 2024
A80: 1516 | B80: 1516Matérielle et socialeRégional | C80: Régional | D80: Matérielle et sociale | E80: A777:O784 | F80: A1:N4 | G80: J777:K784 | H80: A12:B15 | I80: A777:A784 | J80: RLS RDN | K80: RLS_RDN_2016_Comb | L80: A6 | M80: B2 | N80: B6 | O80: B2 | P80: A6 | Q80: Dans le RLS de la Rivière-du-Nord-Mirabel-Nord, les secteurs ayant les conditions les plus défavorables à la fois au plan matériel et social (profil 5 – en violet) dans toutes les municipalités du territoire SAUF à Saint-Colomban. Plus du tiers de la population de Saint-Jérôme habite ces secteurs. Les secteurs où les conditions sont parmi les plus défavorables seulement au plan social (profil 3 – en bleu) se retrouvent à Mirabel, Saint-Jérôme, Prévost et Saint-Hippolyte. On retrouve des secteurs qui présentent les conditions parmi les plus défavorables uniquement au plan matériel (profil 4 – en orangé) dans toutes les municipalités du territoire. Les trois-quarts de la population de Sainte-Sophie résident dans ces secteurs. Mise à jour : janvier 2024 | R80: Près d’un cinquième de la population du RLS de La Rivière-du-Nord-Mirabel-Nord habitent des secteurs ayant les conditions les plus défavorables à la fois au plan matériel et social (profil 5). Ces secteurs sont localisés dans toutes les municipalités du RLS SAUF Saint-Colomban. Plus du tiers de la population de Saint-Jérôme habite ces secteurs. Le quart de la population du RLS de La Rivière-du-Nord-Mirabel-Nord habitent des secteurs où les conditions sont les plus défavorables seulement au plan social (profil 3). Ces derniers se retrouvent à Mirabel, Prévost, Saint-Hippolyte et à Saint-Jérôme. Le tiers de la population de Prévost et près du quart de celle de la partie nord de Mirabel résident dans ces secteurs. Plus d’un cinquième de la population du RLS de La Rivière-du-Nord-Mirabel-Nord habitent des secteurs où les conditions sont les plus défavorables uniquement au plan matériel (profil 4). On retrouve ces secteurs dans toutes les municipalités du territoire. Les trois-quarts de la population de Sainte-Sophie, ainsi que plus du tiers de celle de Saint-Colomban et de Saint-Hippolyte résident dans ces secteurs. Mise à jour : janvier 2024 | S80: Lorsqu’on se concentre sur l’évolution des secteurs du profil 5 (violet), soit ceux ayant les conditions matérielles et sociales parmi les plus défavorables, on remarque que plusieurs se sont ajoutés en 2021 par rapport à 2016 au profil 5 en 2021. Ils se trouvent dans Saint-Colomban, Sainte-Sophie et Mirabel. À l’inverse, d’autres secteurs de Mirabel et des secteurs de Saint-Jérôme, sont passés d’un quintile 5 en 2016 à des quintiles plus favorisés en 2021. On observe d’autres variations mineures dans Mirabel. À savoir - Les variations entre 2016 et 2021 ont plusieurs causes possibles. Elles peuvent être dues à des changements 1) dans la population des secteurs auxquels on réfère, 2) dans la population de l’ensemble du territoire auquel les secteurs sont comparés, ou encore 3) dans la compilation de l’indice, en raison, par exemple, des modifications du découpage des secteurs ou des données manquantes. Mise à jour : février 2024 | T80: J3:O40 | U80: A17:K32 | V80: Répartition de la population selon les profils de défavorisation matérielle et sociale combinée 2021 de la région des Laurentides - secteur RLS de la Rivière-du-Nord - Mirabel-Nord | W80: Source : INSPQ et BIESP, 2023. Statistique Canada, Recensement 2021. | X80: A14 | Y80: 49.5 | Z80: Population des secteurs ayant les conditions matérielles et sociales les plus défavorables - secteur de la RLS Rivière-du-Nord - Mirabel-Nord, 2021 | AA80: Panorama de la défavorisation dans les Laurentides 2021, produit par l’équipe Surveillance, recherche et évaluation, Direction de santé publique des Laurentides, Centre intégré de santé et de services sociaux des Laurentides, 2024 | AB80: A15 | AC80: La population sans indice réside dans des secteurs où l’information pour le calcul de l’indice est indisponible à cause des ménages collectifs (centres d’hébergement, pénitenciers) ou du taux de non-réponse trop élevé. | AD80: A16 | AE80: https://www.santelaurentides.gouv.qc.ca/sante-publique/donnees-sur-la-population/panorama-de-la-defavorisation/ | AF80: A1:O14 | AG80: A1:O13 | AH80: Répartition de la population selon les profils de défavorisation matérielle et sociale combinée 2021 de la région des Laurentides - secteur RLS de la Rivière-du-Nord - Mirabel-Nord | AI80: Près d’un cinquième de la population du RLS de La Rivière-du-Nord-Mirabel-Nord habitent des secteurs ayant les conditions les plus défavorables à la fois au plan matériel et social (profil 5). Ces secteurs sont localisés dans toutes les municipalités du RLS SAUF Saint-Colomban. Plus du tiers de la population de Saint-Jérôme habite ces secteurs. Mise à jour : janvier 2024
A81: 1516 | B81: 1516MatérielleRégional | C81: Régional | D81: Matérielle | E81: A801:O808 | F81: A7:N9 | G81: J801:K808 | H81: A18:B20 | I81: A801:A808 | J81: RLS RDN | K81: RLS_RDN_2016_Mat | L81: A5 | M81: B2 | N81: B5 | O81: B2 | P81: A5 | Q81: Dans le RLS de la Rivière-du-Nord-Mirabel-Nord, les secteurs ayant les conditions matérielles parmi les plus défavorables (quintile 5 – en orangé) se situent à Mirabel, Saint-Colomban, Saint-Jérôme et Sainte-Sophie. Le tiers de la population de Sainte-Sophie et plus du quart de celle de Saint-Jérôme habitent ces secteurs. Mise à jour : janvier 2024 | R81: Près d’un cinquième de la population du RLS de La Rivière-du-Nord-Mirabel-Nord habitent des secteurs ayant les conditions matérielles les plus défavorables (quintile 5). Ces secteurs se trouvent à Mirabel, Saint-Colomban, Sainte-Sophie et Saint-Jérôme. Le tiers de la population de Sainte-Sophie et plus du quart de celle de Saint-Jérôme habitent ces secteurs. Mise à jour : janvier 2024 | S81: Lorsqu’on se concentre sur l’évolution des secteurs se retrouvant dans des conditions parmi les plus défavorables matériellement (quintile 5 – en orangé), on constate que certains secteurs sont passés d’un quintile 3 ou 4 en 2016 au quintile 5 en 2021. Ils se trouvent dans Saint-Colomban, Saint-Jérôme, Sainte-Sophie et Mirabel. À l’inverse, d’autres secteurs de Saint-Jérôme sont passés d’un quintile 5 en 2016 à des quintiles plus favorisés en 2021. À savoir - Les variations entre 2016 et 2021 ont plusieurs causes possibles. Elles peuvent être dues à des changements 1) dans la population des secteurs auxquels on réfère, 2) dans la population de l’ensemble du territoire auquel les secteurs sont comparés, ou encore 3) dans la compilation de l’indice, en raison, par exemple, des modifications du découpage des secteurs ou des données manquantes. Mise à jour : février 2024 | T81: J3:O40 | U81: A16:K31 | V81: Répartition de la population (N, %) par niveau de défavorisation matérielle 2021 de la région des Laurentides - secteur RLS de la Rivière-du-Nord - Mirabel-Nord | W81: Source : INSPQ et BIESP, 2023. Statistique Canada, Recensement 2021. | X81: A13 | Y81: 16.5 | Z81: Population des secteurs ayant les conditions matérielles les plus défavorables - secteur de la RLS Rivière-du-Nord - Mirabel-Nord, 2021 | AA81: Panorama de la défavorisation dans les Laurentides 2021, produit par l’équipe Surveillance, recherche et évaluation, Direction de santé publique des Laurentides, Centre intégré de santé et de services sociaux des Laurentides, 2024 | AB81: A14 | AC81: La population sans indice réside dans des secteurs où l’information pour le calcul de l’indice est indisponible à cause des ménages collectifs (centres d’hébergement, pénitenciers) ou du taux de non-réponse trop élevé. | AD81: A15 | AE81: https://www.santelaurentides.gouv.qc.ca/sante-publique/donnees-sur-la-population/panorama-de-la-defavorisation/ | AF81: A1:O13 | AG81: A1:O12 | AH81: Répartition de la population (N, %) par niveau de défavorisation matérielle 2021 de la région des Laurentides - secteur RLS de la Rivière-du-Nord - Mirabel-Nord | AI81: Près d’un cinquième de la population du RLS de La Rivière-du-Nord-Mirabel-Nord habitent des secteurs ayant les conditions matérielles les plus défavorables (quintile 5). Ces secteurs se trouvent à Mirabel, Saint-Colomban, Sainte-Sophie et Saint-Jérôme. Le tiers de la population de Sainte-Sophie et plus du quart de celle de Saint-Jérôme habitent ces secteurs. Mise à jour : janvier 2024
A82: 1516 | B82: 1516SocialeRégional | C82: Régional | D82: Sociale | E82: A825:O832 | F82: A7:N9 | G82: J825:K832 | H82: A18:B20 | I82: A825:A832 | J82: RLS RDN | K82: RLS_RDN_2016_Soc | L82: A5 | M82: B2 | N82: B5 | O82: B2 | P82: A5 | Q82: Dans le RLS de la Rivière-du-Nord-Mirabel-Nord, les secteurs ayant les conditions sociales parmi les plus défavorables (quintile 5 – en orangé) sont localisés à Mirabel, Prévost et principalement à Saint-Jérôme. Plus de 40 % des Jérômiens habitent ces secteurs. Mise à jour : janvier 2024 | R82: Près du quart de la population du RLS de La Rivière-du-Nord-Mirabel-Nord habitent des secteurs ayant les conditions sociales les plus défavorables (quintile 5). Ces secteurs se trouvent à Mirabel, Prévost et à Saint-Jérôme. Plus de 40 % des Jérômiens habitent ces secteurs. Mise à jour : janvier 2024 | S82: On n’observe pas de changements significatifs dans la répartition des secteurs où les conditions sont les plus défavorables sociale (quintile 5 – en orangé) de 2021 par rapport à celles de 2016. À savoir - Les variations entre 2016 et 2021 ont plusieurs causes possibles. Elles peuvent être dues à des changements 1) dans la population des secteurs auxquels on réfère, 2) dans la population de l’ensemble du territoire auquel les secteurs sont comparés, ou encore 3) dans la compilation de l’indice, en raison, par exemple, des modifications du découpage des secteurs ou des données manquantes. Mise à jour : février 2024 | T82: J3:O40 | U82: A16:K31 | V82: Répartition de la population (N, %) par niveau de défavorisation sociale 2021 de la région des Laurentides - secteur RLS de la Rivière-du-Nord - Mirabel-Nord | W82: Source : INSPQ et BIESP, 2023. Statistique Canada, Recensement 2021. | X82: A13 | Y82: 16.5 | Z82: Population des secteurs ayant les conditions sociales les plus défavorables - secteur de la RLS Rivière-du-Nord - Mirabel-Nord, 2021 | AA82: Panorama de la défavorisation dans les Laurentides 2021, produit par l’équipe Surveillance, recherche et évaluation, Direction de santé publique des Laurentides, Centre intégré de santé et de services sociaux des Laurentides, 2024 | AB82: A14 | AC82: La population sans indice réside dans des secteurs où l’information pour le calcul de l’indice est indisponible à cause des ménages collectifs (centres d’hébergement, pénitenciers) ou du taux de non-réponse trop élevé. | AD82: A15 | AE82: https://www.santelaurentides.gouv.qc.ca/sante-publique/donnees-sur-la-population/panorama-de-la-defavorisation/ | AF82: A1:O13 | AG82: A1:O12 | AH82: Répartition de la population (N, %) par niveau de défavorisation sociale 2021 de la région des Laurentides - secteur RLS de la Rivière-du-Nord - Mirabel-Nord | AI82: Près du quart de la population du RLS de La Rivière-du-Nord-Mirabel-Nord habitent des secteurs ayant les conditions sociales les plus défavorables (quintile 5). Ces secteurs se trouvent à Mirabel, Prévost et à Saint-Jérôme. Plus de 40 % des Jérômiens habitent ces secteurs. Mise à jour : janvier 2024
A83: 15991 | B83: =A83&D83&C83 -> 15991Matérielle et socialeRégional | C83: Régional | D83: Matérielle et sociale | E83: A847:O854 | F83: A1:N4 | G83: J847:K854 | H83: A12:B15 | I83: A847:A854 | J83: Région RLS | K83: RLS Comb Régional Q5 | L83: A6 | M83: B2 | N83: B6 | O83: B2 | P83: A6 | Q83: Analyse non disponible | R83: Une diversité de situations Parmi les principales différences observées dans la répartition de la population des RLS par profil de défavorisation, on remarque que les RLS Argenteuil, Les Laurentides et Rivière-du-Nord-Mirabel-Nord ont une part plus élevée que la moyenne régionale de leurs populations qui résident dans des secteurs plus défavorisés à la fois matériellement et socialement (profil 5). Les RLS Antoine-Labelle et Argenteuil se démarquent à deux égards : • par une grande part de leurs populations qui habitent des secteurs parmi les plus défavorisés matériellement seulement (profil 4); • à l’inverse, par une très petite proportion de personnes qui résident dans des secteurs défavorisés socialement seulement (profil 3). Comparé à la région, le RLS Les Laurentides a une proportion plus élevée de sa populations habitant des secteurs de profils 4 (secteurs plus défavorisés matériellement seulement). Près de la moitié de la population du RLS Pays-d’en-Haut se trouve dans les secteurs ayant des conditions sociales uniquement parmi les plus défavorables de la région (profil 3). Le RLS Thérèse-De Blainville et Rivière-du-Nord-Mirabel-Nord ont aussi des proportions de leurs populations supérieures à la région vivant dans des secteurs de profil 3. Parmi tous les territoires, Les Pays-d’en-Haut et Deux-Montagnes-Mirabel-Sud comportent les plus grandes proportions de leurs populations vivant dans des secteurs ayant des conditions moyennes matériellement et socialement (profil 2). Les RLS Thérèse-De Blainville et Deux-Montagnes-Mirabel-Sud sont ceux ayant la plus grande part de résidents de secteurs ayant des conditions matériellement et socialement plus favorables (profil 1). Le nombre de personnes habitant les secteurs les plus défavorisés dépend du niveau de défavorisation et de la taille de la population du RLS On dénombre environ 105 100 personnes qui résident dans les secteurs aux conditions les plus défavorables matériellement et socialement (profil 5) de la région des Laurentides. Dans le RLS de la Rivière-du-Nord-Mirabel-Nord, on estime que 35 800 personnes habitent des secteurs du profil 5. Même si le RLS Thérèse-De Blainville est considéré comme un territoire plus favorisé, on y compte 17 500 personnes qui résident dans des secteurs parmi les plus défavorisés matériellement et socialement (profil 5). Mise à jour : février 2024 | S83: Analyse 2016-2021 non disponible | T83: J3:O40 | U83: A18:K53 | V83: Répartition de la population selon les profils de défavorisation matérielle et sociale combinée 2021 de la région des Laurentides selon ses RLS | W83: Source : INSPQ et BIESP, 2023. Statistique Canada, Recensement 2021. | X83: A14 | Y83: 49.5 | Z83: Proportion de la population ayant les conditions matérielles et sociales les plus défavorables de la région des Laurentides selon ses RLS, 2021 | AA83: Panorama de la défavorisation dans les Laurentides 2021, produit par l’équipe Surveillance, recherche et évaluation, Direction de santé publique des Laurentides, Centre intégré de santé et de services sociaux des Laurentides, 2024 | AB83: A15 | AC83: La population sans indice réside dans des secteurs où l’information pour le calcul de l’indice est indisponible à cause des ménages collectifs (centres d’hébergement, pénitenciers) ou du taux de non-réponse trop élevé. | AD83: A16 | AE83: https://www.santelaurentides.gouv.qc.ca/sante-publique/donnees-sur-la-population/panorama-de-la-defavorisation/ | AF83: A1:O16 | AG83: A1:O15 | AH83: Proportion de la population ayant les conditions matérielles et sociales les plus défavorables de la région des Laurentides selon ses RLS, 2021 | AI83: Analyse non disponible
A84: 15991 | B84: 15991MatérielleRégional | C84: Régional | D84: Matérielle | E84: A861:O868 | F84: A7:N9 | G84: J861:K868 | H84: A18:B20 | I84: A861:A868 | J84: Région RLS | K84: RLS Mat Régional Q5 | L84: A5 | M84: B2 | N84: B5 | O84: B2 | P84: A5 | Q84: Analyse non disponible | R84: La défavorisation matérielle en proportion de la population C’est dans les RLS Antoine-Labelle et Argenteuil que la défavorisation matérielle est la plus forte : plus des trois-quarts de la population vit dans des secteurs parmi les plus défavorisés de la région (quintiles 4 et 5). Plus de la moitié de la population du RLS Les Laurentides vit dans des secteurs parmi les plus défavorisés matériellement de la région (quintiles 4 et 5). Parmi tous les RLS de la région, Pays-d’en-Haut et Thérèse-De Blainville sont ceux qui présentent les proportions les plus importantes de leurs populations vivant dans des secteurs ayant des conditions matérielles plus favorables (quintiles 1 et 2). La défavorisation matérielle en nombre de personnes Le RLS Rivière-du-Nord-Mirabel-Nord est celui où on retrouve le plus grand nombre de résidents vivant dans des secteurs du quintile 5, soit 32 200 personnes. Les RLS Antoine-Labelle et Argenteuil, bien que mois populeux, regroupent chacune plus de 20 000 personnes vivant dans des secteurs du quintile 5. Même s’ils sont considérés comme des territoires plutôt favorisés, les RLS de Thérèse-De Blainville et de Deux-Montagnes-Mirabel-Sud comptent chacun plus de 29 000 personnes vivant dans les secteurs de quintiles 4 ou 5, soit parmi les plus défavorisés matériellement de la région. Mise à jour : février 2024 | S84: Analyse 2016-2021 non disponible | T84: J3:O40 | U84: A17:K52 | V84: Répartition de la population (N, %) par quintile de défavorisation matérielle 2021 de la région des Laurentides selon ses RLS | W84: Source : INSPQ et BIESP, 2023. Statistique Canada, Recensement 2021. | X84: A13 | Y84: 16.5 | Z84: Proportion de la population ayant les conditions matérielles les plus défavorables de la région des Laurentides selon ses RLS, 2021 | AA84: Panorama de la défavorisation dans les Laurentides 2021, produit par l’équipe Surveillance, recherche et évaluation, Direction de santé publique des Laurentides, Centre intégré de santé et de services sociaux des Laurentides, 2024 | AB84: A14 | AC84: La population sans indice réside dans des secteurs où l’information pour le calcul de l’indice est indisponible à cause des ménages collectifs (centres d’hébergement, pénitenciers) ou du taux de non-réponse trop élevé. | AD84: A15 | AE84: https://www.santelaurentides.gouv.qc.ca/sante-publique/donnees-sur-la-population/panorama-de-la-defavorisation/ | AF84: A1:O15 | AG84: A1:O14 | AH84: Proportion de la population ayant les conditions matérielles les plus défavorables de la région des Laurentides selon ses RLS, 2021 | AI84: Analyse non disponible
A85: 15991 | B85: 15991SocialeRégional | C85: Régional | D85: Sociale | E85: A875:O882 | F85: A7:N9 | G85: J875:K882 | H85: A18:B20 | I85: A875:A882 | J85: Région RLS | K85: RLS Soc Régional Q5 | L85: A5 | M85: B2 | N85: B5 | O85: B2 | P85: A5 | Q85: Analyse non disponible | R85: La défavorisation sociale en proportion de la population Plus de la moitié de la population du RLS Pays-d’en-Haut habite des secteurs ayant des conditions sociales parmi les moins favorables (quintiles 4 ou 5) de la région des Laurentides. Les RLS Les Laurentides, Rivière-du-Nord-Mirabel-Nord, Argenteuil et Thérèse-De Blainville comptent aussi des proportions nettement plus élevées que la moyenne régionale de leurs populations vivant dans des secteurs les plus défavorisés socialement (quintile 5). Plus de la moitié de la population du Antoine-Labelle réside des secteurs parmi les plus favorisés de la région (quintiles 1 et 2). La défavorisation sociale en nombre de personnes En nombre, les RLS qui comptent le plus de résidents de secteurs ayant des conditions sociales parmi les plus défavorables de la région (quintile 5) sont Rivière-du-Nord-Mirabel-Nord, avec 40 200 personnes, et Thérèse-De Blainville, avec 35 000 personnes.. Malgré une situation globalement favorable, le RLS Deux-Montagnes-Mirabel-Sud compte tout de même près de 18 200 personnes qui habitent dans des secteurs dont les conditions sociales sont parmi les plus défavorables de la région (quintile 5). Mise à jour : février 2024 | S85: Analyse 2016-2021 non disponible | T85: J3:O40 | U85: A17:K52 | V85: Répartition de la population (N, %) par quintile de défavorisation sociale 2021 de la région des Laurentides selon ses RLS | W85: Source : INSPQ et BIESP, 2023. Statistique Canada, Recensement 2021. | X85: A13 | Y85: 16.5 | Z85: Proportion de la population ayant les conditions sociales les plus défavorables de la région des Laurentides selon ses RLS, 2021 | AA85: Panorama de la défavorisation dans les Laurentides 2021, produit par l’équipe Surveillance, recherche et évaluation, Direction de santé publique des Laurentides, Centre intégré de santé et de services sociaux des Laurentides, 2024 | AB85: A14 | AC85: La population sans indice réside dans des secteurs où l’information pour le calcul de l’indice est indisponible à cause des ménages collectifs (centres d’hébergement, pénitenciers) ou du taux de non-réponse trop élevé. | AD85: A15 | AE85: https://www.santelaurentides.gouv.qc.ca/sante-publique/donnees-sur-la-population/panorama-de-la-defavorisation/ | AF85: A1:O15 | AG85: A1:O14 | AH85: Proportion de la population ayant les conditions sociales les plus défavorables de la région des Laurentides selon ses RLS, 2021 | AI85: Analyse non disponible
